Workbook

Sheet FY 2025 SNF PDPM Rates
B3: Skilled Nursing Medicare Part A FY 2026 SNF PPS PDPM RATES | S3: Tip
T4: If all values are filtered out, click the clear filter
G5: Select your state and county below: | O5: Rates are effective for services beginning 10/1/2025 | T5: image in the top right corner of the slicer.
C6: Selected County: | D6: ='Data - Wage Indexes'!L1 -> Aleutians East, AK
C7: CBSA Code: | D7: =IF($D$6="","Select County",VLOOKUP($D$6,'Data - Wage Indexes'!$A$2:$E$3338,3,FALSE)) -> 02 | T7: Example only
C8: CBSA Designation: | D8: =IF($D$6="Select a county","",VLOOKUP($D$7,CBSADesignations,2,FALSE)) -> ALASKA
C9: Urban/Rural Status: | D9: =IF($D$6="","Select County",VLOOKUP($D$6,'Data - Wage Indexes'!$A$1:$F$3193,5,FALSE)) -> Rural
B11: Wage Index: | D11: =IFERROR(TEXT(IF($D$6="","Select County",VLOOKUP($D$6,'Data - Wage Indexes'!A1:E3338,2,FALSE)),"#.####"),"1.0000") -> 1.1274
C14: PT/OT | D14: PT | E14: OT | F14: PT + OT | H14: SLP | K14: Nursing | N14: NTA
C15: TA | D15: =IF($D$9="Urban",('Case-Mix_Rates'!$D2*Base_Rates!$B$9)+('Case-Mix_Rates'!$D2*Base_Rates!$B$11),('Case-Mix_Rates'!$E2*Base_Rates!$B$9)+('Case-Mix_Rates'!$E2*Base_Rates!$B$11))*ROUND($P$32*$P$35,3) -> 136.6449257 | E15: =IF($D$9="Urban",('Case-Mix_Rates'!$G2*Base_Rates!$B$9)+('Case-Mix_Rates'!$G2*Base_Rates!$B$11),('Case-Mix_Rates'!$H2*Base_Rates!$B$9)+('Case-Mix_Rates'!$H2*Base_Rates!$B$11))*ROUND($P$32*$P$35,3) -> 122.0397463 | F15: =+D15+E15 -> 258.684672 | H15: SA | I15: =IF($D$9="Urban",('Case-Mix_Rates'!$K2*Base_Rates!$B$9)+('Case-Mix_Rates'!$K2*Base_Rates!$B$11),('Case-Mix_Rates'!$L2*Base_Rates!$B$9)+('Case-Mix_Rates'!$L2*Base_Rates!$B$11))*ROUND($P$32*$P$35,3) -> 24.8919868 | K15: ES3 | L15: =IF($D$9="Urban",('Case-Mix_Rates'!$O2*Base_Rates!$B$9)+('Case-Mix_Rates'!$O2*Base_Rates!$B$11),('Case-Mix_Rates'!$P2*Base_Rates!$B$9)+('Case-Mix_Rates'!$P2*Base_Rates!$B$11))*ROUND($P$32*$P$35,3) -> 528.6630439 | N15: NA | O15: =IF($D$9="Urban",('Case-Mix_Rates'!$S2*Base_Rates!$B$9)+('Case-Mix_Rates'!$S2*Base_Rates!$B$11),('Case-Mix_Rates'!$T2*Base_Rates!$B$9)+('Case-Mix_Rates'!$T2*Base_Rates!$B$11))*ROUND($P$32*$P$35,3) -> 317.8293391
C16: TB | D16: =IF($D$9="Urban",('Case-Mix_Rates'!$D3*Base_Rates!$B$9)+('Case-Mix_Rates'!$D3*Base_Rates!$B$11),('Case-Mix_Rates'!$E3*Base_Rates!$B$9)+('Case-Mix_Rates'!$E3*Base_Rates!$B$11))*ROUND($P$32*$P$35,3) -> 151.7229865 | E16: =IF($D$9="Urban",('Case-Mix_Rates'!$G3*Base_Rates!$B$9)+('Case-Mix_Rates'!$G3*Base_Rates!$B$11),('Case-Mix_Rates'!$H3*Base_Rates!$B$9)+('Case-Mix_Rates'!$H3*Base_Rates!$B$11))*ROUND($P$32*$P$35,3) -> 133.2916378 | F16: 285.0146243 | H16: SB | I16: =IF($D$9="Urban",('Case-Mix_Rates'!$K3*Base_Rates!$B$9)+('Case-Mix_Rates'!$K3*Base_Rates!$B$11),('Case-Mix_Rates'!$L3*Base_Rates!$B$9)+('Case-Mix_Rates'!$L3*Base_Rates!$B$11))*ROUND($P$32*$P$35,3) -> 66.89721453 | K16: ES2 | L16: =IF($D$9="Urban",('Case-Mix_Rates'!$O3*Base_Rates!$B$9)+('Case-Mix_Rates'!$O3*Base_Rates!$B$11),('Case-Mix_Rates'!$P3*Base_Rates!$B$9)+('Case-Mix_Rates'!$P3*Base_Rates!$B$11))*ROUND($P$32*$P$35,3) -> 399.2507362 | N16: NB | O16: =IF($D$9="Urban",('Case-Mix_Rates'!$S3*Base_Rates!$B$9)+('Case-Mix_Rates'!$S3*Base_Rates!$B$11),('Case-Mix_Rates'!$T3*Base_Rates!$B$9)+('Case-Mix_Rates'!$T3*Base_Rates!$B$11))*ROUND($P$32*$P$35,3) -> 248.239255
C17: TC | D17: =IF($D$9="Urban",('Case-Mix_Rates'!$D4*Base_Rates!$B$9)+('Case-Mix_Rates'!$D4*Base_Rates!$B$11),('Case-Mix_Rates'!$E4*Base_Rates!$B$9)+('Case-Mix_Rates'!$E4*Base_Rates!$B$11))*ROUND($P$32*$P$35,3) -> 167.743426 | E17: =IF($D$9="Urban",('Case-Mix_Rates'!$G4*Base_Rates!$B$9)+('Case-Mix_Rates'!$G4*Base_Rates!$B$11),('Case-Mix_Rates'!$H4*Base_Rates!$B$9)+('Case-Mix_Rates'!$H4*Base_Rates!$B$11))*ROUND($P$32*$P$35,3) -> 138.4848185 | F17: 306.2282446 | H17: SC | I17: =IF($D$9="Urban",('Case-Mix_Rates'!$K4*Base_Rates!$B$9)+('Case-Mix_Rates'!$K4*Base_Rates!$B$11),('Case-Mix_Rates'!$L4*Base_Rates!$B$9)+('Case-Mix_Rates'!$L4*Base_Rates!$B$11))*ROUND($P$32*$P$35,3) -> 98.01219803 | K17: ES1 | L17: =IF($D$9="Urban",('Case-Mix_Rates'!$O4*Base_Rates!$B$9)+('Case-Mix_Rates'!$O4*Base_Rates!$B$11),('Case-Mix_Rates'!$P4*Base_Rates!$B$9)+('Case-Mix_Rates'!$P4*Base_Rates!$B$11))*ROUND($P$32*$P$35,3) -> 381.3532895 | N17: NC | O17: =IF($D$9="Urban",('Case-Mix_Rates'!$S4*Base_Rates!$B$9)+('Case-Mix_Rates'!$S4*Base_Rates!$B$11),('Case-Mix_Rates'!$T4*Base_Rates!$B$9)+('Case-Mix_Rates'!$T4*Base_Rates!$B$11))*ROUND($P$32*$P$35,3) -> 180.7264869
C18: TD | D18: =IF($D$9="Urban",('Case-Mix_Rates'!$D5*Base_Rates!$B$9)+('Case-Mix_Rates'!$D5*Base_Rates!$B$11),('Case-Mix_Rates'!$E5*Base_Rates!$B$9)+('Case-Mix_Rates'!$E5*Base_Rates!$B$11))*ROUND($P$32*$P$35,3) -> 170.5705624 | E18: =IF($D$9="Urban",('Case-Mix_Rates'!$G5*Base_Rates!$B$9)+('Case-Mix_Rates'!$G5*Base_Rates!$B$11),('Case-Mix_Rates'!$H5*Base_Rates!$B$9)+('Case-Mix_Rates'!$H5*Base_Rates!$B$11))*ROUND($P$32*$P$35,3) -> 125.5018668 | F18: 296.0724292 | H18: SD | I18: =IF($D$9="Urban",('Case-Mix_Rates'!$K5*Base_Rates!$B$9)+('Case-Mix_Rates'!$K5*Base_Rates!$B$11),('Case-Mix_Rates'!$L5*Base_Rates!$B$9)+('Case-Mix_Rates'!$L5*Base_Rates!$B$11))*ROUND($P$32*$P$35,3) -> 53.67334654 | K18: HDE2 | L18: =IF($D$9="Urban",('Case-Mix_Rates'!$O5*Base_Rates!$B$9)+('Case-Mix_Rates'!$O5*Base_Rates!$B$11),('Case-Mix_Rates'!$P5*Base_Rates!$B$9)+('Case-Mix_Rates'!$P5*Base_Rates!$B$11))*ROUND($P$32*$P$35,3) -> 312.5169556 | N18: ND | O18: =IF($D$9="Urban",('Case-Mix_Rates'!$S5*Base_Rates!$B$9)+('Case-Mix_Rates'!$S5*Base_Rates!$B$11),('Case-Mix_Rates'!$T5*Base_Rates!$B$9)+('Case-Mix_Rates'!$T5*Base_Rates!$B$11))*ROUND($P$32*$P$35,3) -> 130.8709043
C19: TE | D19: =IF($D$9="Urban",('Case-Mix_Rates'!$D6*Base_Rates!$B$9)+('Case-Mix_Rates'!$D6*Base_Rates!$B$11),('Case-Mix_Rates'!$E6*Base_Rates!$B$9)+('Case-Mix_Rates'!$E6*Base_Rates!$B$11))*ROUND($P$32*$P$35,3) -> 126.2787589 | E19: =IF($D$9="Urban",('Case-Mix_Rates'!$G6*Base_Rates!$B$9)+('Case-Mix_Rates'!$G6*Base_Rates!$B$11),('Case-Mix_Rates'!$H6*Base_Rates!$B$9)+('Case-Mix_Rates'!$H6*Base_Rates!$B$11))*ROUND($P$32*$P$35,3) -> 115.1155054 | F19: 241.3942643 | H19: SE | I19: =IF($D$9="Urban",('Case-Mix_Rates'!$K6*Base_Rates!$B$9)+('Case-Mix_Rates'!$K6*Base_Rates!$B$11),('Case-Mix_Rates'!$L6*Base_Rates!$B$9)+('Case-Mix_Rates'!$L6*Base_Rates!$B$11))*ROUND($P$32*$P$35,3) -> 85.95514193 | K19: HDE1 | L19: =IF($D$9="Urban",('Case-Mix_Rates'!$O6*Base_Rates!$B$9)+('Case-Mix_Rates'!$O6*Base_Rates!$B$11),('Case-Mix_Rates'!$P6*Base_Rates!$B$9)+('Case-Mix_Rates'!$P6*Base_Rates!$B$11))*ROUND($P$32*$P$35,3) -> 258.8246152 | N19: NE | O19: =IF($D$9="Urban",('Case-Mix_Rates'!$S6*Base_Rates!$B$9)+('Case-Mix_Rates'!$S6*Base_Rates!$B$11),('Case-Mix_Rates'!$T6*Base_Rates!$B$9)+('Case-Mix_Rates'!$T6*Base_Rates!$B$11))*ROUND($P$32*$P$35,3) -> 94.51787535
C20: TF | D20: =IF($D$9="Urban",('Case-Mix_Rates'!$D7*Base_Rates!$B$9)+('Case-Mix_Rates'!$D7*Base_Rates!$B$11),('Case-Mix_Rates'!$E7*Base_Rates!$B$9)+('Case-Mix_Rates'!$E7*Base_Rates!$B$11))*ROUND($P$32*$P$35,3) -> 143.2415773 | E20: =IF($D$9="Urban",('Case-Mix_Rates'!$G7*Base_Rates!$B$9)+('Case-Mix_Rates'!$G7*Base_Rates!$B$11),('Case-Mix_Rates'!$H7*Base_Rates!$B$9)+('Case-Mix_Rates'!$H7*Base_Rates!$B$11))*ROUND($P$32*$P$35,3) -> 130.6950475 | F20: 273.9366248 | H20: SF | I20: =IF($D$9="Urban",('Case-Mix_Rates'!$K7*Base_Rates!$B$9)+('Case-Mix_Rates'!$K7*Base_Rates!$B$11),('Case-Mix_Rates'!$L7*Base_Rates!$B$9)+('Case-Mix_Rates'!$L7*Base_Rates!$B$11))*ROUND($P$32*$P$35,3) -> 109.6803168 | K20: HBC2 | L20: =IF($D$9="Urban",('Case-Mix_Rates'!$O7*Base_Rates!$B$9)+('Case-Mix_Rates'!$O7*Base_Rates!$B$11),('Case-Mix_Rates'!$P7*Base_Rates!$B$9)+('Case-Mix_Rates'!$P7*Base_Rates!$B$11))*ROUND($P$32*$P$35,3) -> 291.8660555 | N20: NF | O20: =IF($D$9="Urban",('Case-Mix_Rates'!$S7*Base_Rates!$B$9)+('Case-Mix_Rates'!$S7*Base_Rates!$B$11),('Case-Mix_Rates'!$T7*Base_Rates!$B$9)+('Case-Mix_Rates'!$T7*Base_Rates!$B$11))*ROUND($P$32*$P$35,3) -> 70.62874202
C21: TG | D21: =IF($D$9="Urban",('Case-Mix_Rates'!$D8*Base_Rates!$B$9)+('Case-Mix_Rates'!$D8*Base_Rates!$B$11),('Case-Mix_Rates'!$E8*Base_Rates!$B$9)+('Case-Mix_Rates'!$E8*Base_Rates!$B$11))*ROUND($P$32*$P$35,3) -> 148.8958501 | E21: =IF($D$9="Urban",('Case-Mix_Rates'!$G8*Base_Rates!$B$9)+('Case-Mix_Rates'!$G8*Base_Rates!$B$11),('Case-Mix_Rates'!$H8*Base_Rates!$B$9)+('Case-Mix_Rates'!$H8*Base_Rates!$B$11))*ROUND($P$32*$P$35,3) -> 134.1571679 | F21: 283.053018 | H21: SG | I21: =IF($D$9="Urban",('Case-Mix_Rates'!$K8*Base_Rates!$B$9)+('Case-Mix_Rates'!$K8*Base_Rates!$B$11),('Case-Mix_Rates'!$L8*Base_Rates!$B$9)+('Case-Mix_Rates'!$L8*Base_Rates!$B$11))*ROUND($P$32*$P$35,3) -> 75.0648977 | K21: HBC1 | L21: =IF($D$9="Urban",('Case-Mix_Rates'!$O8*Base_Rates!$B$9)+('Case-Mix_Rates'!$O8*Base_Rates!$B$11),('Case-Mix_Rates'!$P8*Base_Rates!$B$9)+('Case-Mix_Rates'!$P8*Base_Rates!$B$11))*ROUND($P$32*$P$35,3) -> 242.3038951
C22: TH | D22: =IF($D$9="Urban",('Case-Mix_Rates'!$D9*Base_Rates!$B$9)+('Case-Mix_Rates'!$D9*Base_Rates!$B$11),('Case-Mix_Rates'!$E9*Base_Rates!$B$9)+('Case-Mix_Rates'!$E9*Base_Rates!$B$11))*ROUND($P$32*$P$35,3) -> 103.6616678 | E22: =IF($D$9="Urban",('Case-Mix_Rates'!$G9*Base_Rates!$B$9)+('Case-Mix_Rates'!$G9*Base_Rates!$B$11),('Case-Mix_Rates'!$H9*Base_Rates!$B$9)+('Case-Mix_Rates'!$H9*Base_Rates!$B$11))*ROUND($P$32*$P$35,3) -> 94.34278262 | F22: 198.0044504 | H22: SH | I22: =IF($D$9="Urban",('Case-Mix_Rates'!$K9*Base_Rates!$B$9)+('Case-Mix_Rates'!$K9*Base_Rates!$B$11),('Case-Mix_Rates'!$L9*Base_Rates!$B$9)+('Case-Mix_Rates'!$L9*Base_Rates!$B$11))*ROUND($P$32*$P$35,3) -> 105.0130693 | K22: LDE2 | L22: =IF($D$9="Urban",('Case-Mix_Rates'!$O9*Base_Rates!$B$9)+('Case-Mix_Rates'!$O9*Base_Rates!$B$11),('Case-Mix_Rates'!$P9*Base_Rates!$B$9)+('Case-Mix_Rates'!$P9*Base_Rates!$B$11))*ROUND($P$32*$P$35,3) -> 271.2151553 | N22: VPDA Example
C23: TI | D23: =IF($D$9="Urban",('Case-Mix_Rates'!$D10*Base_Rates!$B$9)+('Case-Mix_Rates'!$D10*Base_Rates!$B$11),('Case-Mix_Rates'!$E10*Base_Rates!$B$9)+('Case-Mix_Rates'!$E10*Base_Rates!$B$11))*ROUND($P$32*$P$35,3) -> 100.8345314 | E23: =IF($D$9="Urban",('Case-Mix_Rates'!$G10*Base_Rates!$B$9)+('Case-Mix_Rates'!$G10*Base_Rates!$B$11),('Case-Mix_Rates'!$H10*Base_Rates!$B$9)+('Case-Mix_Rates'!$H10*Base_Rates!$B$11))*ROUND($P$32*$P$35,3) -> 96.93937296 | F23: 197.7739043 | H23: SI | I23: =IF($D$9="Urban",('Case-Mix_Rates'!$K10*Base_Rates!$B$9)+('Case-Mix_Rates'!$K10*Base_Rates!$B$11),('Case-Mix_Rates'!$L10*Base_Rates!$B$9)+('Case-Mix_Rates'!$L10*Base_Rates!$B$11))*ROUND($P$32*$P$35,3) -> 129.9050561 | K23: LDE1 | L23: =IF($D$9="Urban",('Case-Mix_Rates'!$O10*Base_Rates!$B$9)+('Case-Mix_Rates'!$O10*Base_Rates!$B$11),('Case-Mix_Rates'!$P10*Base_Rates!$B$9)+('Case-Mix_Rates'!$P10*Base_Rates!$B$11))*ROUND($P$32*$P$35,3) -> 225.783175 | N23: Period | O23: Adjustment
C24: TJ | D24: =IF($D$9="Urban",('Case-Mix_Rates'!$D11*Base_Rates!$B$9)+('Case-Mix_Rates'!$D11*Base_Rates!$B$11),('Case-Mix_Rates'!$E11*Base_Rates!$B$9)+('Case-Mix_Rates'!$E11*Base_Rates!$B$11))*ROUND($P$32*$P$35,3) -> 126.2787589 | E24: =IF($D$9="Urban",('Case-Mix_Rates'!$G11*Base_Rates!$B$9)+('Case-Mix_Rates'!$G11*Base_Rates!$B$11),('Case-Mix_Rates'!$H11*Base_Rates!$B$9)+('Case-Mix_Rates'!$H11*Base_Rates!$B$11))*ROUND($P$32*$P$35,3) -> 118.5776259 | F24: 244.8563848 | H24: SJ | I24: =IF($D$9="Urban",('Case-Mix_Rates'!$K11*Base_Rates!$B$9)+('Case-Mix_Rates'!$K11*Base_Rates!$B$11),('Case-Mix_Rates'!$L11*Base_Rates!$B$9)+('Case-Mix_Rates'!$L11*Base_Rates!$B$11))*ROUND($P$32*$P$35,3) -> 110.0692541 | K24: LBC2 | L24: =IF($D$9="Urban",('Case-Mix_Rates'!$O11*Base_Rates!$B$9)+('Case-Mix_Rates'!$O11*Base_Rates!$B$11),('Case-Mix_Rates'!$P11*Base_Rates!$B$9)+('Case-Mix_Rates'!$P11*Base_Rates!$B$11))*ROUND($P$32*$P$35,3) -> 224.4064483 | N24: Days 1 - 3 | O24: 3
C25: TK | D25: =IF($D$9="Urban",('Case-Mix_Rates'!$D12*Base_Rates!$B$9)+('Case-Mix_Rates'!$D12*Base_Rates!$B$11),('Case-Mix_Rates'!$E12*Base_Rates!$B$9)+('Case-Mix_Rates'!$E12*Base_Rates!$B$11))*ROUND($P$32*$P$35,3) -> 135.7025469 | E25: =IF($D$9="Urban",('Case-Mix_Rates'!$G12*Base_Rates!$B$9)+('Case-Mix_Rates'!$G12*Base_Rates!$B$11),('Case-Mix_Rates'!$H12*Base_Rates!$B$9)+('Case-Mix_Rates'!$H12*Base_Rates!$B$11))*ROUND($P$32*$P$35,3) -> 126.3673969 | F25: 262.0699438 | H25: SK | I25: =IF($D$9="Urban",('Case-Mix_Rates'!$K12*Base_Rates!$B$9)+('Case-Mix_Rates'!$K12*Base_Rates!$B$11),('Case-Mix_Rates'!$L12*Base_Rates!$B$9)+('Case-Mix_Rates'!$L12*Base_Rates!$B$11))*ROUND($P$32*$P$35,3) -> 136.1280528 | K25: LBC1 | L25: =IF($D$9="Urban",('Case-Mix_Rates'!$O12*Base_Rates!$B$9)+('Case-Mix_Rates'!$O12*Base_Rates!$B$11),('Case-Mix_Rates'!$P12*Base_Rates!$B$9)+('Case-Mix_Rates'!$P12*Base_Rates!$B$11))*ROUND($P$32*$P$35,3) -> 185.8581014 | N25: Days 4 + | O25: 1
C26: TL | D26: =IF($D$9="Urban",('Case-Mix_Rates'!$D13*Base_Rates!$B$9)+('Case-Mix_Rates'!$D13*Base_Rates!$B$11),('Case-Mix_Rates'!$E13*Base_Rates!$B$9)+('Case-Mix_Rates'!$E13*Base_Rates!$B$11))*ROUND($P$32*$P$35,3) -> 97.06501619 | E26: =IF($D$9="Urban",('Case-Mix_Rates'!$G13*Base_Rates!$B$9)+('Case-Mix_Rates'!$G13*Base_Rates!$B$11),('Case-Mix_Rates'!$H13*Base_Rates!$B$9)+('Case-Mix_Rates'!$H13*Base_Rates!$B$11))*ROUND($P$32*$P$35,3) -> 90.88066215 | F26: 187.9456783 | H26: SL | I26: =IF($D$9="Urban",('Case-Mix_Rates'!$K13*Base_Rates!$B$9)+('Case-Mix_Rates'!$K13*Base_Rates!$B$11),('Case-Mix_Rates'!$L13*Base_Rates!$B$9)+('Case-Mix_Rates'!$L13*Base_Rates!$B$11))*ROUND($P$32*$P$35,3) -> 154.7970429 | K26: CDE2 | L26: =IF($D$9="Urban",('Case-Mix_Rates'!$O13*Base_Rates!$B$9)+('Case-Mix_Rates'!$O13*Base_Rates!$B$11),('Case-Mix_Rates'!$P13*Base_Rates!$B$9)+('Case-Mix_Rates'!$P13*Base_Rates!$B$11))*ROUND($P$32*$P$35,3) -> 243.6806218
C27: TM | D27: =IF($D$9="Urban",('Case-Mix_Rates'!$D14*Base_Rates!$B$9)+('Case-Mix_Rates'!$D14*Base_Rates!$B$11),('Case-Mix_Rates'!$E14*Base_Rates!$B$9)+('Case-Mix_Rates'!$E14*Base_Rates!$B$11))*ROUND($P$32*$P$35,3) -> 113.0854558 | E27: =IF($D$9="Urban",('Case-Mix_Rates'!$G14*Base_Rates!$B$9)+('Case-Mix_Rates'!$G14*Base_Rates!$B$11),('Case-Mix_Rates'!$H14*Base_Rates!$B$9)+('Case-Mix_Rates'!$H14*Base_Rates!$B$11))*ROUND($P$32*$P$35,3) -> 106.4602042 | F27: 219.54566 | H27: ="" ->  | K27: CDE1 | L27: =IF($D$9="Urban",('Case-Mix_Rates'!$O14*Base_Rates!$B$9)+('Case-Mix_Rates'!$O14*Base_Rates!$B$11),('Case-Mix_Rates'!$P14*Base_Rates!$B$9)+('Case-Mix_Rates'!$P14*Base_Rates!$B$11))*ROUND($P$32*$P$35,3) -> 210.6391815 | N27: Non-Case-Mix
C28: TN | D28: =IF($D$9="Urban",('Case-Mix_Rates'!$D15*Base_Rates!$B$9)+('Case-Mix_Rates'!$D15*Base_Rates!$B$11),('Case-Mix_Rates'!$E15*Base_Rates!$B$9)+('Case-Mix_Rates'!$E15*Base_Rates!$B$11))*ROUND($P$32*$P$35,3) -> 131.9330317 | E28: =IF($D$9="Urban",('Case-Mix_Rates'!$G15*Base_Rates!$B$9)+('Case-Mix_Rates'!$G15*Base_Rates!$B$11),('Case-Mix_Rates'!$H15*Base_Rates!$B$9)+('Case-Mix_Rates'!$H15*Base_Rates!$B$11))*ROUND($P$32*$P$35,3) -> 122.9052764 | F28: 254.8383082 | K28: CBC2 | L28: =IF($D$9="Urban",('Case-Mix_Rates'!$O15*Base_Rates!$B$9)+('Case-Mix_Rates'!$O15*Base_Rates!$B$11),('Case-Mix_Rates'!$P15*Base_Rates!$B$9)+('Case-Mix_Rates'!$P15*Base_Rates!$B$11))*ROUND($P$32*$P$35,3) -> 202.3788215 | N28: =TEXT(IF($D$9="Urban",(Base_Rates!$G3*Base_Rates!$B$9)+(Base_Rates!$G3*Base_Rates!$B$11),(Base_Rates!$G4*Base_Rates!$B$9)+(Base_Rates!$G4*Base_Rates!$B$11)),"$#.##")*ROUND($P$32*$P$35,3) -> 131.43
C29: TO | D29: =IF($D$9="Urban",('Case-Mix_Rates'!$D16*Base_Rates!$B$9)+('Case-Mix_Rates'!$D16*Base_Rates!$B$11),('Case-Mix_Rates'!$E16*Base_Rates!$B$9)+('Case-Mix_Rates'!$E16*Base_Rates!$B$11))*ROUND($P$32*$P$35,3) -> 138.5296833 | E29: =IF($D$9="Urban",('Case-Mix_Rates'!$G16*Base_Rates!$B$9)+('Case-Mix_Rates'!$G16*Base_Rates!$B$11),('Case-Mix_Rates'!$H16*Base_Rates!$B$9)+('Case-Mix_Rates'!$H16*Base_Rates!$B$11))*ROUND($P$32*$P$35,3) -> 127.232927 | F29: 265.7626103 | K29: CA2 | L29: =IF($D$9="Urban",('Case-Mix_Rates'!$O16*Base_Rates!$B$9)+('Case-Mix_Rates'!$O16*Base_Rates!$B$11),('Case-Mix_Rates'!$P16*Base_Rates!$B$9)+('Case-Mix_Rates'!$P16*Base_Rates!$B$11))*ROUND($P$32*$P$35,3) -> 141.8028477
C30: TP | D30: =IF($D$9="Urban",('Case-Mix_Rates'!$D17*Base_Rates!$B$9)+('Case-Mix_Rates'!$D17*Base_Rates!$B$11),('Case-Mix_Rates'!$E17*Base_Rates!$B$9)+('Case-Mix_Rates'!$E17*Base_Rates!$B$11))*ROUND($P$32*$P$35,3) -> 96.12263739 | E30: =IF($D$9="Urban",('Case-Mix_Rates'!$G17*Base_Rates!$B$9)+('Case-Mix_Rates'!$G17*Base_Rates!$B$11),('Case-Mix_Rates'!$H17*Base_Rates!$B$9)+('Case-Mix_Rates'!$H17*Base_Rates!$B$11))*ROUND($P$32*$P$35,3) -> 89.14960192 | F30: 185.2722393 | K30: CBC1 | L30: =IF($D$9="Urban",('Case-Mix_Rates'!$O17*Base_Rates!$B$9)+('Case-Mix_Rates'!$O17*Base_Rates!$B$11),('Case-Mix_Rates'!$P17*Base_Rates!$B$9)+('Case-Mix_Rates'!$P17*Base_Rates!$B$11))*ROUND($P$32*$P$35,3) -> 174.8442879 | N30: Facility Specific Factors
C31: ="" ->  | K31: CA1 | L31: =IF($D$9="Urban",('Case-Mix_Rates'!$O18*Base_Rates!$B$9)+('Case-Mix_Rates'!$O18*Base_Rates!$B$11),('Case-Mix_Rates'!$P18*Base_Rates!$B$9)+('Case-Mix_Rates'!$P18*Base_Rates!$B$11))*ROUND($P$32*$P$35,3) -> 122.5286742
C32: Variable Per Diem Adjustment (VPDA) Example | K32: BAB2 | L32: =IF($D$9="Urban",('Case-Mix_Rates'!$O19*Base_Rates!$B$9)+('Case-Mix_Rates'!$O19*Base_Rates!$B$11),('Case-Mix_Rates'!$P19*Base_Rates!$B$9)+('Case-Mix_Rates'!$P19*Base_Rates!$B$11))*ROUND($P$32*$P$35,3) -> 134.9192143 | N32: Value-Based Purchasing (VBP) | P32: 1
C33: Period | D33: Begin | E33: End | F33: Adjustment | K33: BAB1 | L33: =IF($D$9="Urban",('Case-Mix_Rates'!$O20*Base_Rates!$B$9)+('Case-Mix_Rates'!$O20*Base_Rates!$B$11),('Case-Mix_Rates'!$P20*Base_Rates!$B$9)+('Case-Mix_Rates'!$P20*Base_Rates!$B$11))*ROUND($P$32*$P$35,3) -> 129.4123076 | N33: (VBP factor ranges between 98% and 104%)
C34: 1 | D34: 0 | E34: 20 | F34: 1 | K34: PDE2 | L34: =IF($D$9="Urban",('Case-Mix_Rates'!$O21*Base_Rates!$B$9)+('Case-Mix_Rates'!$O21*Base_Rates!$B$11),('Case-Mix_Rates'!$P21*Base_Rates!$B$9)+('Case-Mix_Rates'!$P21*Base_Rates!$B$11))*ROUND($P$32*$P$35,3) -> 203.7555482
C35: 2 | D35: 21 | E35: =+E34+7 -> 27 | F35: 0.98 | K35: PDE1 | L35: =IF($D$9="Urban",('Case-Mix_Rates'!$O22*Base_Rates!$B$9)+('Case-Mix_Rates'!$O22*Base_Rates!$B$11),('Case-Mix_Rates'!$P22*Base_Rates!$B$9)+('Case-Mix_Rates'!$P22*Base_Rates!$B$11))*ROUND($P$32*$P$35,3) -> 191.3650081 | N35: Quality Reporting Progam (QRP) | P35: 1
C36: 3 | D36: =+D35+7 -> 28 | E36: =+E35+7 -> 34 | F36: 0.96 | K36: PBC2 | L36: =IF($D$9="Urban",('Case-Mix_Rates'!$O23*Base_Rates!$B$9)+('Case-Mix_Rates'!$O23*Base_Rates!$B$11),('Case-Mix_Rates'!$P23*Base_Rates!$B$9)+('Case-Mix_Rates'!$P23*Base_Rates!$B$11))*ROUND($P$32*$P$35,3) -> 158.3235678 | N36: (QRP factor is either 98% or 100%)
C37: 4 | D37: =+D36+7 -> 35 | E37: =+E36+7 -> 41 | F37: 0.94 | K37: PA2 | L37: =IF($D$9="Urban",('Case-Mix_Rates'!$O24*Base_Rates!$B$9)+('Case-Mix_Rates'!$O24*Base_Rates!$B$11),('Case-Mix_Rates'!$P24*Base_Rates!$B$9)+('Case-Mix_Rates'!$P24*Base_Rates!$B$11))*ROUND($P$32*$P$35,3) -> 92.24068734
C38: 5 | D38: =+D37+7 -> 42 | E38: =+E37+7 -> 48 | F38: 0.92 | K38: PBC1 | L38: =IF($D$9="Urban",('Case-Mix_Rates'!$O25*Base_Rates!$B$9)+('Case-Mix_Rates'!$O25*Base_Rates!$B$11),('Case-Mix_Rates'!$P25*Base_Rates!$B$9)+('Case-Mix_Rates'!$P25*Base_Rates!$B$11))*ROUND($P$32*$P$35,3) -> 147.3097544
C39: 6 | D39: =+D38+7 -> 49 | E39: =+E38+7 -> 55 | F39: 0.9 | K39: PA1 | L39: =IF($D$9="Urban",('Case-Mix_Rates'!$O26*Base_Rates!$B$9)+('Case-Mix_Rates'!$O26*Base_Rates!$B$11),('Case-Mix_Rates'!$P26*Base_Rates!$B$9)+('Case-Mix_Rates'!$P26*Base_Rates!$B$11))*ROUND($P$32*$P$35,3) -> 85.35705396
M40: ="" -> 
C42: Source: CMS-1827-F, Medicare Program: Prospective Payment System and Consolidated Billing for Skilled Nursing Facilities; Updates to the Quality Reporting and Value-Based Purchasing Program for Federal Fiscal Year 2026
C45: CLA’s rate listing and calculator are based on the final rule published August 4, 2025. CLA will monitor and update rates as necessary in the event of any technical corrections that result in rate changes. This calculator is intended to be informational in nature. You should consult with a professional advisor familiar with your particular factual situation for advice or service concerning any specific matters or to address your organization’s specific reimbursement rate needs.
C46: See also the "Disclaimer" and "Limitation of Liability" provisions at www.CLAconnect.com/disclaimers
C47: © 2025 CliftonLarsonAllen LLP All Rights Reserved | P47: www.CLAconnect.com

Sheet Alpha_Crosswalk (hidden)
A1: Numeric | B1: Alphabet
A2: 1 | B2: A
A3: 2 | B3: B
A4: 3 | B4: C
A5: 4 | B5: D
A6: 5 | B6: E
A7: 6 | B7: F
A8: 7 | B8: G
A9: 8 | B9: H
A10: 9 | B10: I
A11: 10 | B11: J
A12: 11 | B12: K
A13: 12 | B13: L
A14: 13 | B14: M
A15: 14 | B15: N
A16: 15 | B16: O
A17: 16 | B17: P
A18: 17 | B18: Q
A19: 18 | B19: R
A20: 19 | B20: S
A21: 20 | B21: T
A22: 21 | B22: U
A23: 22 | B23: V
A24: 23 | B24: W
A25: 24 | B25: X
A26: 25 | B26: Y
A27: 26 | B27: Z

Sheet Proof (hidden)
A1: ='FY 2025 SNF PDPM Rates'!D9 -> Rural | E1: Hardkey
C3: Component | D3: Component Group | E3: Component Rate | F3: VPD adjustment factor | G3: VPD adjustment rate | I3: Labor portion | J3: Wage index | K3: Wage index adjusted rate | L3: Non-labor portion | M3: Total case mix and wage index adjustment rate | N3: VPDA adjustment factor | O3: VPD adjustment rate | Q3: Calculator | R3: Variance
C4: PT | D4: TN | E4: =IF($A$1="Urban",VLOOKUP(D4,'Case-Mix_Rates'!B$1:E$17,3,FALSE),VLOOKUP(D4,'Case-Mix_Rates'!B$1:E$17,4,FALSE)) -> 120.862 | F4: 1 | G4: =E4*F4 -> 120.862 | I4: =G4*Base_Rates!$B$7 -> 86.899778 | J4: =$F$15 -> 1.1274 | K4: =I4*J4 -> 97.97080972 | L4: =G4-I4 -> 33.962222 | M4: =SUM(K4:L4) -> 131.9330317 | N4: 1 | O4: =M4/N4 -> 131.9330317 | Q4: =VLOOKUP(D4,'FY 2025 SNF PDPM Rates'!$C$15:$D$30,2,FALSE) -> 131.9330317 | R4: =+Q4-O4 -> 0
C5: OT | D5: TN | E5: =IF($A$1="Urban",VLOOKUP(D5,'Case-Mix_Rates'!B$1:H$17,6,FALSE),VLOOKUP(D5,'Case-Mix_Rates'!B$1:H$17,7,FALSE)) -> 112.5918 | F5: 1 | G5: =E5*F5 -> 112.5918 | I5: =G5*Base_Rates!$B$7 -> 80.9535042 | J5: 1.1274 | K5: 91.26698064 | L5: 31.6382958 | M5: 122.9052764 | N5: 1 | O5: =M5/N5 -> 122.9052764 | Q5: =VLOOKUP(D5,'FY 2025 SNF PDPM Rates'!$C$15:$E$30,3,FALSE) -> 122.9052764 | R5: 0
C6: SLP | D6: SH | E6: =IF($A$1="Urban",VLOOKUP(D6,'Case-Mix_Rates'!I$1:L$17,3,FALSE),VLOOKUP(D6,'Case-Mix_Rates'!I$1:L$17,4,FALSE)) -> 96.201 | F6: 1 | G6: =E6 -> 96.201 | I6: =G6*Base_Rates!$B$7 -> 69.168519 | J6: 1.1274 | K6: 77.98058832 | L6: 27.032481 | M6: 105.0130693 | O6: =M6 -> 105.0130693 | Q6: =VLOOKUP(D6,'FY 2025 SNF PDPM Rates'!$H$15:$I$30,2,FALSE) -> 105.0130693 | R6: 0
C7: Nursing | D7: CBC2 | E7: =IF($A$1="Urban",VLOOKUP(D7,'Case-Mix_Rates'!M$1:P$26,3,FALSE),VLOOKUP(D7,'Case-Mix_Rates'!M$1:P$26,4,FALSE)) -> 185.3964 | F7: 1 | G7: =E7 -> 185.3964 | I7: =G7*Base_Rates!$B$7 -> 133.3000116 | J7: 1.1274 | K7: 150.2824331 | L7: 52.0963884 | M7: 202.3788215 | O7: =M7 -> 202.3788215 | Q7: =VLOOKUP(D7,'FY 2025 SNF PDPM Rates'!$K$15:$L$30,2,FALSE) -> 202.3788215 | R7: 0
C8: NTA | D8: NC | E8: =IF($A$1="Urban",VLOOKUP(D8,'Case-Mix_Rates'!Q$1:T$26,3,FALSE),VLOOKUP(D8,'Case-Mix_Rates'!Q$1:T$26,4,FALSE)) -> 165.561 | F8: 3 | G8: =E8*F8 -> 496.683 | I8: =G8*Base_Rates!$B$7 -> 357.115077 | J8: 1.1274 | K8: 402.6115378 | L8: 139.567923 | M8: 542.1794608 | N8: 3 | O8: =M8/N8 -> 180.7264869 | Q8: =VLOOKUP(D8,'FY 2025 SNF PDPM Rates'!$N$15:$O$30,2,FALSE) -> 180.7264869 | R8: 0
C9: Non-Case-Mix | E9: =IF($A$1="Urban",Base_Rates!$G$3,Base_Rates!$G$4) -> 120.4 | G9: =E9 -> 120.4 | I9: =G9*Base_Rates!$B$7 -> 86.5676 | J9: 1.1274 | K9: 97.59631224 | L9: 33.8324 | M9: 131.4287122 | O9: =M9 -> 131.4287122 | Q9: =VALUE('FY 2025 SNF PDPM Rates'!N28) -> 131.43 | R9: 0.00128776
C10: Total PDPM Case_mix Adj. Per Diem | G10: =SUM(G4:G9) -> 1132.1342 | I10: =SUM(I4:I9) -> 814.0044898 | K10: =SUM(K4:K9) -> 917.7086618 | L10: =SUM(L4:L9) -> 318.1297102 | M10: 1235.838372 | O10: =SUM(O4:O9) -> 874.3853981 | Q10: =SUM(Q4:Q9) -> 874.3866859 | R10: =SUM(R4:R9) -> 0.00128776
C12: HIPPS code | D12: PDPM case-mix-adjusted per diem | E12: Labor portion | F12: Wage index | G12: Wage index adjusted rate | H12: Non-labor portion | I12: Total case mix and wage index adjustment rate
C13: NHNC1 | D13: =G10 -> 1132.1342 | E13: =D13*Base_Rates!$B$7 -> 814.0044898 | F13: 0.9736 | G13: =E13*F13 -> 792.5147713 | H13: =D13-E13 -> 318.1297102 | I13: =SUM(G13:H13) -> 1110.644481 | P13: NTA Adjustment | Q13: =Q8*2 -> 361.4529739
P14: Calculator with Adjustment | Q14: =+Q10+Q13 -> 1235.83966
C15: Calculator | D15: =G10 -> 1132.1342 | E15: =I10 -> 814.0044898 | F15: =VALUE('FY 2025 SNF PDPM Rates'!D11) -> 1.1274 | G15: =K10 -> 917.7086618 | H15: =L10 -> 318.1297102 | I15: =M10 -> 1235.838372 | P15: Wage index var | Q15: =-G16 -> -125.1938905
C16: Variance ($) | D16: =+D15-D13 -> 0 | E16: 0 | F16: 0.1538 | G16: 125.1938905 | H16: 0 | I16: 125.1938905 | P16: Adjusted total | Q16: =SUM(Q14:Q15) -> 1110.645769
C17: Variance (%) | D17: =+D16/D15 -> 0 | E17: 0 | F17: 0.1364200816 | G17: 0.1364200816 | H17: 0 | I17: 0.1013028025 | P17: Table 10 total | Q17: =I13 -> 1110.644481
P18: Difference | Q18: =+Q16-Q17 -> 0.00128776
B21: Frederick, MD

Sheet Base_Rates (hidden)
B2: Nursing Case-Mix | C2: NTA Case-Mix | D2: PT Case-Mix | E2: OT Case-Mix | F2: SLP Case-Mix | G2: Non-Case-Mix
A3: Urban | B3: 132 | C3: 99.59 | D3: 75.73 | E3: 70.49 | F3: 28.28 | G3: 118.21
A4: Rural | B4: 126.12 | C4: 95.15 | D4: 86.33 | E4: 79.29 | F4: 35.63 | G4: 120.4
A5: Note: Numbers come from Table 3 and Table 4 of FY 2025 final rule
A7: Labor-Related | B7: 0.719 | C7: Table 8
A8: Wage Index | B8: =IFERROR(VALUE('FY 2025 SNF PDPM Rates'!D11),1) -> 1.1274
A9: Labor Adjustment | B9: =+B7*B8 -> 0.8106006
A11: Non-Labor Related | B11: =1-B7 -> 0.281
B22: Nursing Case-Mix | C22: NTA Case-Mix | D22: PT Case-Mix | E22: OT Case-Mix | F22: SLP Case-Mix | G22: Non-Case-Mix
A23: Urban | B23: 127.68 | C23: 96.33 | D23: 73.25 | E23: 68.18 | F23: 27.35 | G23: 114.34
A24: Rural | B24: 121.99 | C24: 92.03 | D24: 83.5 | E24: 76.69 | F24: 34.46 | G24: 116.46
A25: Note: Numbers come from Table 3 and Table 4 of FY 2023 final rule
A27: Labor-Related | B27: 0.72 | C27: Table 7

Sheet Case-Mix_Rates (FY21) (hidden)
A1: HIPPS_Code | B1: PT/OT | C1: PT CMI | D1: PT Urban | E1: PT Rural | F1: OT CMI | G1: OT Urban | H1: OT Rural | I1: SLP | J1: SLP CMI | K1: SLP Urban | L1: SLP Rural | M1: Nursing | N1: Nursing CMI | O1: Nursing Rate Urban | P1: Nursing Rate Rural | Q1: NTA | R1: NTA CMI | S1: NTA Urban | T1: NTA Rural
A2: A | B2: TA | C2: =VLOOKUP($B2,PT!$C$6:$D$21,2,FALSE) -> 1.45 | D2: =$C2*Base_Rates!$D$23 -> 106.2125 | E2: =$C2*Base_Rates!$D$24 -> 121.075 | F2: =VLOOKUP($B2,OT!$C$6:$D$21,2,FALSE) -> 1.41 | G2: =$F2*Base_Rates!$E$23 -> 96.1338 | H2: =$F2*Base_Rates!$E$24 -> 108.1329 | I2: SA | J2: =VLOOKUP($I2,SLP!$C$6:$D$21,2,FALSE) -> 0.64 | K2: =$J2*Base_Rates!$F$23 -> 17.504 | L2: =$J2*Base_Rates!$F$24 -> 22.0544 | M2: ES3 | N2: =VLOOKUP($M2,Nursing!$A$6:$C$36,3,FALSE) -> 3.84 | O2: =$N2*Base_Rates!$B$23 -> 490.2912 | P2: =$N2*Base_Rates!$B$24 -> 468.4416 | Q2: NA | R2: =VLOOKUP($Q2,NTA!$B$6:$C$36,2,FALSE) -> 3.06 | S2: =$R2*Base_Rates!$C$23 -> 294.7698 | T2: =$R2*Base_Rates!$C$24 -> 281.6118
A3: B | B3: TB | C3: =VLOOKUP($B3,PT!$C$6:$D$21,2,FALSE) -> 1.61 | D3: =$C3*Base_Rates!$D$23 -> 117.9325 | E3: =$C3*Base_Rates!$D$24 -> 134.435 | F3: =VLOOKUP($B3,OT!$C$6:$D$21,2,FALSE) -> 1.54 | G3: =$F3*Base_Rates!$E$23 -> 104.9972 | H3: =$F3*Base_Rates!$E$24 -> 118.1026 | I3: SB | J3: =VLOOKUP($I3,SLP!$C$6:$D$21,2,FALSE) -> 1.72 | K3: =$J3*Base_Rates!$F$23 -> 47.042 | L3: =$J3*Base_Rates!$F$24 -> 59.2712 | M3: ES2 | N3: =VLOOKUP($M3,Nursing!$A$6:$C$36,3,FALSE) -> 2.9 | O3: =$N3*Base_Rates!$B$23 -> 370.272 | P3: =$N3*Base_Rates!$B$24 -> 353.771 | Q3: NB | R3: =VLOOKUP($Q3,NTA!$B$6:$C$36,2,FALSE) -> 2.39 | S3: =$R3*Base_Rates!$C$23 -> 230.2287 | T3: =$R3*Base_Rates!$C$24 -> 219.9517
A4: C | B4: TC | C4: =VLOOKUP($B4,PT!$C$6:$D$21,2,FALSE) -> 1.78 | D4: =$C4*Base_Rates!$D$23 -> 130.385 | E4: =$C4*Base_Rates!$D$24 -> 148.63 | F4: =VLOOKUP($B4,OT!$C$6:$D$21,2,FALSE) -> 1.6 | G4: =$F4*Base_Rates!$E$23 -> 109.088 | H4: =$F4*Base_Rates!$E$24 -> 122.704 | I4: SC | J4: =VLOOKUP($I4,SLP!$C$6:$D$21,2,FALSE) -> 2.52 | K4: =$J4*Base_Rates!$F$23 -> 68.922 | L4: =$J4*Base_Rates!$F$24 -> 86.8392 | M4: ES1 | N4: =VLOOKUP($M4,Nursing!$A$6:$C$36,3,FALSE) -> 2.77 | O4: =$N4*Base_Rates!$B$23 -> 353.6736 | P4: =$N4*Base_Rates!$B$24 -> 337.9123 | Q4: NC | R4: =VLOOKUP($Q4,NTA!$B$6:$C$36,2,FALSE) -> 1.74 | S4: =$R4*Base_Rates!$C$23 -> 167.6142 | T4: =$R4*Base_Rates!$C$24 -> 160.1322
A5: D | B5: TD | C5: =VLOOKUP($B5,PT!$C$6:$D$21,2,FALSE) -> 1.81 | D5: =$C5*Base_Rates!$D$23 -> 132.5825 | E5: =$C5*Base_Rates!$D$24 -> 151.135 | F5: =VLOOKUP($B5,OT!$C$6:$D$21,2,FALSE) -> 1.45 | G5: =$F5*Base_Rates!$E$23 -> 98.861 | H5: =$F5*Base_Rates!$E$24 -> 111.2005 | I5: SD | J5: =VLOOKUP($I5,SLP!$C$6:$D$21,2,FALSE) -> 1.38 | K5: =$J5*Base_Rates!$F$23 -> 37.743 | L5: =$J5*Base_Rates!$F$24 -> 47.5548 | M5: HDE2 | N5: =VLOOKUP($M5,Nursing!$A$6:$C$36,3,FALSE) -> 2.27 | O5: =$N5*Base_Rates!$B$23 -> 289.8336 | P5: =$N5*Base_Rates!$B$24 -> 276.9173 | Q5: ND | R5: =VLOOKUP($Q5,NTA!$B$6:$C$36,2,FALSE) -> 1.26 | S5: =$R5*Base_Rates!$C$23 -> 121.3758 | T5: =$R5*Base_Rates!$C$24 -> 115.9578
A6: E | B6: TE | C6: =VLOOKUP($B6,PT!$C$6:$D$21,2,FALSE) -> 1.34 | D6: =$C6*Base_Rates!$D$23 -> 98.155 | E6: =$C6*Base_Rates!$D$24 -> 111.89 | F6: =VLOOKUP($B6,OT!$C$6:$D$21,2,FALSE) -> 1.33 | G6: =$F6*Base_Rates!$E$23 -> 90.6794 | H6: =$F6*Base_Rates!$E$24 -> 101.9977 | I6: SE | J6: =VLOOKUP($I6,SLP!$C$6:$D$21,2,FALSE) -> 2.21 | K6: =$J6*Base_Rates!$F$23 -> 60.4435 | L6: =$J6*Base_Rates!$F$24 -> 76.1566 | M6: HDE1 | N6: =VLOOKUP($M6,Nursing!$A$6:$C$36,3,FALSE) -> 1.88 | O6: =$N6*Base_Rates!$B$23 -> 240.0384 | P6: =$N6*Base_Rates!$B$24 -> 229.3412 | Q6: NE | R6: =VLOOKUP($Q6,NTA!$B$6:$C$36,2,FALSE) -> 0.91 | S6: =$R6*Base_Rates!$C$23 -> 87.6603 | T6: =$R6*Base_Rates!$C$24 -> 83.7473
A7: F | B7: TF | C7: =VLOOKUP($B7,PT!$C$6:$D$21,2,FALSE) -> 1.52 | D7: =$C7*Base_Rates!$D$23 -> 111.34 | E7: =$C7*Base_Rates!$D$24 -> 126.92 | F7: =VLOOKUP($B7,OT!$C$6:$D$21,2,FALSE) -> 1.51 | G7: =$F7*Base_Rates!$E$23 -> 102.9518 | H7: =$F7*Base_Rates!$E$24 -> 115.8019 | I7: SF | J7: =VLOOKUP($I7,SLP!$C$6:$D$21,2,FALSE) -> 2.82 | K7: =$J7*Base_Rates!$F$23 -> 77.127 | L7: =$J7*Base_Rates!$F$24 -> 97.1772 | M7: HBC2 | N7: =VLOOKUP($M7,Nursing!$A$6:$C$36,3,FALSE) -> 2.12 | O7: =$N7*Base_Rates!$B$23 -> 270.6816 | P7: =$N7*Base_Rates!$B$24 -> 258.6188 | Q7: NF | R7: =VLOOKUP($Q7,NTA!$B$6:$C$36,2,FALSE) -> 0.68 | S7: =$R7*Base_Rates!$C$23 -> 65.5044 | T7: =$R7*Base_Rates!$C$24 -> 62.5804
A8: G | B8: TG | C8: =VLOOKUP($B8,PT!$C$6:$D$21,2,FALSE) -> 1.58 | D8: =$C8*Base_Rates!$D$23 -> 115.735 | E8: =$C8*Base_Rates!$D$24 -> 131.93 | F8: =VLOOKUP($B8,OT!$C$6:$D$21,2,FALSE) -> 1.55 | G8: =$F8*Base_Rates!$E$23 -> 105.679 | H8: =$F8*Base_Rates!$E$24 -> 118.8695 | I8: SG | J8: =VLOOKUP($I8,SLP!$C$6:$D$21,2,FALSE) -> 1.93 | K8: =$J8*Base_Rates!$F$23 -> 52.7855 | L8: =$J8*Base_Rates!$F$24 -> 66.5078 | M8: HBC1 | N8: =VLOOKUP($M8,Nursing!$A$6:$C$36,3,FALSE) -> 1.76 | O8: =$N8*Base_Rates!$B$23 -> 224.7168 | P8: =$N8*Base_Rates!$B$24 -> 214.7024
A9: H | B9: TH | C9: =VLOOKUP($B9,PT!$C$6:$D$21,2,FALSE) -> 1.1 | D9: =$C9*Base_Rates!$D$23 -> 80.575 | E9: =$C9*Base_Rates!$D$24 -> 91.85 | F9: =VLOOKUP($B9,OT!$C$6:$D$21,2,FALSE) -> 1.09 | G9: =$F9*Base_Rates!$E$23 -> 74.3162 | H9: =$F9*Base_Rates!$E$24 -> 83.5921 | I9: SH | J9: =VLOOKUP($I9,SLP!$C$6:$D$21,2,FALSE) -> 2.7 | K9: =$J9*Base_Rates!$F$23 -> 73.845 | L9: =$J9*Base_Rates!$F$24 -> 93.042 | M9: LDE2 | N9: =VLOOKUP($M9,Nursing!$A$6:$C$36,3,FALSE) -> 1.97 | O9: =$N9*Base_Rates!$B$23 -> 251.5296 | P9: =$N9*Base_Rates!$B$24 -> 240.3203
A10: I | B10: TI | C10: =VLOOKUP($B10,PT!$C$6:$D$21,2,FALSE) -> 1.07 | D10: =$C10*Base_Rates!$D$23 -> 78.3775 | E10: =$C10*Base_Rates!$D$24 -> 89.345 | F10: =VLOOKUP($B10,OT!$C$6:$D$21,2,FALSE) -> 1.12 | G10: =$F10*Base_Rates!$E$23 -> 76.3616 | H10: =$F10*Base_Rates!$E$24 -> 85.8928 | I10: SI | J10: =VLOOKUP($I10,SLP!$C$6:$D$21,2,FALSE) -> 3.34 | K10: =$J10*Base_Rates!$F$23 -> 91.349 | L10: =$J10*Base_Rates!$F$24 -> 115.0964 | M10: LDE1 | N10: =VLOOKUP($M10,Nursing!$A$6:$C$36,3,FALSE) -> 1.64 | O10: =$N10*Base_Rates!$B$23 -> 209.3952 | P10: =$N10*Base_Rates!$B$24 -> 200.0636
A11: J | B11: TJ | C11: =VLOOKUP($B11,PT!$C$6:$D$21,2,FALSE) -> 1.34 | D11: =$C11*Base_Rates!$D$23 -> 98.155 | E11: =$C11*Base_Rates!$D$24 -> 111.89 | F11: =VLOOKUP($B11,OT!$C$6:$D$21,2,FALSE) -> 1.37 | G11: =$F11*Base_Rates!$E$23 -> 93.4066 | H11: =$F11*Base_Rates!$E$24 -> 105.0653 | I11: SJ | J11: =VLOOKUP($I11,SLP!$C$6:$D$21,2,FALSE) -> 2.83 | K11: =$J11*Base_Rates!$F$23 -> 77.4005 | L11: =$J11*Base_Rates!$F$24 -> 97.5218 | M11: LBC2 | N11: =VLOOKUP($M11,Nursing!$A$6:$C$36,3,FALSE) -> 1.63 | O11: =$N11*Base_Rates!$B$23 -> 208.1184 | P11: =$N11*Base_Rates!$B$24 -> 198.8437
A12: K | B12: TK | C12: =VLOOKUP($B12,PT!$C$6:$D$21,2,FALSE) -> 1.44 | D12: =$C12*Base_Rates!$D$23 -> 105.48 | E12: =$C12*Base_Rates!$D$24 -> 120.24 | F12: =VLOOKUP($B12,OT!$C$6:$D$21,2,FALSE) -> 1.46 | G12: =$F12*Base_Rates!$E$23 -> 99.5428 | H12: =$F12*Base_Rates!$E$24 -> 111.9674 | I12: SK | J12: =VLOOKUP($I12,SLP!$C$6:$D$21,2,FALSE) -> 3.5 | K12: =$J12*Base_Rates!$F$23 -> 95.725 | L12: =$J12*Base_Rates!$F$24 -> 120.61 | M12: LBC1 | N12: =VLOOKUP($M12,Nursing!$A$6:$C$36,3,FALSE) -> 1.35 | O12: =$N12*Base_Rates!$B$23 -> 172.368 | P12: =$N12*Base_Rates!$B$24 -> 164.6865
A13: L | B13: TL | C13: =VLOOKUP($B13,PT!$C$6:$D$21,2,FALSE) -> 1.03 | D13: =$C13*Base_Rates!$D$23 -> 75.4475 | E13: =$C13*Base_Rates!$D$24 -> 86.005 | F13: =VLOOKUP($B13,OT!$C$6:$D$21,2,FALSE) -> 1.05 | G13: =$F13*Base_Rates!$E$23 -> 71.589 | H13: =$F13*Base_Rates!$E$24 -> 80.5245 | I13: SL | J13: =VLOOKUP($I13,SLP!$C$6:$D$21,2,FALSE) -> 3.98 | K13: =$J13*Base_Rates!$F$23 -> 108.853 | L13: =$J13*Base_Rates!$F$24 -> 137.1508 | M13: CDE2 | N13: =VLOOKUP($M13,Nursing!$A$6:$C$36,3,FALSE) -> 1.77 | O13: =$N13*Base_Rates!$B$23 -> 225.9936 | P13: =$N13*Base_Rates!$B$24 -> 215.9223
A14: M | B14: TM | C14: =VLOOKUP($B14,PT!$C$6:$D$21,2,FALSE) -> 1.2 | D14: =$C14*Base_Rates!$D$23 -> 87.9 | E14: =$C14*Base_Rates!$D$24 -> 100.2 | F14: =VLOOKUP($B14,OT!$C$6:$D$21,2,FALSE) -> 1.23 | G14: =$F14*Base_Rates!$E$23 -> 83.8614 | H14: =$F14*Base_Rates!$E$24 -> 94.3287 | I14: ="" ->  | M14: CDE1 | N14: =VLOOKUP($M14,Nursing!$A$6:$C$36,3,FALSE) -> 1.53 | O14: =$N14*Base_Rates!$B$23 -> 195.3504 | P14: =$N14*Base_Rates!$B$24 -> 186.6447
A15: N | B15: TN | C15: =VLOOKUP($B15,PT!$C$6:$D$21,2,FALSE) -> 1.4 | D15: =$C15*Base_Rates!$D$23 -> 102.55 | E15: =$C15*Base_Rates!$D$24 -> 116.9 | F15: =VLOOKUP($B15,OT!$C$6:$D$21,2,FALSE) -> 1.42 | G15: =$F15*Base_Rates!$E$23 -> 96.8156 | H15: =$F15*Base_Rates!$E$24 -> 108.8998 | M15: CBC2 | N15: =VLOOKUP($M15,Nursing!$A$6:$C$36,3,FALSE) -> 1.47 | O15: =$N15*Base_Rates!$B$23 -> 187.6896 | P15: =$N15*Base_Rates!$B$24 -> 179.3253
A16: O | B16: TO | C16: =VLOOKUP($B16,PT!$C$6:$D$21,2,FALSE) -> 1.47 | D16: =$C16*Base_Rates!$D$23 -> 107.6775 | E16: =$C16*Base_Rates!$D$24 -> 122.745 | F16: =VLOOKUP($B16,OT!$C$6:$D$21,2,FALSE) -> 1.47 | G16: =$F16*Base_Rates!$E$23 -> 100.2246 | H16: =$F16*Base_Rates!$E$24 -> 112.7343 | M16: CA2 | N16: =VLOOKUP($M16,Nursing!$A$6:$C$36,3,FALSE) -> 1.03 | O16: =$N16*Base_Rates!$B$23 -> 131.5104 | P16: =$N16*Base_Rates!$B$24 -> 125.6497
A17: P | B17: TP | C17: =VLOOKUP($B17,PT!$C$6:$D$21,2,FALSE) -> 1.02 | D17: =$C17*Base_Rates!$D$23 -> 74.715 | E17: =$C17*Base_Rates!$D$24 -> 85.17 | F17: =VLOOKUP($B17,OT!$C$6:$D$21,2,FALSE) -> 1.03 | G17: =$F17*Base_Rates!$E$23 -> 70.2254 | H17: =$F17*Base_Rates!$E$24 -> 78.9907 | M17: CBC1 | N17: =VLOOKUP($M17,Nursing!$A$6:$C$36,3,FALSE) -> 1.27 | O17: =$N17*Base_Rates!$B$23 -> 162.1536 | P17: =$N17*Base_Rates!$B$24 -> 154.9273
A18: Q | B18: ="" ->  | M18: CA1 | N18: =VLOOKUP($M18,Nursing!$A$6:$C$36,3,FALSE) -> 0.89 | O18: =$N18*Base_Rates!$B$23 -> 113.6352 | P18: =$N18*Base_Rates!$B$24 -> 108.5711
A19: R | M19: BAB2 | N19: =VLOOKUP($M19,Nursing!$A$6:$C$36,3,FALSE) -> 0.98 | O19: =$N19*Base_Rates!$B$23 -> 125.1264 | P19: =$N19*Base_Rates!$B$24 -> 119.5502
A20: S | M20: BAB1 | N20: =VLOOKUP($M20,Nursing!$A$6:$C$36,3,FALSE) -> 0.94 | O20: =$N20*Base_Rates!$B$23 -> 120.0192 | P20: =$N20*Base_Rates!$B$24 -> 114.6706
A21: T | M21: PDE2 | N21: =VLOOKUP($M21,Nursing!$A$6:$C$36,3,FALSE) -> 1.48 | O21: =$N21*Base_Rates!$B$23 -> 188.9664 | P21: =$N21*Base_Rates!$B$24 -> 180.5452
A22: U | M22: PDE1 | N22: =VLOOKUP($M22,Nursing!$A$6:$C$36,3,FALSE) -> 1.39 | O22: =$N22*Base_Rates!$B$23 -> 177.4752 | P22: =$N22*Base_Rates!$B$24 -> 169.5661
A23: V | M23: PBC2 | N23: =VLOOKUP($M23,Nursing!$A$6:$C$36,3,FALSE) -> 1.15 | O23: =$N23*Base_Rates!$B$23 -> 146.832 | P23: =$N23*Base_Rates!$B$24 -> 140.2885
A24: W | M24: PA2 | N24: =VLOOKUP($M24,Nursing!$A$6:$C$36,3,FALSE) -> 0.67 | O24: =$N24*Base_Rates!$B$23 -> 85.5456 | P24: =$N24*Base_Rates!$B$24 -> 81.7333
A25: X | M25: PBC1 | N25: =VLOOKUP($M25,Nursing!$A$6:$C$36,3,FALSE) -> 1.07 | O25: =$N25*Base_Rates!$B$23 -> 136.6176 | P25: =$N25*Base_Rates!$B$24 -> 130.5293
A26: Y | M26: PA1 | N26: =VLOOKUP($M26,Nursing!$A$6:$C$36,3,FALSE) -> 0.62 | O26: =$N26*Base_Rates!$B$23 -> 79.1616 | P26: =$N26*Base_Rates!$B$24 -> 75.6338
M27: ="" -> 

Sheet Comparison (hidden)
B2: PT | C2: PT CMI | D2: PT Urban Rates | F2: PT Urban Rate Change | H2: OT | I2: OT CMI | J2: OT Urban Rates | L2: OT Urban Rate Change | N2: SLP | O2: SLP CMI | P2: SLP Urban Rates | R2: SLP Urban Rate Change | T2: Nursing | U2: Nursing CMI | V2: Nursing Urban Rates | X2: Nursing Urban Rate Change | Z2: NTA | AA2: NTA CMI | AB2: NTA Urban Rates | AD2: NTA Urban Rate Change
B3: CMG | C3: FY21 | D3: FY22 | E3: FY21 | F3: FY22 vs FY21 | H3: CMG | I3: FY21 | J3: FY22 | K3: FY21 | L3: FY22 vs FY21 | N3: CMG | O3: FY21 | P3: FY22 | Q3: FY21 | R3: FY22 vs FY21 | T3: CMG | U3: FY21 | V3: FY22 | W3: FY21 | X3: FY22 vs FY21 | Z3: CMG | AA3: FY21 | AB3: FY22 | AC3: FY21 | AD3: FY22 vs FY21
B4: TA | C4: ='Case-Mix_Rates'!$C2 -> 1.45 | D4: ='Case-Mix_Rates'!$D2 -> 109.8085 | E4: ='Case-Mix_Rates (FY21)'!$D2 -> 106.2125 | F4: =+D4-E4 -> 3.596 | H4: TA | I4: ='Case-Mix_Rates'!$C2 -> 1.45 | J4: ='Case-Mix_Rates'!$G2 -> 99.3909 | K4: ='Case-Mix_Rates (FY21)'!$G2 -> 96.1338 | L4: =+J4-K4 -> 3.2571 | N4: SA | O4: ='Case-Mix_Rates'!$J2 -> 0.64 | P4: ='Case-Mix_Rates'!$K2 -> 18.0992 | Q4: ='Case-Mix_Rates (FY21)'!$K2 -> 17.504 | R4: =+P4-Q4 -> 0.5952 | T4: ES3 | U4: ='Case-Mix_Rates'!$N2 -> 3.84 | V4: ='Case-Mix_Rates'!$O2 -> 506.88 | W4: ='Case-Mix_Rates (FY21)'!$O2 -> 490.2912 | X4: =+V4-W4 -> 16.5888 | Z4: NA | AA4: ='Case-Mix_Rates'!$R2 -> 3.06 | AB4: ='Case-Mix_Rates'!$S2 -> 304.7454 | AC4: ='Case-Mix_Rates (FY21)'!$S2 -> 294.7698 | AD4: =+AB4-AC4 -> 9.9756
B5: TB | C5: ='Case-Mix_Rates'!$C3 -> 1.61 | D5: ='Case-Mix_Rates'!$D3 -> 121.9253 | E5: ='Case-Mix_Rates (FY21)'!$D3 -> 117.9325 | F5: =+D5-E5 -> 3.9928 | H5: TB | I5: ='Case-Mix_Rates'!$C3 -> 1.61 | J5: ='Case-Mix_Rates'!$G3 -> 108.5546 | K5: ='Case-Mix_Rates (FY21)'!$G3 -> 104.9972 | L5: =+J5-K5 -> 3.5574 | N5: SB | O5: ='Case-Mix_Rates'!$J3 -> 1.72 | P5: ='Case-Mix_Rates'!$K3 -> 48.6416 | Q5: ='Case-Mix_Rates (FY21)'!$K3 -> 47.042 | R5: =+P5-Q5 -> 1.5996 | T5: ES2 | U5: ='Case-Mix_Rates'!$N3 -> 2.9 | V5: ='Case-Mix_Rates'!$O3 -> 382.8 | W5: ='Case-Mix_Rates (FY21)'!$O3 -> 370.272 | X5: =+V5-W5 -> 12.528 | Z5: NB | AA5: ='Case-Mix_Rates'!$R3 -> 2.39 | AB5: ='Case-Mix_Rates'!$S3 -> 238.0201 | AC5: ='Case-Mix_Rates (FY21)'!$S3 -> 230.2287 | AD5: 7.7914
B6: TC | C6: ='Case-Mix_Rates'!$C4 -> 1.78 | D6: ='Case-Mix_Rates'!$D4 -> 134.7994 | E6: ='Case-Mix_Rates (FY21)'!$D4 -> 130.385 | F6: =+D6-E6 -> 4.4144 | H6: TC | I6: ='Case-Mix_Rates'!$C4 -> 1.78 | J6: ='Case-Mix_Rates'!$G4 -> 112.784 | K6: ='Case-Mix_Rates (FY21)'!$G4 -> 109.088 | L6: =+J6-K6 -> 3.696 | N6: SC | O6: ='Case-Mix_Rates'!$J4 -> 2.52 | P6: ='Case-Mix_Rates'!$K4 -> 71.2656 | Q6: ='Case-Mix_Rates (FY21)'!$K4 -> 68.922 | R6: =+P6-Q6 -> 2.3436 | T6: ES1 | U6: ='Case-Mix_Rates'!$N4 -> 2.77 | V6: ='Case-Mix_Rates'!$O4 -> 365.64 | W6: ='Case-Mix_Rates (FY21)'!$O4 -> 353.6736 | X6: =+V6-W6 -> 11.9664 | Z6: NC | AA6: ='Case-Mix_Rates'!$R4 -> 1.74 | AB6: ='Case-Mix_Rates'!$S4 -> 173.2866 | AC6: ='Case-Mix_Rates (FY21)'!$S4 -> 167.6142 | AD6: 5.6724
B7: TD | C7: ='Case-Mix_Rates'!$C5 -> 1.81 | D7: ='Case-Mix_Rates'!$D5 -> 137.0713 | E7: ='Case-Mix_Rates (FY21)'!$D5 -> 132.5825 | F7: 4.4888 | H7: TD | I7: ='Case-Mix_Rates'!$C5 -> 1.81 | J7: ='Case-Mix_Rates'!$G5 -> 102.2105 | K7: ='Case-Mix_Rates (FY21)'!$G5 -> 98.861 | L7: 3.3495 | N7: SD | O7: ='Case-Mix_Rates'!$J5 -> 1.38 | P7: ='Case-Mix_Rates'!$K5 -> 39.0264 | Q7: ='Case-Mix_Rates (FY21)'!$K5 -> 37.743 | R7: 1.2834 | T7: HDE2 | U7: ='Case-Mix_Rates'!$N5 -> 2.27 | V7: ='Case-Mix_Rates'!$O5 -> 299.64 | W7: ='Case-Mix_Rates (FY21)'!$O5 -> 289.8336 | X7: 9.8064 | Z7: ND | AA7: ='Case-Mix_Rates'!$R5 -> 1.26 | AB7: ='Case-Mix_Rates'!$S5 -> 125.4834 | AC7: ='Case-Mix_Rates (FY21)'!$S5 -> 121.3758 | AD7: 4.1076
B8: TE | C8: ='Case-Mix_Rates'!$C6 -> 1.34 | D8: ='Case-Mix_Rates'!$D6 -> 101.4782 | E8: ='Case-Mix_Rates (FY21)'!$D6 -> 98.155 | F8: 3.3232 | H8: TE | I8: ='Case-Mix_Rates'!$C6 -> 1.34 | J8: ='Case-Mix_Rates'!$G6 -> 93.7517 | K8: ='Case-Mix_Rates (FY21)'!$G6 -> 90.6794 | L8: 3.0723 | N8: SE | O8: ='Case-Mix_Rates'!$J6 -> 2.21 | P8: ='Case-Mix_Rates'!$K6 -> 62.4988 | Q8: ='Case-Mix_Rates (FY21)'!$K6 -> 60.4435 | R8: 2.0553 | T8: HDE1 | U8: ='Case-Mix_Rates'!$N6 -> 1.88 | V8: ='Case-Mix_Rates'!$O6 -> 248.16 | W8: ='Case-Mix_Rates (FY21)'!$O6 -> 240.0384 | X8: 8.1216 | Z8: NE | AA8: ='Case-Mix_Rates'!$R6 -> 0.91 | AB8: ='Case-Mix_Rates'!$S6 -> 90.6269 | AC8: ='Case-Mix_Rates (FY21)'!$S6 -> 87.6603 | AD8: 2.9666
B9: TF | C9: ='Case-Mix_Rates'!$C7 -> 1.52 | D9: ='Case-Mix_Rates'!$D7 -> 115.1096 | E9: ='Case-Mix_Rates (FY21)'!$D7 -> 111.34 | F9: 3.7696 | H9: TF | I9: ='Case-Mix_Rates'!$C7 -> 1.52 | J9: ='Case-Mix_Rates'!$G7 -> 106.4399 | K9: ='Case-Mix_Rates (FY21)'!$G7 -> 102.9518 | L9: 3.4881 | N9: SF | O9: ='Case-Mix_Rates'!$J7 -> 2.82 | P9: ='Case-Mix_Rates'!$K7 -> 79.7496 | Q9: ='Case-Mix_Rates (FY21)'!$K7 -> 77.127 | R9: 2.6226 | T9: HBC2 | U9: ='Case-Mix_Rates'!$N7 -> 2.12 | V9: ='Case-Mix_Rates'!$O7 -> 279.84 | W9: ='Case-Mix_Rates (FY21)'!$O7 -> 270.6816 | X9: 9.1584 | Z9: NF | AA9: ='Case-Mix_Rates'!$R7 -> 0.68 | AB9: ='Case-Mix_Rates'!$S7 -> 67.7212 | AC9: ='Case-Mix_Rates (FY21)'!$S7 -> 65.5044 | AD9: 2.2168
B10: TG | C10: ='Case-Mix_Rates'!$C8 -> 1.58 | D10: ='Case-Mix_Rates'!$D8 -> 119.6534 | E10: ='Case-Mix_Rates (FY21)'!$D8 -> 115.735 | F10: 3.9184 | H10: TG | I10: ='Case-Mix_Rates'!$C8 -> 1.58 | J10: ='Case-Mix_Rates'!$G8 -> 109.2595 | K10: ='Case-Mix_Rates (FY21)'!$G8 -> 105.679 | L10: 3.5805 | N10: SG | O10: ='Case-Mix_Rates'!$J8 -> 1.93 | P10: ='Case-Mix_Rates'!$K8 -> 54.5804 | Q10: ='Case-Mix_Rates (FY21)'!$K8 -> 52.7855 | R10: 1.7949 | T10: HBC1 | U10: ='Case-Mix_Rates'!$N8 -> 1.76 | V10: ='Case-Mix_Rates'!$O8 -> 232.32 | W10: ='Case-Mix_Rates (FY21)'!$O8 -> 224.7168 | X10: 7.6032
B11: TH | C11: ='Case-Mix_Rates'!$C9 -> 1.1 | D11: ='Case-Mix_Rates'!$D9 -> 83.303 | E11: ='Case-Mix_Rates (FY21)'!$D9 -> 80.575 | F11: 2.728 | H11: TH | I11: ='Case-Mix_Rates'!$C9 -> 1.1 | J11: ='Case-Mix_Rates'!$G9 -> 76.8341 | K11: ='Case-Mix_Rates (FY21)'!$G9 -> 74.3162 | L11: 2.5179 | N11: SH | O11: ='Case-Mix_Rates'!$J9 -> 2.7 | P11: ='Case-Mix_Rates'!$K9 -> 76.356 | Q11: ='Case-Mix_Rates (FY21)'!$K9 -> 73.845 | R11: 2.511 | T11: LDE2 | U11: ='Case-Mix_Rates'!$N9 -> 1.97 | V11: ='Case-Mix_Rates'!$O9 -> 260.04 | W11: ='Case-Mix_Rates (FY21)'!$O9 -> 251.5296 | X11: 8.5104
B12: TI | C12: ='Case-Mix_Rates'!$C10 -> 1.07 | D12: ='Case-Mix_Rates'!$D10 -> 81.0311 | E12: ='Case-Mix_Rates (FY21)'!$D10 -> 78.3775 | F12: 2.6536 | H12: TI | I12: ='Case-Mix_Rates'!$C10 -> 1.07 | J12: ='Case-Mix_Rates'!$G10 -> 78.9488 | K12: ='Case-Mix_Rates (FY21)'!$G10 -> 76.3616 | L12: 2.5872 | N12: SI | O12: ='Case-Mix_Rates'!$J10 -> 3.34 | P12: ='Case-Mix_Rates'!$K10 -> 94.4552 | Q12: ='Case-Mix_Rates (FY21)'!$K10 -> 91.349 | R12: 3.1062 | T12: LDE1 | U12: ='Case-Mix_Rates'!$N10 -> 1.64 | V12: ='Case-Mix_Rates'!$O10 -> 216.48 | W12: ='Case-Mix_Rates (FY21)'!$O10 -> 209.3952 | X12: 7.0848
B13: TJ | C13: ='Case-Mix_Rates'!$C11 -> 1.34 | D13: ='Case-Mix_Rates'!$D11 -> 101.4782 | E13: ='Case-Mix_Rates (FY21)'!$D11 -> 98.155 | F13: 3.3232 | H13: TJ | I13: ='Case-Mix_Rates'!$C11 -> 1.34 | J13: ='Case-Mix_Rates'!$G11 -> 96.5713 | K13: ='Case-Mix_Rates (FY21)'!$G11 -> 93.4066 | L13: 3.1647 | N13: SJ | O13: ='Case-Mix_Rates'!$J11 -> 2.83 | P13: ='Case-Mix_Rates'!$K11 -> 80.0324 | Q13: ='Case-Mix_Rates (FY21)'!$K11 -> 77.4005 | R13: 2.6319 | T13: LBC2 | U13: ='Case-Mix_Rates'!$N11 -> 1.63 | V13: ='Case-Mix_Rates'!$O11 -> 215.16 | W13: ='Case-Mix_Rates (FY21)'!$O11 -> 208.1184 | X13: 7.0416
B14: TK | C14: ='Case-Mix_Rates'!$C12 -> 1.44 | D14: ='Case-Mix_Rates'!$D12 -> 109.0512 | E14: ='Case-Mix_Rates (FY21)'!$D12 -> 105.48 | F14: 3.5712 | H14: TK | I14: ='Case-Mix_Rates'!$C12 -> 1.44 | J14: ='Case-Mix_Rates'!$G12 -> 102.9154 | K14: ='Case-Mix_Rates (FY21)'!$G12 -> 99.5428 | L14: 3.3726 | N14: SK | O14: ='Case-Mix_Rates'!$J12 -> 3.5 | P14: ='Case-Mix_Rates'!$K12 -> 98.98 | Q14: ='Case-Mix_Rates (FY21)'!$K12 -> 95.725 | R14: 3.255 | T14: LBC1 | U14: ='Case-Mix_Rates'!$N12 -> 1.35 | V14: ='Case-Mix_Rates'!$O12 -> 178.2 | W14: ='Case-Mix_Rates (FY21)'!$O12 -> 172.368 | X14: 5.832
B15: TL | C15: ='Case-Mix_Rates'!$C13 -> 1.03 | D15: ='Case-Mix_Rates'!$D13 -> 78.0019 | E15: ='Case-Mix_Rates (FY21)'!$D13 -> 75.4475 | F15: 2.5544 | H15: TL | I15: ='Case-Mix_Rates'!$C13 -> 1.03 | J15: ='Case-Mix_Rates'!$G13 -> 74.0145 | K15: ='Case-Mix_Rates (FY21)'!$G13 -> 71.589 | L15: 2.4255 | N15: SL | O15: ='Case-Mix_Rates'!$J13 -> 3.98 | P15: ='Case-Mix_Rates'!$K13 -> 112.5544 | Q15: ='Case-Mix_Rates (FY21)'!$K13 -> 108.853 | R15: =+P15-Q15 -> 3.7014 | T15: CDE2 | U15: ='Case-Mix_Rates'!$N13 -> 1.77 | V15: ='Case-Mix_Rates'!$O13 -> 233.64 | W15: ='Case-Mix_Rates (FY21)'!$O13 -> 225.9936 | X15: 7.6464
B16: TM | C16: ='Case-Mix_Rates'!$C14 -> 1.2 | D16: ='Case-Mix_Rates'!$D14 -> 90.876 | E16: ='Case-Mix_Rates (FY21)'!$D14 -> 87.9 | F16: 2.976 | H16: TM | I16: ='Case-Mix_Rates'!$C14 -> 1.2 | J16: ='Case-Mix_Rates'!$G14 -> 86.7027 | K16: ='Case-Mix_Rates (FY21)'!$G14 -> 83.8614 | L16: 2.8413 | T16: CDE1 | U16: ='Case-Mix_Rates'!$N14 -> 1.53 | V16: ='Case-Mix_Rates'!$O14 -> 201.96 | W16: ='Case-Mix_Rates (FY21)'!$O14 -> 195.3504 | X16: 6.6096
B17: TN | C17: ='Case-Mix_Rates'!$C15 -> 1.4 | D17: ='Case-Mix_Rates'!$D15 -> 106.022 | E17: ='Case-Mix_Rates (FY21)'!$D15 -> 102.55 | F17: 3.472 | H17: TN | I17: ='Case-Mix_Rates'!$C15 -> 1.4 | J17: ='Case-Mix_Rates'!$G15 -> 100.0958 | K17: ='Case-Mix_Rates (FY21)'!$G15 -> 96.8156 | L17: 3.2802 | T17: CBC2 | U17: ='Case-Mix_Rates'!$N15 -> 1.47 | V17: ='Case-Mix_Rates'!$O15 -> 194.04 | W17: ='Case-Mix_Rates (FY21)'!$O15 -> 187.6896 | X17: 6.3504
B18: TO | C18: ='Case-Mix_Rates'!$C16 -> 1.47 | D18: ='Case-Mix_Rates'!$D16 -> 111.3231 | E18: ='Case-Mix_Rates (FY21)'!$D16 -> 107.6775 | F18: 3.6456 | H18: TO | I18: ='Case-Mix_Rates'!$C16 -> 1.47 | J18: ='Case-Mix_Rates'!$G16 -> 103.6203 | K18: ='Case-Mix_Rates (FY21)'!$G16 -> 100.2246 | L18: 3.3957 | T18: CA2 | U18: ='Case-Mix_Rates'!$N16 -> 1.03 | V18: ='Case-Mix_Rates'!$O16 -> 135.96 | W18: ='Case-Mix_Rates (FY21)'!$O16 -> 131.5104 | X18: 4.4496
B19: TP | C19: ='Case-Mix_Rates'!$C17 -> 1.02 | D19: ='Case-Mix_Rates'!$D17 -> 77.2446 | E19: ='Case-Mix_Rates (FY21)'!$D17 -> 74.715 | F19: =+D19-E19 -> 2.5296 | H19: TP | I19: ='Case-Mix_Rates'!$C17 -> 1.02 | J19: ='Case-Mix_Rates'!$G17 -> 72.6047 | K19: ='Case-Mix_Rates (FY21)'!$G17 -> 70.2254 | L19: =+J19-K19 -> 2.3793 | T19: CBC1 | U19: ='Case-Mix_Rates'!$N17 -> 1.27 | V19: ='Case-Mix_Rates'!$O17 -> 167.64 | W19: ='Case-Mix_Rates (FY21)'!$O17 -> 162.1536 | X19: 5.4864
T20: CA1 | U20: ='Case-Mix_Rates'!$N18 -> 0.89 | V20: ='Case-Mix_Rates'!$O18 -> 117.48 | W20: ='Case-Mix_Rates (FY21)'!$O18 -> 113.6352 | X20: 3.8448
T21: BAB2 | U21: ='Case-Mix_Rates'!$N19 -> 0.98 | V21: ='Case-Mix_Rates'!$O19 -> 129.36 | W21: ='Case-Mix_Rates (FY21)'!$O19 -> 125.1264 | X21: 4.2336
T22: BAB1 | U22: ='Case-Mix_Rates'!$N20 -> 0.94 | V22: ='Case-Mix_Rates'!$O20 -> 124.08 | W22: ='Case-Mix_Rates (FY21)'!$O20 -> 120.0192 | X22: 4.0608
T23: PDE2 | U23: ='Case-Mix_Rates'!$N21 -> 1.48 | V23: ='Case-Mix_Rates'!$O21 -> 195.36 | W23: ='Case-Mix_Rates (FY21)'!$O21 -> 188.9664 | X23: 6.3936
T24: PDE1 | U24: ='Case-Mix_Rates'!$N22 -> 1.39 | V24: ='Case-Mix_Rates'!$O22 -> 183.48 | W24: ='Case-Mix_Rates (FY21)'!$O22 -> 177.4752 | X24: 6.0048
T25: PBC2 | U25: ='Case-Mix_Rates'!$N23 -> 1.15 | V25: ='Case-Mix_Rates'!$O23 -> 151.8 | W25: ='Case-Mix_Rates (FY21)'!$O23 -> 146.832 | X25: 4.968
T26: PA2 | U26: ='Case-Mix_Rates'!$N24 -> 0.67 | V26: ='Case-Mix_Rates'!$O24 -> 88.44 | W26: ='Case-Mix_Rates (FY21)'!$O24 -> 85.5456 | X26: 2.8944
T27: PBC1 | U27: ='Case-Mix_Rates'!$N25 -> 1.07 | V27: ='Case-Mix_Rates'!$O25 -> 141.24 | W27: ='Case-Mix_Rates (FY21)'!$O25 -> 136.6176 | X27: 4.6224
T28: PA1 | U28: ='Case-Mix_Rates'!$N26 -> 0.62 | V28: ='Case-Mix_Rates'!$O26 -> 81.84 | W28: ='Case-Mix_Rates (FY21)'!$O26 -> 79.1616 | X28: =+V28-W28 -> 2.6784

Sheet PT_Analysis (hidden)
B2: PT Component
N3: Function Score
B4: Clinical Category | C4: Function Score | D4: PT Case Mix Group | E4: Function Score Code | F4: CMI | G4: Rate | H4: Marginal Risk | I4: Per 100 Days | J4: Per 1,000 Days | K4: Per 2,000 Days | M4: Clinical Category | N4: 0 to 5 | O4: 6 to 9 | P4: 10 to 23 | Q4: 24
B5: Major Joint Replacement or Spinal Surgery | C5: 0 to 5 | D5: TA | E5: =RIGHT(D5,1) -> A | F5: 1.53 | G5: =VLOOKUP(D5,'Case-Mix_Rates'!$B$2:$D$17,3,FALSE) -> 109.8085 | H5: =+G6-G5 -> 12.1168 | I5: =+$H5*100 -> 1211.68 | J5: =+$H5*1000 -> 12116.8 | K5: =+$H5*2000 -> 24233.6 | M5: Major Joint Replacement or Spinal Surgery | N5: 1.53 | O5: 1.69 | P5: 1.88 | Q5: 1.92
B6: Major Joint Replacement or Spinal Surgery | C6: 6 to 9 | D6: TB | E6: =RIGHT(D6,1) -> B | F6: 1.69 | G6: =VLOOKUP(D6,'Case-Mix_Rates'!$B$2:$D$17,3,FALSE) -> 121.9253 | H6: =+G7-G6 -> 12.8741 | I6: =+$H6*100 -> 1287.41 | J6: =+$H6*1000 -> 12874.1 | K6: =+$H6*2000 -> 25748.2 | M6: Other Orthopedic | N6: 1.42 | O6: 1.61 | P6: 1.67 | Q6: 1.16
B7: Major Joint Replacement or Spinal Surgery | C7: 10 to 23 | D7: TC | E7: =RIGHT(D7,1) -> C | F7: 1.88 | G7: =VLOOKUP(D7,'Case-Mix_Rates'!$B$2:$D$17,3,FALSE) -> 134.7994 | H7: =+G8-G7 -> 2.2719 | I7: =+$H7*100 -> 227.19 | J7: =+$H7*1000 -> 2271.9 | K7: 4543.8 | M7: Medical Management | N7: 1.13 | O7: 1.42 | P7: 1.52 | Q7: 1.09
B8: Major Joint Replacement or Spinal Surgery | C8: 24 | D8: TD | E8: =RIGHT(D8,1) -> D | F8: 1.92 | G8: =VLOOKUP(D8,'Case-Mix_Rates'!$B$2:$D$17,3,FALSE) -> 137.0713 | H8: =+G8-G8 -> 0 | I8: =+$H8*100 -> 0 | J8: =+$H8*1000 -> 0 | K8: 0 | M8: Non-Orthopedic Surgery and Acute Neurologic | N8: 1.27 | O8: 1.48 | P8: 1.55 | Q8: 1.08
M9: Return to Provider
B10: Other Orthopedic | C10: 0 to 5 | D10: TE | E10: =RIGHT(D10,1) -> E | F10: 1.42 | G10: =VLOOKUP(D10,'Case-Mix_Rates'!$B$2:$D$17,3,FALSE) -> 101.4782 | H10: =+G11-G10 -> 13.6314 | I10: =+$H10*100 -> 1363.14 | J10: =+$H10*1000 -> 13631.4 | K10: =+$H10*2000 -> 27262.8 | M10: ="" -> 
B11: Other Orthopedic | C11: 6 to 9 | D11: TF | E11: =RIGHT(D11,1) -> F | F11: 1.61 | G11: =VLOOKUP(D11,'Case-Mix_Rates'!$B$2:$D$17,3,FALSE) -> 115.1096 | H11: =+G12-G11 -> 4.5438 | I11: =+$H11*100 -> 454.38 | J11: =+$H11*1000 -> 4543.8 | K11: =+$H11*2000 -> 9087.6
B12: Other Orthopedic | C12: 10 to 23 | D12: TG | E12: =RIGHT(D12,1) -> G | F12: 1.67 | G12: =VLOOKUP(D12,'Case-Mix_Rates'!$B$2:$D$17,3,FALSE) -> 119.6534 | H12: =+G12-G12 -> 0 | I12: =+$H12*100 -> 0 | J12: =+$H12*1000 -> 0 | K12: 0
B13: Other Orthopedic | C13: 24 | D13: TH | E13: =RIGHT(D13,1) -> H | F13: 1.16 | G13: =VLOOKUP(D13,'Case-Mix_Rates'!$B$2:$D$17,3,FALSE) -> 83.303 | H13: =+G10-G13 -> 18.1752 | I13: =+$H13*100 -> 1817.52 | J13: =+$H13*1000 -> 18175.2 | K13: 36350.4
B15: Medical Management | C15: 0 to 5 | D15: TI | E15: =RIGHT(D15,1) -> I | F15: 1.13 | G15: =VLOOKUP(D15,'Case-Mix_Rates'!$B$2:$D$17,3,FALSE) -> 81.0311 | H15: =G16-G15 -> 20.4471 | I15: =+$H15*100 -> 2044.71 | J15: =+$H15*1000 -> 20447.1 | K15: =+$H15*2000 -> 40894.2
B16: Medical Management | C16: 6 to 9 | D16: TJ | E16: =RIGHT(D16,1) -> J | F16: 1.42 | G16: =VLOOKUP(D16,'Case-Mix_Rates'!$B$2:$D$17,3,FALSE) -> 101.4782 | H16: =G17-G16 -> 7.573 | I16: =+$H16*100 -> 757.3 | J16: =+$H16*1000 -> 7573 | K16: =+$H16*2000 -> 15146
B17: Medical Management | C17: 10 to 23 | D17: TK | E17: =RIGHT(D17,1) -> K | F17: 1.52 | G17: =VLOOKUP(D17,'Case-Mix_Rates'!$B$2:$D$17,3,FALSE) -> 109.0512 | H17: =G17-G17 -> 0 | I17: =+$H17*100 -> 0 | J17: =+$H17*1000 -> 0 | K17: 0
B18: Medical Management | C18: 24 | D18: TL | E18: =RIGHT(D18,1) -> L | F18: 1.09 | G18: =VLOOKUP(D18,'Case-Mix_Rates'!$B$2:$D$17,3,FALSE) -> 78.0019 | H18: =G15-G18 -> 3.0292 | I18: =+$H18*100 -> 302.92 | J18: =+$H18*1000 -> 3029.2 | K18: 6058.4
B20: Non-Orthopedic Surgery and Acute Neurologic | C20: 0 to 5 | D20: TM | E20: =RIGHT(D20,1) -> M | F20: 1.27 | G20: =VLOOKUP(D20,'Case-Mix_Rates'!$B$2:$D$17,3,FALSE) -> 90.876 | H20: =+G21-G20 -> 15.146 | I20: =+$H20*100 -> 1514.6 | J20: =+$H20*1000 -> 15146 | K20: =+$H20*2000 -> 30292
B21: Non-Orthopedic Surgery and Acute Neurologic | C21: 6 to 9 | D21: TN | E21: =RIGHT(D21,1) -> N | F21: 1.48 | G21: =VLOOKUP(D21,'Case-Mix_Rates'!$B$2:$D$17,3,FALSE) -> 106.022 | H21: =+G22-G21 -> 5.3011 | I21: =+$H21*100 -> 530.11 | J21: =+$H21*1000 -> 5301.1 | K21: =+$H21*2000 -> 10602.2
B22: Non-Orthopedic Surgery and Acute Neurologic | C22: 10 to 23 | D22: TO | E22: =RIGHT(D22,1) -> O | F22: 1.55 | G22: =VLOOKUP(D22,'Case-Mix_Rates'!$B$2:$D$17,3,FALSE) -> 111.3231 | H22: =+G22-G22 -> 0 | I22: =+$H22*100 -> 0 | J22: =+$H22*1000 -> 0 | K22: 0
B23: Non-Orthopedic Surgery and Acute Neurologic | C23: 24 | D23: TP | E23: =RIGHT(D23,1) -> P | F23: 1.08 | G23: =VLOOKUP(D23,'Case-Mix_Rates'!$B$2:$D$17,3,FALSE) -> 77.2446 | H23: =+G20-G23 -> 13.6314 | I23: =+$H23*100 -> 1363.14 | J23: =+$H23*1000 -> 13631.4 | K23: 27262.8
B25: Functional Abilities and Goals | C25: (increasing score means increasing independence)
B27: Self-Care: Eating | C27: 0 to 4 | F27: (Affects Nursing)
B29: Self-Care: Oral Hygiene | C29: 0 to 4 | F29: (Therapy only)
B31: Self-Care: Toileting Hygiene | C31: 0 to 4 | F31: (Affects Nursing)
B33: Mobility: Sit to Lying | C33: 0 to 4 | F33: (Affects Nursing)
B34: Mobility: Lying to Sitting on side of bed | C34: (average of 2 items)
B36: Mobility: Sit to Stand | C36: 0 to 4 | F36: (Affects Nursing)
B37: Mobility: Chair/bed-to-chair transfer | C37: (average of 3 items)
B38: Mobility: Toilet Transfer
B40: Mobility: Walk 50 feet with 2 turns | C40: 0 to 4 | F40: (Therapy only)
B41: Mobility: Walk 150 feet | C41: (average of 2 items)
B43: Admission Performance | C43: Function Score
A44: =B44&" (Score = "&C44&")" -> 01 (Score = 0) | B44: 01 | C44: 0
A45: =B45&" (Score = "&C45&")" -> 02 (Score = 1) | B45: 02 | C45: 1
A46: 03 (Score = 2) | B46: 03 | C46: 2
A47: 04 (Score = 3) | B47: 04 | C47: 3
A48: 05 (Score = 4) | B48: 05 | C48: 4
A49: 06 (Score = 4) | B49: 06 | C49: 4
A50: 07 (Score = 0) | B50: 07 | C50: 0
A51: 09 (Score = 0) | B51: 09 | C51: 0
A52: 10 (Score = 0) | B52: 10 | C52: 0
A53: 88 (Score = 0) | B53: 88 | C53: 0
A54: missing (Score = 0) | B54: missing | C54: 0

Sheet OT_Analysis (hidden)
B2: OT Component
M3: Function Score
B4: Clinical Category | C4: Function Score | D4: OT Case Mix Group | E4: CMI | F4: Rate | G4: Marginal Risk | H4: Per 100 Days | I4: Per 1,000 Days | J4: Per 2,000 Days | L4: Clinical Category | M4: 0 to 5 | N4: 6 to 9 | O4: 10 to 23 | P4: 24
B5: Major Joint Replacement or Spinal Surgery | C5: 0 to 5 | D5: TA | E5: =VLOOKUP(D5,'Case-Mix_Rates'!$B$2:$H$17,5,FALSE) -> 1.41 | F5: =VLOOKUP(D5,'Case-Mix_Rates'!$B$2:$H$17,6,FALSE) -> 99.3909 | G5: =+F8-F5 -> 2.8196 | H5: =+$G5*100 -> 281.96 | I5: =+$G5*1000 -> 2819.6 | J5: =+$G5*2000 -> 5639.2 | L5: Major Joint Replacement or Spinal Surgery (A-D) | M5: 1.49 | N5: 1.63 | O5: 1.68 | P5: 1.53
B6: Major Joint Replacement or Spinal Surgery | C6: 6 to 9 | D6: TB | E6: =VLOOKUP(D6,'Case-Mix_Rates'!$B$2:$H$17,5,FALSE) -> 1.54 | F6: =VLOOKUP(D6,'Case-Mix_Rates'!$B$2:$H$17,6,FALSE) -> 108.5546 | G6: =+F7-F6 -> 4.2294 | H6: =+$G6*100 -> 422.94 | I6: =+$G6*1000 -> 4229.4 | J6: =+$G6*2000 -> 8458.8 | L6: Other Orthopedic (E-H) | M6: 1.41 | N6: 1.59 | O6: 1.64 | P6: 1.15
B7: Major Joint Replacement or Spinal Surgery | C7: 10 to 23 | D7: TC | E7: =VLOOKUP(D7,'Case-Mix_Rates'!$B$2:$H$17,5,FALSE) -> 1.6 | F7: =VLOOKUP(D7,'Case-Mix_Rates'!$B$2:$H$17,6,FALSE) -> 112.784 | G7: =+F7-F7 -> 0 | H7: =+$G7*100 -> 0 | I7: =+$G7*1000 -> 0 | J7: 0 | L7: Medical Management (I-L) | M7: 1.17 | N7: 1.44 | O7: 1.54 | P7: 1.11
B8: Major Joint Replacement or Spinal Surgery | C8: 24 | D8: TD | E8: =VLOOKUP(D8,'Case-Mix_Rates'!$B$2:$H$17,5,FALSE) -> 1.45 | F8: =VLOOKUP(D8,'Case-Mix_Rates'!$B$2:$H$17,6,FALSE) -> 102.2105 | G8: =+F6-F8 -> 6.3441 | H8: =+$G8*100 -> 634.41 | I8: =+$G8*1000 -> 6344.1 | J8: 12688.2 | L8: Non-Orthopedic Surgery and Acute Neurologic (M-P) | M8: 1.3 | N8: 1.49 | O8: 1.55 | P8: 1.09
B10: Other Orthopedic | C10: 0 to 5 | D10: TE | E10: =VLOOKUP(D10,'Case-Mix_Rates'!$B$2:$H$17,5,FALSE) -> 1.33 | F10: =VLOOKUP(D10,'Case-Mix_Rates'!$B$2:$H$17,6,FALSE) -> 93.7517 | G10: =+F11-F10 -> 12.6882 | H10: =+$G10*100 -> 1268.82 | I10: =+$G10*1000 -> 12688.2 | J10: =+$G10*2000 -> 25376.4
B11: Other Orthopedic | C11: 6 to 9 | D11: TF | E11: =VLOOKUP(D11,'Case-Mix_Rates'!$B$2:$H$17,5,FALSE) -> 1.51 | F11: =VLOOKUP(D11,'Case-Mix_Rates'!$B$2:$H$17,6,FALSE) -> 106.4399 | G11: =+F12-F11 -> 2.8196 | H11: =+$G11*100 -> 281.96 | I11: =+$G11*1000 -> 2819.6 | J11: =+$G11*2000 -> 5639.2
B12: Other Orthopedic | C12: 10 to 23 | D12: TG | E12: =VLOOKUP(D12,'Case-Mix_Rates'!$B$2:$H$17,5,FALSE) -> 1.55 | F12: =VLOOKUP(D12,'Case-Mix_Rates'!$B$2:$H$17,6,FALSE) -> 109.2595 | G12: =+F12-F12 -> 0 | H12: =+$G12*100 -> 0 | I12: =+$G12*1000 -> 0 | J12: 0
B13: Other Orthopedic | C13: 24 | D13: TH | E13: =VLOOKUP(D13,'Case-Mix_Rates'!$B$2:$H$17,5,FALSE) -> 1.09 | F13: =VLOOKUP(D13,'Case-Mix_Rates'!$B$2:$H$17,6,FALSE) -> 76.8341 | G13: =+F10-F13 -> 16.9176 | H13: =+$G13*100 -> 1691.76 | I13: =+$G13*1000 -> 16917.6 | J13: 33835.2
B15: Medical Management | C15: 0 to 5 | D15: TI | E15: =VLOOKUP(D15,'Case-Mix_Rates'!$B$2:$H$17,5,FALSE) -> 1.12 | F15: =VLOOKUP(D15,'Case-Mix_Rates'!$B$2:$H$17,6,FALSE) -> 78.9488 | G15: =F16-F15 -> 17.6225 | H15: =+$G15*100 -> 1762.25 | I15: =+$G15*1000 -> 17622.5 | J15: =+$G15*2000 -> 35245
B16: Medical Management | C16: 6 to 9 | D16: TJ | E16: =VLOOKUP(D16,'Case-Mix_Rates'!$B$2:$H$17,5,FALSE) -> 1.37 | F16: =VLOOKUP(D16,'Case-Mix_Rates'!$B$2:$H$17,6,FALSE) -> 96.5713 | G16: =F17-F16 -> 6.3441 | H16: =+$G16*100 -> 634.41 | I16: =+$G16*1000 -> 6344.1 | J16: =+$G16*2000 -> 12688.2
B17: Medical Management | C17: 10 to 23 | D17: TK | E17: =VLOOKUP(D17,'Case-Mix_Rates'!$B$2:$H$17,5,FALSE) -> 1.46 | F17: =VLOOKUP(D17,'Case-Mix_Rates'!$B$2:$H$17,6,FALSE) -> 102.9154 | G17: =F17-F17 -> 0 | H17: =+$G17*100 -> 0 | I17: =+$G17*1000 -> 0 | J17: 0
B18: Medical Management | C18: 24 | D18: TL | E18: =VLOOKUP(D18,'Case-Mix_Rates'!$B$2:$H$17,5,FALSE) -> 1.05 | F18: =VLOOKUP(D18,'Case-Mix_Rates'!$B$2:$H$17,6,FALSE) -> 74.0145 | G18: =F15-F18 -> 4.9343 | H18: =+$G18*100 -> 493.43 | I18: =+$G18*1000 -> 4934.3 | J18: 9868.6
B20: Non-Orthopedic Surgery and Acute Neurologic | C20: 0 to 5 | D20: TM | E20: =VLOOKUP(D20,'Case-Mix_Rates'!$B$2:$H$17,5,FALSE) -> 1.23 | F20: =VLOOKUP(D20,'Case-Mix_Rates'!$B$2:$H$17,6,FALSE) -> 86.7027 | G20: =+F21-F20 -> 13.3931 | H20: =+$G20*100 -> 1339.31 | I20: =+$G20*1000 -> 13393.1 | J20: =+$G20*2000 -> 26786.2
B21: Non-Orthopedic Surgery and Acute Neurologic | C21: 6 to 9 | D21: TN | E21: =VLOOKUP(D21,'Case-Mix_Rates'!$B$2:$H$17,5,FALSE) -> 1.42 | F21: =VLOOKUP(D21,'Case-Mix_Rates'!$B$2:$H$17,6,FALSE) -> 100.0958 | G21: =+F22-F21 -> 3.5245 | H21: =+$G21*100 -> 352.45 | I21: =+$G21*1000 -> 3524.5 | J21: =+$G21*2000 -> 7049
B22: Non-Orthopedic Surgery and Acute Neurologic | C22: 10 to 23 | D22: TO | E22: =VLOOKUP(D22,'Case-Mix_Rates'!$B$2:$H$17,5,FALSE) -> 1.47 | F22: =VLOOKUP(D22,'Case-Mix_Rates'!$B$2:$H$17,6,FALSE) -> 103.6203 | G22: =+F22-F22 -> 0 | H22: =+$G22*100 -> 0 | I22: =+$G22*1000 -> 0 | J22: 0
B23: Non-Orthopedic Surgery and Acute Neurologic | C23: 24 | D23: TP | E23: =VLOOKUP(D23,'Case-Mix_Rates'!$B$2:$H$17,5,FALSE) -> 1.03 | F23: =VLOOKUP(D23,'Case-Mix_Rates'!$B$2:$H$17,6,FALSE) -> 72.6047 | G23: =+F20-F23 -> 14.098 | H23: =+$G23*100 -> 1409.8 | I23: =+$G23*1000 -> 14098 | J23: 28196
B25: Functional Abilities and Goals | C25: (increasing score means increasing independence)
B27: Self-Care: Eating | C27: 0 to 4 | E27: (Affects Nursing)
B29: Self-Care: Oral Hygiene | C29: 0 to 4 | E29: (Therapy only)
B31: Self-Care: Toileting Hygiene | C31: 0 to 4 | E31: (Affects Nursing)
B33: Mobility: Sit to Lying | C33: 0 to 4 | E33: (Affects Nursing)
B34: Mobility: Lying to Sitting on side of bed | C34: (average of 2 items)
B36: Mobility: Sit to Stand | C36: 0 to 4 | E36: (Affects Nursing)
B37: Mobility: Chair/bed-to-chair transfer | C37: (average of 3 items)
B38: Mobility: Toilet Transfer
B40: Mobility: Walk 50 feet with 2 turns | C40: 0 to 4 | E40: (Therapy only)
B41: Mobility: Walk 150 feet | C41: (average of 2 items)

Sheet SLP_Analysis (hidden)
B2: SLP Component
M3: =C4 -> Mechanically Altered Diet or Swallowing Disorder
B4: Presence of Acute Neurologic Condition, SLP-Related Comorbidity, or Cognitive Impairment | C4: Mechanically Altered Diet or Swallowing Disorder | D4: SLP Case Mix Group | E4: CMI | F4: Rate | G4: Marginal Risk | H4: Per 100 Days | I4: Per 1,000 Days | J4: Per 2,000 Days | L4: =B4 -> Presence of Acute Neurologic Condition, SLP-Related Comorbidity, or Cognitive Impairment | M4: Neither | N4: Either | O4: Both
B5: None | C5: Neither | D5: SA | E5: =VLOOKUP(D5,'Case-Mix_Rates'!$I$2:$K$17,2,FALSE) -> 0.64 | F5: =VLOOKUP(D5,'Case-Mix_Rates'!$I$2:$K$17,3,FALSE) -> 18.0992 | G5: =+F6-F5 -> 30.5424 | H5: =+$G5*100 -> 3054.24 | I5: =+$G5*1000 -> 30542.4 | J5: =+$G5*2000 -> 61084.8 | L5: None | M5: 0.68 | N5: 1.82 | O5: 2.66
B6: None | C6: Either | D6: SB | E6: =VLOOKUP(D6,'Case-Mix_Rates'!$I$2:$K$17,2,FALSE) -> 1.72 | F6: =VLOOKUP(D6,'Case-Mix_Rates'!$I$2:$K$17,3,FALSE) -> 48.6416 | G6: =+F7-F6 -> 22.624 | H6: =+$G6*100 -> 2262.4 | I6: =+$G6*1000 -> 22624 | J6: =+$G6*2000 -> 45248 | L6: Any one | M6: 1.46 | N6: 2.33 | O6: 2.97
B7: None | C7: Both | D7: SC | E7: =VLOOKUP(D7,'Case-Mix_Rates'!$I$2:$K$17,2,FALSE) -> 2.52 | F7: =VLOOKUP(D7,'Case-Mix_Rates'!$I$2:$K$17,3,FALSE) -> 71.2656 | G7: =+F7-F7 -> 0 | H7: =+$G7*100 -> 0 | I7: =+$G7*1000 -> 0 | J7: 0 | L7: Any two | M7: 2.04 | N7: 2.85 | O7: 3.51
L8: All three | M8: 2.98 | N8: 3.69 | O8: 4.19
B9: Any one | C9: Neither | D9: SD | E9: =VLOOKUP(D9,'Case-Mix_Rates'!$I$2:$K$17,2,FALSE) -> 1.38 | F9: =VLOOKUP(D9,'Case-Mix_Rates'!$I$2:$K$17,3,FALSE) -> 39.0264 | G9: =+F10-F9 -> 23.4724 | H9: =+$G9*100 -> 2347.24 | I9: =+$G9*1000 -> 23472.4 | J9: =+$G9*2000 -> 46944.8
B10: Any one | C10: Either | D10: SE | E10: =VLOOKUP(D10,'Case-Mix_Rates'!$I$2:$K$17,2,FALSE) -> 2.21 | F10: =VLOOKUP(D10,'Case-Mix_Rates'!$I$2:$K$17,3,FALSE) -> 62.4988 | G10: =+F11-F10 -> 17.2508 | H10: =+$G10*100 -> 1725.08 | I10: =+$G10*1000 -> 17250.8 | J10: =+$G10*2000 -> 34501.6
B11: Any one | C11: Both | D11: SF | E11: =VLOOKUP(D11,'Case-Mix_Rates'!$I$2:$K$17,2,FALSE) -> 2.82 | F11: =VLOOKUP(D11,'Case-Mix_Rates'!$I$2:$K$17,3,FALSE) -> 79.7496 | G11: =+F11-F11 -> 0 | H11: =+$G11*100 -> 0 | I11: =+$G11*1000 -> 0 | J11: 0
B13: Any two | C13: Neither | D13: SG | E13: =VLOOKUP(D13,'Case-Mix_Rates'!$I$2:$K$17,2,FALSE) -> 1.93 | F13: =VLOOKUP(D13,'Case-Mix_Rates'!$I$2:$K$17,3,FALSE) -> 54.5804 | G13: =+F14-F13 -> 21.7756 | H13: =+$G13*100 -> 2177.56 | I13: =+$G13*1000 -> 21775.6 | J13: =+$G13*2000 -> 43551.2
B14: Any two | C14: Either | D14: SH | E14: =VLOOKUP(D14,'Case-Mix_Rates'!$I$2:$K$17,2,FALSE) -> 2.7 | F14: =VLOOKUP(D14,'Case-Mix_Rates'!$I$2:$K$17,3,FALSE) -> 76.356 | G14: =+F15-F14 -> 18.0992 | H14: =+$G14*100 -> 1809.92 | I14: =+$G14*1000 -> 18099.2 | J14: =+$G14*2000 -> 36198.4
B15: Any two | C15: Both | D15: SI | E15: =VLOOKUP(D15,'Case-Mix_Rates'!$I$2:$K$17,2,FALSE) -> 3.34 | F15: =VLOOKUP(D15,'Case-Mix_Rates'!$I$2:$K$17,3,FALSE) -> 94.4552 | G15: =+F15-F15 -> 0 | H15: =+$G15*100 -> 0 | I15: =+$G15*1000 -> 0 | J15: 0
B17: All three | C17: Neither | D17: SJ | E17: =VLOOKUP(D17,'Case-Mix_Rates'!$I$2:$K$17,2,FALSE) -> 2.83 | F17: =VLOOKUP(D17,'Case-Mix_Rates'!$I$2:$K$17,3,FALSE) -> 80.0324 | G17: =+F18-F17 -> 18.9476 | H17: =+$G17*100 -> 1894.76 | I17: =+$G17*1000 -> 18947.6 | J17: =+$G17*2000 -> 37895.2
B18: All three | C18: Either | D18: SK | E18: =VLOOKUP(D18,'Case-Mix_Rates'!$I$2:$K$17,2,FALSE) -> 3.5 | F18: =VLOOKUP(D18,'Case-Mix_Rates'!$I$2:$K$17,3,FALSE) -> 98.98 | G18: =+F19-F18 -> 13.5744 | H18: =+$G18*100 -> 1357.44 | I18: =+$G18*1000 -> 13574.4 | J18: =+$G18*2000 -> 27148.8
B19: All three | C19: Both | D19: SL | E19: =VLOOKUP(D19,'Case-Mix_Rates'!$I$2:$K$17,2,FALSE) -> 3.98 | F19: =VLOOKUP(D19,'Case-Mix_Rates'!$I$2:$K$17,3,FALSE) -> 112.5544 | G19: =+F19-F19 -> 0 | H19: =+$G19*100 -> 0 | I19: =+$G19*1000 -> 0 | J19: 0
B21: Cognitive Impairment*
B22: PDPM Cognitive Level | C22: BIMS Score | D22: Staff Assessment Score
B23: 1 - Cognitively Intact | C23: 13-15 | D23: 0
B24: 2 - Mildly Impaired | C24: 8-12 | D24: 1-2
B25: 3 - Moderately Impaired | C25: 0-7 | D25: 3-4
B26: 4 - Severely Impaired | C26: - | D26: 5-6
B27: *Note: Residents are classified as cognitively impaired when they are assessed to be mildly, moderately, or severely impaired
B29: Comorbidities Included in SLP Component
B30: Condition | C30: ICD-10-CM Code | D30: Description
B31: ALS | C31: G12.21 | D31: Amyotrophic lateral sclerosis
B32: Apraxia | C32: I69.990 | D32: Apraxia following unspecified cerebrovascular disease
B33: Dysphagia | C33: I69.991 | D33: Dysphagia following unspecified cerebrovascular disease
B34: Laryngeal Cancer | C34: C32.0 | D34: Malignant neoplasm of glottis
B35: Laryngeal Cancer | C35: C32.1 | D35: Malignant neoplasm of supraglottis
B36: Laryngeal Cancer | C36: C32.2 | D36: Malignant neoplasm of subglottis
B37: Laryngeal Cancer | C37: C32.3 | D37: Malignant neoplasm of laryngeal cartilage
B38: Laryngeal Cancer | C38: C32.8 | D38: Malignant neoplasm of other specified sites of larynx
B39: Laryngeal Cancer | C39: C32.9 | D39: Malignant neoplasm of larynx, unspecified
B40: Oral Cancers | C40: C00.0 | D40: Malignant neoplasm of external upper lip
B41: Oral Cancers | C41: C00.1 | D41: Malignant neoplasm of external lower lip
B42: Oral Cancers | C42: C00.3 | D42: Malignant neoplasm of upper lip, inner aspect
B43: Oral Cancers | C43: C00.4 | D43: Malignant neoplasm of lower lip, inner aspect
B44: Oral Cancers | C44: C00.5 | D44: Malignant neoplasm of lip, unspecified, inner aspect
B45: Oral Cancers | C45: C00.6 | D45: Malignant neoplasm of commissure of lip, unspecified
B46: Oral Cancers | C46: C00.8 | D46: Malignant neoplasm of overlapping sites of lip
B47: Oral Cancers | C47: C00.2 | D47: Malignant neoplasm of external lip, unspecified
B48: Oral Cancers | C48: C00.9 | D48: Malignant neoplasm of lip, unspecified
B49: Oral Cancers | C49: C01 | D49: Malignant neoplasm of base of tongue
B50: Oral Cancers | C50: C02.0 | D50: Malignant neoplasm of dorsal surface of tongue
B51: Oral Cancers | C51: C02.1 | D51: Malignant neoplasm of border of tongue
B52: Oral Cancers | C52: C02.2 | D52: Malignant neoplasm of ventral surface of tongue
B53: Oral Cancers | C53: C02.3 | D53: Malignant neoplasm of anterior two-thirds of tongue, part unspecified
B54: Oral Cancers | C54: C02.8 | D54: Malignant neoplasm of overlapping sites of tongue
B55: Oral Cancers | C55: C02.4 | D55: Malignant neoplasm of lingual tonsil
B56: Oral Cancers | C56: C02.8 | D56: Malignant neoplasm of overlapping sites of tongue
B57: Oral Cancers | C57: C02.9 | D57: Malignant neoplasm of tongue, unspecified
B58: Oral Cancers | C58: C03.0 | D58: Malignant neoplasm of upper gum
B59: Oral Cancers | C59: C03.1 | D59: Malignant neoplasm of lower gum
B60: Oral Cancers | C60: C03.9 | D60: Malignant neoplasm of gum, unspecified
B61: Oral Cancers | C61: C03.9 | D61: Malignant neoplasm of gum, unspecified
B62: Oral Cancers | C62: C04.0 | D62: Malignant neoplasm of anterior floor of mouth
B63: Oral Cancers | C63: C04.1 | D63: Malignant neoplasm of lateral floor of mouth
B64: Oral Cancers | C64: C04.8 | D64: Malignant neoplasm of overlapping sites of floor of mouth
B65: Oral Cancers | C65: C04.9 | D65: Malignant neoplasm of floor of mouth, unspecified
B66: Oral Cancers | C66: C09.9 | D66: Malignant neoplasm of tonsil, unspecified
B67: Oral Cancers | C67: C09.8 | D67: Malignant neoplasm of overlapping sites of tonsil
B68: Oral Cancers | C68: C09.0 | D68: Malignant neoplasm of tonsillar fossa
B69: Oral Cancers | C69: C09.1 | D69: Malignant neoplasm of tonsillar pillar (anterior) (posterior)
B70: Oral Cancers | C70: C10.0 | D70: Malignant neoplasm of vallecula
B71: Oral Cancers | C71: C10.1 | D71: Malignant neoplasm of anterior surface of epiglottis
B72: Oral Cancers | C72: C10.8 | D72: Malignant neoplasm of overlapping sites of oropharynx
B73: Oral Cancers | C73: C10.2 | D73: Malignant neoplasm of lateral wall of oropharynx
B74: Oral Cancers | C74: C10.3 | D74: Malignant neoplasm of posterior wall of oropharynx
B75: Oral Cancers | C75: C10.4 | D75: Malignant neoplasm of branchial cleft
B76: Oral Cancers | C76: C10.8 | D76: Malignant neoplasm of overlapping sites of oropharynx
B77: Oral Cancers | C77: C10.9 | D77: Malignant neoplasm of oropharynx, unspecified
B78: Oral Cancers | C78: C14.0 | D78: Malignant neoplasm of pharynx, unspecified
B79: Oral Cancers | C79: C14.2 | D79: Malignant neoplasm of waldeyer's ring
B80: Oral Cancers | C80: C14.8 | D80: Malignant neoplasm of overlapping sites of lip, oral cavity and pharynx
B81: Oral Cancers | C81: C14.8 | D81: Malignant neoplasm of overlapping sites of lip, oral cavity and pharynx
B82: Oral Cancers | C82: C06.0 | D82: Malignant neoplasm of cheek mucosa
B83: Oral Cancers | C83: C06.1 | D83: Malignant neoplasm of vestibule of mouth
B84: Oral Cancers | C84: C05.0 | D84: Malignant neoplasm of hard palate
B85: Oral Cancers | C85: C05.1 | D85: Malignant neoplasm of soft palate
B86: Oral Cancers | C86: C05.2 | D86: Malignant neoplasm of uvula
B87: Oral Cancers | C87: C05.9 | D87: Malignant neoplasm of palate, unspecified
B88: Oral Cancers | C88: C05.8 | D88: Malignant neoplasm of overlapping sites of palate
B89: Oral Cancers | C89: C06.2 | D89: Malignant neoplasm of retromolar area
B90: Oral Cancers | C90: C06.89 | D90: Malignant neoplasm of overlapping sites of other parts of mouth
B91: Oral Cancers | C91: C06.80 | D91: Malignant neoplasm of overlapping sites of unspecified parts of mouth
B92: Oral Cancers | C92: C06.9 | D92: Malignant neoplasm of mouth, unspecified
B93: Speech and Language Deficits | C93: I69.928 | D93: Other speech and language deficits following unspecified cerebrovascular disease
B94: Speech and Language Deficits | C94: I69.920 | D94: Aphasia following unspecified cerebrovascular disease
B95: Speech and Language Deficits | C95: I69.921 | D95: Dysphasia following unspecified cerebrovascular disease
B96: Speech and Language Deficits | C96: I69.922 | D96: Dysarthria following unspecified cerebrovascular disease
B97: Speech and Language Deficits | C97: I69.923 | D97: Fluency disorder following unspecified cerebrovascular disease
B98: Speech and Language Deficits | C98: I69.928 | D98: Other speech and language deficits following unspecified cerebrovascular disease

Sheet Nursing_Analysis (hidden)
B2: Nursing Component
O3: =D4 -> Function Score
B4: Nursing Category | C4: Conditions/Services Present | D4: Function Score | E4: Nursing Case Mix Group | F4: Function Score Code | G4: CMI | H4: Rate | I4: Marginal Risk | J4: Per 100 Days | K4: Per 1,000 Days | L4: Per 2,000 Days | N4: Special Care High | O4: 0-5 | P4: 6-14 | Q4: 15-16
B5: Extensive Services | C5: Tracheostomy Care and Ventilator/Respirator | D5: 0-14 | E5: ES3 | F5: =IF(LEN(E5)=4,MID(E5,2,2),IF(LEFT(E5,2)<>"ES",MID(E5,2,1),"< 15")) -> < 15 | G5: =VLOOKUP(E5,'Case-Mix_Rates'!$M$2:$O$35,2,FALSE) -> 3.84 | H5: =VLOOKUP(E5,'Case-Mix_Rates'!$M$2:$O$35,3,FALSE) -> 506.88 | I5: =+H6-H5 -> -124.08 | J5: =+$I5*100 -> -12408 | K5: =+$I5*1000 -> -124080 | L5: =+$I5*2000 -> -248160 | N5: Not Depressed | O5: 1.99 | P5: 1.85
B6: Extensive Services | C6: Tracheostomy Care or Ventilator/Respirator | D6: 0-14 | E6: ES2 | F6: =IF(LEN(E6)=4,MID(E6,2,2),IF(LEFT(E6,2)<>"ES",MID(E6,2,1),"< 15")) -> < 15 | G6: =VLOOKUP(E6,'Case-Mix_Rates'!$M$2:$O$35,2,FALSE) -> 2.9 | H6: =VLOOKUP(E6,'Case-Mix_Rates'!$M$2:$O$35,3,FALSE) -> 382.8 | I6: =+H7-H6 -> -17.16 | J6: =+$I6*100 -> -1716 | K6: =+$I6*1000 -> -17160 | L6: =+$I6*2000 -> -34320 | N6: Depressed | O6: 2.39 | P6: 2.23
B7: Extensive Services | C7: Infection Isolation | D7: 0-14 | E7: ES1 | F7: < 15 | G7: =VLOOKUP(E7,'Case-Mix_Rates'!$M$2:$O$35,2,FALSE) -> 2.77 | H7: =VLOOKUP(E7,'Case-Mix_Rates'!$M$2:$O$35,3,FALSE) -> 365.64 | I7: =+H7-H7 -> 0 | J7: =+$I7*100 -> 0 | K7: =+$I7*1000 -> 0 | L7: 0
N8: Special Care Low | O8: 0-5 | P8: 6-14 | Q8: 15-16
B9: Special Care High | C9: Yes | D9: 0-5 | E9: HDE2 | F9: DE | G9: =VLOOKUP(E9,'Case-Mix_Rates'!$M$2:$O$35,2,FALSE) -> 2.27 | H9: =VLOOKUP(E9,'Case-Mix_Rates'!$M$2:$O$35,3,FALSE) -> 299.64 | I9: =+H9-H9 -> 0 | J9: =+$I9*100 -> 0 | K9: =+$I9*1000 -> 0 | L9: =+$I9*2000 -> 0 | N9: Not Depressed | O9: 1.72 | P9: 1.43
B10: Special Care High | C10: No | D10: 0-5 | E10: HDE1 | F10: DE | G10: =VLOOKUP(E10,'Case-Mix_Rates'!$M$2:$O$35,2,FALSE) -> 1.88 | H10: =VLOOKUP(E10,'Case-Mix_Rates'!$M$2:$O$35,3,FALSE) -> 248.16 | I10: =+H9-H10 -> 51.48 | J10: =+$I10*100 -> 5148 | K10: =+$I10*1000 -> 51480 | L10: =+$I10*2000 -> 102960 | N10: Depressed | O10: 2.07 | P10: 1.71
B11: Special Care High | C11: Yes | D11: 6-14 | E11: HBC2 | F11: BC | G11: =VLOOKUP(E11,'Case-Mix_Rates'!$M$2:$O$35,2,FALSE) -> 2.12 | H11: =VLOOKUP(E11,'Case-Mix_Rates'!$M$2:$O$35,3,FALSE) -> 279.84 | I11: =+H9-H11 -> 19.8 | J11: =+$I11*100 -> 1980 | K11: =+$I11*1000 -> 19800 | L11: =+$I11*2000 -> 39600
B12: Special Care High | C12: No | D12: 6-14 | E12: HBC1 | F12: BC | G12: =VLOOKUP(E12,'Case-Mix_Rates'!$M$2:$O$35,2,FALSE) -> 1.76 | H12: =VLOOKUP(E12,'Case-Mix_Rates'!$M$2:$O$35,3,FALSE) -> 232.32 | I12: =+H10-H12 -> 15.84 | J12: =+$I12*100 -> 1584 | K12: =+$I12*1000 -> 15840 | L12: 31680 | N12: Clinically Complex | O12: 0-5 | P12: 6-14 | Q12: 15-16
N13: Not Depressed | O13: 1.62 | P13: 1.34 | Q13: 0.94
B14: Special Care Low | C14: Yes | D14: 0-5 | E14: LDE2 | F14: DE | G14: =VLOOKUP(E14,'Case-Mix_Rates'!$M$2:$O$35,2,FALSE) -> 1.97 | H14: =VLOOKUP(E14,'Case-Mix_Rates'!$M$2:$O$35,3,FALSE) -> 260.04 | I14: =+H14-H14 -> 0 | J14: =+$I14*100 -> 0 | K14: =+$I14*1000 -> 0 | L14: =+$I14*2000 -> 0 | N14: Depressed | O14: 1.86 | P14: 1.54 | Q14: 1.08
B15: Special Care Low | C15: No | D15: 0-5 | E15: LDE1 | F15: DE | G15: =VLOOKUP(E15,'Case-Mix_Rates'!$M$2:$O$35,2,FALSE) -> 1.64 | H15: =VLOOKUP(E15,'Case-Mix_Rates'!$M$2:$O$35,3,FALSE) -> 216.48 | I15: =+H14-H15 -> 43.56 | J15: =+$I15*100 -> 4356 | K15: =+$I15*1000 -> 43560 | L15: =+$I15*2000 -> 87120
B16: Special Care Low | C16: Yes | D16: 6-14 | E16: LBC2 | F16: BC | G16: =VLOOKUP(E16,'Case-Mix_Rates'!$M$2:$O$35,2,FALSE) -> 1.63 | H16: =VLOOKUP(E16,'Case-Mix_Rates'!$M$2:$O$35,3,FALSE) -> 215.16 | I16: =+H14-H16 -> 44.88 | J16: =+$I16*100 -> 4488 | K16: =+$I16*1000 -> 44880 | L16: =+$I16*2000 -> 89760 | N16: Behavioral Cognitive Symptoms | O16: 11-16
B17: Special Care Low | C17: No | D17: 6-14 | E17: LBC1 | F17: BC | G17: =VLOOKUP(E17,'Case-Mix_Rates'!$M$2:$O$35,2,FALSE) -> 1.35 | H17: =VLOOKUP(E17,'Case-Mix_Rates'!$M$2:$O$35,3,FALSE) -> 178.2 | I17: =+H15-H17 -> 38.28 | J17: =+$I17*100 -> 3828 | K17: =+$I17*1000 -> 38280 | L17: 76560 | N17: 0-1 | O17: 0.99
N18: 2 or More | O18: 1.04
B19: Clinically Complex | C19: Yes | D19: 0-5 | E19: CDE2 | F19: DE | G19: =VLOOKUP(E19,'Case-Mix_Rates'!$M$2:$O$35,2,FALSE) -> 1.77 | H19: =VLOOKUP(E19,'Case-Mix_Rates'!$M$2:$O$35,3,FALSE) -> 233.64 | I19: =+H19-H19 -> 0 | J19: =+$I19*100 -> 0 | K19: =+$I19*1000 -> 0 | L19: =+$I19*2000 -> 0
B20: Clinically Complex | C20: No | D20: 0-5 | E20: CDE1 | F20: DE | G20: =VLOOKUP(E20,'Case-Mix_Rates'!$M$2:$O$35,2,FALSE) -> 1.53 | H20: =VLOOKUP(E20,'Case-Mix_Rates'!$M$2:$O$35,3,FALSE) -> 201.96 | I20: =+H19-H20 -> 31.68 | J20: =+$I20*100 -> 3168 | K20: =+$I20*1000 -> 31680 | L20: =+$I20*2000 -> 63360 | N20: Reduced Physical Function | O20: 0-5 | P20: 6-14 | Q20: 15-16
B21: Clinically Complex | C21: Yes | D21: 6-14 | E21: CBC2 | F21: BC | G21: =VLOOKUP(E21,'Case-Mix_Rates'!$M$2:$O$35,2,FALSE) -> 1.47 | H21: =VLOOKUP(E21,'Case-Mix_Rates'!$M$2:$O$35,3,FALSE) -> 194.04 | I21: =+H19-H21 -> 39.6 | J21: =+$I21*100 -> 3960 | K21: =+$I21*1000 -> 39600 | L21: =+$I21*2000 -> 79200 | N21: 0-1 | O21: 1.47 | P21: 1.13 | Q21: 0.66
B22: Clinically Complex | C22: No | D22: 6-14 | E22: CBC1 | F22: BC | G22: =VLOOKUP(E22,'Case-Mix_Rates'!$M$2:$O$35,2,FALSE) -> 1.27 | H22: =VLOOKUP(E22,'Case-Mix_Rates'!$M$2:$O$35,3,FALSE) -> 167.64 | I22: =+H20-H22 -> 34.32 | N22: 2 or More | O22: 1.57 | P22: 1.21 | Q22: 0.7
B23: Clinically Complex | C23: Yes | D23: 15-16 | E23: CA2 | F23: A | G23: =VLOOKUP(E23,'Case-Mix_Rates'!$M$2:$O$35,2,FALSE) -> 1.03 | H23: =VLOOKUP(E23,'Case-Mix_Rates'!$M$2:$O$35,3,FALSE) -> 135.96 | I23: =+H21-H23 -> 58.08 | J23: =+$I23*100 -> 5808 | K23: =+$I23*1000 -> 58080 | L23: 116160
B24: Clinically Complex | C24: No | D24: 15-16 | E24: CA1 | F24: A | G24: =VLOOKUP(E24,'Case-Mix_Rates'!$M$2:$O$35,2,FALSE) -> 0.89 | H24: =VLOOKUP(E24,'Case-Mix_Rates'!$M$2:$O$35,3,FALSE) -> 117.48 | I24: =+H22-H24 -> 50.16
B26: Behavioral Cognitive Symptoms | C26: 2 or More | D26: 11-16 | E26: BAB2 | F26: AB | G26: =VLOOKUP(E26,'Case-Mix_Rates'!$M$2:$O$35,2,FALSE) -> 0.98 | H26: =VLOOKUP(E26,'Case-Mix_Rates'!$M$2:$O$35,3,FALSE) -> 129.36 | I26: =+H31-H26 -> 22.44 | J26: =+$I26*100 -> 2244 | K26: =+$I26*1000 -> 22440 | L26: =+$I26*2000 -> 44880
B27: Behavioral Cognitive Symptoms | C27: 0-1 | D27: 11-16 | E27: BAB1 | F27: AB | G27: =VLOOKUP(E27,'Case-Mix_Rates'!$M$2:$O$35,2,FALSE) -> 0.94 | H27: =VLOOKUP(E27,'Case-Mix_Rates'!$M$2:$O$35,3,FALSE) -> 124.08 | I27: =+H32-H27 -> 17.16 | J27: =+$I27*100 -> 1716 | K27: =+$I27*1000 -> 17160 | L27: =+$I27*2000 -> 34320
B29: Reduced Physical Function | C29: 2 or More | D29: 0-5 | E29: PDE2 | F29: DE | G29: =VLOOKUP(E29,'Case-Mix_Rates'!$M$2:$O$35,2,FALSE) -> 1.48 | H29: =VLOOKUP(E29,'Case-Mix_Rates'!$M$2:$O$35,3,FALSE) -> 195.36 | I29: =+H29-H29 -> 0 | J29: =+$I29*100 -> 0 | K29: =+$I29*1000 -> 0 | L29: =+$I29*2000 -> 0
B30: Reduced Physical Function | C30: 0-1 | D30: 0-5 | E30: PDE1 | F30: DE | G30: =VLOOKUP(E30,'Case-Mix_Rates'!$M$2:$O$35,2,FALSE) -> 1.39 | H30: =VLOOKUP(E30,'Case-Mix_Rates'!$M$2:$O$35,3,FALSE) -> 183.48 | I30: =+H29-H30 -> 11.88 | J30: 1188 | K30: 11880 | L30: 23760
B31: Reduced Physical Function | C31: 2 or More | D31: 6-14 | E31: PBC2 | F31: BC | G31: =VLOOKUP(E31,'Case-Mix_Rates'!$M$2:$O$35,2,FALSE) -> 1.15 | H31: =VLOOKUP(E31,'Case-Mix_Rates'!$M$2:$O$35,3,FALSE) -> 151.8 | I31: =+H29-H31 -> 43.56 | J31: 4356 | K31: 43560 | L31: 87120
B32: Reduced Physical Function | C32: 0-1 | D32: 6-14 | E32: PBC1 | F32: BC | G32: =VLOOKUP(E32,'Case-Mix_Rates'!$M$2:$O$35,2,FALSE) -> 1.07 | H32: =VLOOKUP(E32,'Case-Mix_Rates'!$M$2:$O$35,3,FALSE) -> 141.24 | I32: =+H30-H32 -> 42.24 | J32: 4224 | K32: 42240 | L32: 84480
B33: Reduced Physical Function | C33: 2 or More | D33: 15-16 | E33: PA2 | F33: A | G33: =VLOOKUP(E33,'Case-Mix_Rates'!$M$2:$O$35,2,FALSE) -> 0.67 | H33: =VLOOKUP(E33,'Case-Mix_Rates'!$M$2:$O$35,3,FALSE) -> 88.44 | I33: =+H31-H33 -> 63.36 | J33: 6336 | K33: 63360 | L33: 126720
B34: Reduced Physical Function | C34: 0-1 | D34: 15-16 | E34: PA1 | F34: A | G34: =VLOOKUP(E34,'Case-Mix_Rates'!$M$2:$O$35,2,FALSE) -> 0.62 | H34: =VLOOKUP(E34,'Case-Mix_Rates'!$M$2:$O$35,3,FALSE) -> 81.84 | I34: =+H32-H34 -> 59.4 | J34: 5940 | K34: 59400 | L34: 118800
B36: Functional Abilities and Goals | C36: (increasing score means increasing independence)
B38: Self-Care: Eating | C38: 0 to 4
B40: Self-Care: Toileting Hygiene | C40: 0 to 4
B42: Mobility: Sit to Lying | C42: 0 to 4
B43: Mobility: Lying to Sitting on side of bed | C43: (average of 2 items)
B45: Mobility: Sit to Stand | C45: 0 to 4
B46: Mobility: Chair/bed-to-chair transfer | C46: (average of 3 items) | D46: Score is 15 or 16 | E46: Score is > 10 | F46: Score is <= 11
B47: Mobility: Toilet Transfer | D47: =IF(#REF!>14,TRUE,FALSE) ->  | E47: =IF(#REF!>10,TRUE,FALSE) ->  | F47: =IF(#REF!<12,TRUE,FALSE) -> 
B49: Extensive Services | C49: (Nursing Function Score < 15) | E49: =IF(AND(#REF!>0,LEFT(#REF!,3)<>"N/A"),TRUE,FALSE) ->  | G49: =IF(E49,B49,"") -> 
A50: =B50&" - "&C50 -> O0100E2 - Tracheostomy Care and Ventilator/Respirator | B50: O0100E2 | C50: Tracheostomy Care and Ventilator/Respirator | D50: =IF($D$47,"N/A - Function Score > 14",B50&" - "&C50) ->  | F50: =IF(#REF!=A50,TRUE,FALSE) ->  | H50: =IF($F50,C50,"") ->  | I50: =IF($F50,"Yes","") ->  | J50: =IF($F50,"0-14","") -> 
A51: =B51&" - "&C51 -> O0100F2 - Tracheostomy Care or Ventilator/Respirator | B51: O0100F2 | C51: Tracheostomy Care or Ventilator/Respirator | D51: =IF($D$47,"",B51&" - "&C51) ->  | F51: =IF(#REF!=A51,TRUE,FALSE) ->  | H51: =IF($F51,C51,"") ->  | I51: =IF($F51,"Yes","") ->  | J51: =IF($F51,"0-14","") -> 
A52: O0100M2 - Infection Isolation | B52: O0100M2 | C52: Infection Isolation | D52: =IF($D$47,"",B52&" - "&C52) ->  | F52: =IF(#REF!=A52,TRUE,FALSE) ->  | H52: =IF($F52,C52,"") ->  | I52: =IF($F52,"Yes","") ->  | J52: =IF($F52,"0-14","") -> 
C53: N/A | D53: =IF($D$47,"",C53) -> 
B55: Depression | E55: =IF((D60+E81)=1,TRUE,FALSE) ->  | H55: =IF(E55,"Depressed","") ->  | J55: =IF($E55,INDEX(Nursing!$H$39:$J$41,MATCH(#REF!,Nursing!$J$39:$J$41,1),1),"") -> 
B56: D0300 or D0600 | C56: Total Severity Score >= 10 but not 99 | D56: =IF($E$55,C56,"N/A") ->  | F56: =IF(#REF!=C56,TRUE,FALSE) ->  | I56: =IF($E$55,IF($F$56,"Yes","No"),"") -> 
D57: =IF($E$55,"Total Severity Score < 10 or is 99","") -> 
D59: Special Care | E59: High | F59: Low
B60: Special Care | C60: (Nursing Function Score < 15) | D60: =OR(E60,F60) ->  | E60: =IF((F61+F62+F63+F65+F68+F70+F71+F78)=1,TRUE,FALSE) ->  | F60: =IF((F64+F66+F67+F69+F72+F73+F74+F75+F76+F77)=1,TRUE,FALSE) ->  | G60: =IF(E60,B60&" High",IF(F60,B60&" Low","")) -> 
A61: H | B61: B0100 Comatose | C61: GG0130A1, GG0130C1, GG0170B1, GG0170C1, GG017D1, GG0170E1, and GG0170F1, all equal 01, 09, or 88 | D61: =IF($D$47,"N/A - Function Score > 14",B61) ->  | E61: =IF(#REF!=D61,TRUE,FALSE) ->  | F61: =IF(AND(E61,#REF!=$O$61),TRUE,FALSE) ->  | O61: =IFERROR(INDEX($C$61:$E$78,MATCH(TRUE,$E$61:$E$78,0),1),"N/A") -> N/A
A62: H | B62: I2100 Septicemia | C62: N/A | D62: =IF($D$47,"",B62) ->  | E62: =IF(#REF!=D62,TRUE,FALSE) ->  | F62: =IF(AND(E62,#REF!=$O$61),TRUE,FALSE) ->  | O62: =IF(OR(O61="N/A",AND(O61="Function score <= 11",TRUE)),"","Does not qualify - skip to clinically complex") -> 
A63: H | B63: I2900 Diabetes | C63: Insulin injections (N0350A) for all 7 days and Insulin order changes on 2 or more days (N0350B) | E63: =IF(#REF!=D63,TRUE,FALSE) ->  | F63: =IF(AND(E63,#REF!=$O$61),TRUE,FALSE) -> 
A64: L | B64: I4400 Cerebral palsy | C64: Function score <= 11 | E64: =IF(#REF!=D64,TRUE,FALSE) ->  | F64: =IF(AND(E64,$F$47,#REF!=$O$61),TRUE,FALSE) -> 
A65: H | B65: I5100 Quadriplegia | C65: Function score <= 11 | E65: =IF(#REF!=D65,TRUE,FALSE) ->  | F65: =IF(AND(E65,$F$47,#REF!=$O$61),TRUE,FALSE) -> 
A66: L | B66: I5200 Multiple sclerosis | C66: Function score <= 11 | E66: =IF(#REF!=D66,TRUE,FALSE) ->  | F66: =IF(AND(E66,$F$47,#REF!=$O$61),TRUE,FALSE) -> 
A67: L | B67: I5300 Parkinson's disease | C67: Function score <= 11 | E67: =IF(#REF!=D67,TRUE,FALSE) ->  | F67: =IF(AND(E67,$F$47,#REF!=$O$61),TRUE,FALSE) -> 
A68: H | B68: I6200 Chronic obstructive pulmonday disease & JJ1100C Shortness of breath when lying flat | E68: =IF(#REF!=D68,TRUE,FALSE) ->  | F68: =IF(AND(E68,#REF!=$O$61),TRUE,FALSE) -> 
A69: L | B69: I6300 Respiratory failure & O0100C2 Oxygen therapy while a resident | D69: =IF($D$47,"N/A - Function Score > 14",B69) ->  | E69: =IF(#REF!=D69,TRUE,FALSE) ->  | F69: =IF(AND(E69,#REF!=$O$61),TRUE,FALSE) -> 
A70: H | B70: J1550A Fever | C70: One of pneumonia, vomiting, weight loss, or feeding tube (feeding tube meets classification requirements) | D70: =IF($D$47,"",B70) ->  | E70: =IF(#REF!=D70,TRUE,FALSE) ->  | F70: =IF(AND(E70,#REF!=$O$61),TRUE,FALSE) -> 
A71: H | B71: K0510A1 | K0510A2 Parenteral/IV feedings | E71: =IF(#REF!=D71,TRUE,FALSE) ->  | F71: =IF(AND(E71,#REF!=$O$61),TRUE,FALSE) -> 
A72: L | B72: K0510B1 | K0510B2 Feeding tube | C72: K0710A3 is 51% or more of total calories OR is 26% to 50% AND K0710B3 is 501 cc or more per day in last 7 days | E72: =IF(#REF!=D72,TRUE,FALSE) ->  | F72: =IF(AND(E72,#REF!=$O$61),TRUE,FALSE) -> 
A73: L | B73: M0300B1 Stage 2 pressure ulcer | C73: Two or more stage 2 pressure ulcers with two or more selected skin treatments [M1200(A, B, C, D, E, G, or H)] | E73: =IF(#REF!=D73,TRUE,FALSE) ->  | F73: =IF(AND(E73,#REF!=$O$61),TRUE,FALSE) -> 
A74: L | B74: M0300B1 Stage 2 pressure ulcer & M1030 Venous/arterial ulcer | C74: Two or more selected skin treatments: M1200(A, B, C, D, E, G, or H) | E74: =IF(#REF!=D74,TRUE,FALSE) ->  | F74: =IF(AND(E74,#REF!=$O$61),TRUE,FALSE) -> 
A75: L | B75: M1040A,B,C; M1200I Foot infection, diabetic foot ulcer or other open lesion of foot with application of dressings to the feet | E75: =IF(#REF!=D75,TRUE,FALSE) ->  | F75: =IF(AND(E75,#REF!=$O$61),TRUE,FALSE) -> 
A76: L | B76: O0100B2 Radiation treatment while a resident | E76: =IF(#REF!=D76,TRUE,FALSE) ->  | F76: =IF(AND(E76,#REF!=$O$61),TRUE,FALSE) -> 
A77: L | B77: O0100J2 Dialysis treatment while a resident | E77: =IF(#REF!=D77,TRUE,FALSE) ->  | F77: =IF(AND(E77,#REF!=$O$61),TRUE,FALSE) -> 
A78: H | B78: O0400D2 Respiratory therapy for all 7 days | E78: =IF(#REF!=D78,TRUE,FALSE) ->  | F78: =IF(AND(E78,#REF!=$O$61),TRUE,FALSE) -> 
C79: N/A | D79: =IF($D$47,"",C79) -> 
B81: Clinically Complex | E81: =IF(AND(#REF!>0,LEFT(#REF!,3)<>"N/A"),TRUE,FALSE) ->  | F81: =IF((F82+F83+F84+F85+F86+F87+F88+F89)=1,TRUE,FALSE) ->  | G81: =IF(E81,B81,"") -> 
A82: =B82&" - "&C82 -> I2000 - Pneumonia | B82: I2000 | C82: Pneumonia | D82: =B82&" - "&C82 -> I2000 - Pneumonia | F82: =IF(#REF!=A82,TRUE,FALSE) -> 
A83: I4900, Nursing Function Score - Hemiplegia/hemiparesis with Nursing Function Score <= 11 | B83: I4900, Nursing Function Score | C83: Hemiplegia/hemiparesis with Nursing Function Score <= 11 | D83: =IF(#REF!>11,"",B83&" - "&C83) ->  | F83: =IF(#REF!=A83,TRUE,FALSE) -> 
A84: M1040D,E - Open lesions (other than ulcers, rashes, and cuts) with any selected skin treatment or surgical wounds | B84: M1040D,E | C84: Open lesions (other than ulcers, rashes, and cuts) with any selected skin treatment or surgical wounds | D84: =B84&" - "&C84 -> M1040D,E - Open lesions (other than ulcers, rashes, and cuts) with any selected skin treatment or surgical wounds | F84: =IF(#REF!=A84,TRUE,FALSE) -> 
A85: M1040F - Burns | B85: M1040F | C85: Burns | D85: M1040F - Burns | F85: =IF(#REF!=A85,TRUE,FALSE) -> 
A86: O0100A2 - Chemotherapy while a resident | B86: O0100A2 | C86: Chemotherapy while a resident | D86: O0100A2 - Chemotherapy while a resident | F86: =IF(#REF!=A86,TRUE,FALSE) -> 
A87: O0100C2 - Oxygen Therapy while a resident | B87: O0100C2 | C87: Oxygen Therapy while a resident | D87: O0100C2 - Oxygen Therapy while a resident | F87: =IF(#REF!=A87,TRUE,FALSE) -> 
A88: O0100H2 - IV Medications while a resident | B88: O0100H2 | C88: IV Medications while a resident | D88: O0100H2 - IV Medications while a resident | F88: =IF(#REF!=A88,TRUE,FALSE) -> 
A89: O0100I2 - Transfusions while a resident | B89: O0100I2 | C89: Transfusions while a resident | D89: O0100I2 - Transfusions while a resident | F89: =IF(#REF!=A89,TRUE,FALSE) -> 
C90: N/A | D90: =C90 -> N/A
B92: Behavioral Symptoms and Cognitive Performance | C92: (Nursing Function Score > 10) | D92: =AND(E92,F92) ->  | E92: =IF(AND((E49+D60+E81)=0,E47),TRUE,FALSE) ->  | F92: =F99 ->  | G92: =IF(D92,"Behavioral Cognitive Symptoms","") ->  | H92: =IF(OR($E92,$E$109),"Restorative Nursing Services","") ->  | I92: =IF(D92,IF(F109=2,C26,C27),"") ->  | J92: =IF($F92,"11-16","") -> 
B93: Cognitive Assessment | D93: =IF($E$92,"BIMS","N/A") ->  | E93: =IF($E$92,"Staff Assessment","") -> 
A94: =B94&" - "&C94 -> C0500 - BIMS Summary Score <= 9 | B94: C0500 | C94: BIMS Summary Score <= 9 | D94: =IF(AND($E$47,$E$92),B94&" - "&C94,"N/A") ->  | E94: =IF($E$47,B94&" | "&"BIMS Summary Score >= 9","") ->  | F94: =IF(#REF!=A94,TRUE,FALSE) -> 
A95: =B95&" - "&C95 -> B0100 - Coma and completely dependent or activity did not occur at admission | B95: B0100 | C95: Coma and completely dependent or activity did not occur at admission | D95: =IF(AND($E$47,$E$92),B95&" - "&C95,"") ->  | F95: =IF(#REF!=A95,TRUE,FALSE) -> 
A96: C1000 - Severely impaired cognitive skills for daily decision making | B96: C1000 | C96: Severely impaired cognitive skills for daily decision making | D96: =IF(AND($E$47,$E$92),B96&" - "&C96,"") ->  | F96: =IF(#REF!=A96,TRUE,FALSE) -> 
A97: B0700, C0700, C1000 - Two or more impairment indicators present and one or more severe impairment indicators are present | B97: B0700, C0700, C1000 | C97: Two or more impairment indicators present and one or more severe impairment indicators are present | D97: =IF(AND($E$47,$E$92),B97&" - "&C97,"") ->  | F97: =IF(#REF!=A97,TRUE,FALSE) -> 
C98: N/A | D98: =IF(AND($E$47,$E$92),C98,"") -> 
B99: Behavioral Symptoms | F99: =IF((F94+F95+F96+F97)=1,TRUE,FALSE) -> 
A100: =B100&" - "&C100 -> E0100A - Hallucinations | B100: E0100A | C100: Hallucinations | D100: =IF(AND($E$47,$F$99),B100&" - "&C100,"N/A") -> 
A101: E0100B - Delusions | B101: E0100B | C101: Delusions | D101: =IF(AND($E$47,$F$99),B101&" - "&C101,"") -> 
A102: E0200A - Physical behavioral symptoms directed toward others (2 or 3) | B102: E0200A | C102: Physical behavioral symptoms directed toward others (2 or 3)
A103: E0200B - Verbal behavioral symptoms directed toward others (2 or 3) | B103: E0200B | C103: Verbal behavioral symptoms directed toward others (2 or 3)
A104: E0200C - Other behavioral symptons not directed toward others (2 or 3) | B104: E0200C | C104: Other behavioral symptons not directed toward others (2 or 3)
A105: E0800 - Rejection of care (2 or 3) | B105: E0800 | C105: Rejection of care (2 or 3)
A106: E0900 - Wandering (2 or 3) | B106: E0900 | C106: Wandering (2 or 3)
C107: N/A | D107: =IF(AND($E$47,F99),C107,"") -> 
B109: Reduced Physical Function | E109: =IF((E49+D60+E81+F99)=0,TRUE,FALSE) ->  | F109: =F110+F111+F112+F113+F114+F115+F116+F117+F118 ->  | G109: =IF(E109,B109,"") ->  | I109: =IF(E109,IF(F109=2,C26,C27),"") ->  | J109: =IF($E109,INDEX(Nursing!$H$39:$J$41,MATCH(#REF!,Nursing!$J$39:$J$41,1),1),"") -> 
A110: =B110&" - "&C110 -> H0200C, H0500 - Urinary toileting program and/or bowel toileting program | B110: H0200C, H0500 | C110: Urinary toileting program and/or bowel toileting program | D110: =IF($E$109,B110&" - "&C110,"N/A") ->  | F110: =IF(OR(#REF!=A110,#REF!=A110),TRUE,FALSE) -> 
A111: O0500A,B - Passive and/or active range or motion | B111: O0500A,B | C111: Passive and/or active range or motion | D111: =IF($E$109,B111&" - "&C111,"") ->  | F111: =IF(OR(#REF!=A111,#REF!=A111),TRUE,FALSE) -> 
A112: O0500C - Splint or brace assistance | B112: O0500C | C112: Splint or brace assistance | D112: =IF($E$109,B112&" - "&C112,"") ->  | F112: =IF(OR(#REF!=A112,#REF!=A112),TRUE,FALSE) -> 
A113: O0500D,F - Bed mobility and/or walking training | B113: O0500D,F | C113: Bed mobility and/or walking training | F113: =IF(OR(#REF!=A113,#REF!=A113),TRUE,FALSE) -> 
A114: O0500E - Transfer training | B114: O0500E | C114: Transfer training | F114: =IF(OR(#REF!=A114,#REF!=A114),TRUE,FALSE) -> 
A115: O0500G - Dressing and/or grooming training | B115: O0500G | C115: Dressing and/or grooming training | F115: =IF(OR(#REF!=A115,#REF!=A115),TRUE,FALSE) -> 
A116: O0500H - Eating and/or swallowing training | B116: O0500H | C116: Eating and/or swallowing training | F116: =IF(OR(#REF!=A116,#REF!=A116),TRUE,FALSE) -> 
A117: O0500I - Amputation/prostheses care | B117: O0500I | C117: Amputation/prostheses care | F117: =IF(OR(#REF!=A117,#REF!=A117),TRUE,FALSE) -> 
A118: O0500J - Communication training | B118: O0500J | C118: Communication training | F118: =IF(OR(#REF!=A118,#REF!=A118),TRUE,FALSE) -> 
A119: N/A
B121: Category | G121: =G49&G60&G81&G92&G109 -> 
B122: Conditions/Services | H122: =H50&H51&H52&H55&H92 -> 
B123: Conditions/Services Present | I123: =I50&I51&I52&I56&I92&I109 -> 
B124: Function Score | J124: =J50&J51&J52&J55&J92&J109 -> 

Sheet NTA_Analysis (hidden)
B2: NTA Component
B4: NTA Comorbidity Score | C4: NTA Case Mix Group | D4: CMI | E4: Rate | F4: Marginal Risk | G4: Per 100 Days | H4: Per 1,000 Days | I4: Per 2,000 Days | K4: Avg. Risk per Point | L4: Avg. Rate per Point
B5: 12+ | C5: NA | D5: =VLOOKUP(C5,'Case-Mix_Rates'!$Q$2:$S$17,2,FALSE) -> 3.06 | E5: =VLOOKUP(C5,'Case-Mix_Rates'!$Q$2:$S$17,3,FALSE) -> 304.7454 | F5: =+E5-E6 -> 66.7253 | G5: =+$F5*100 -> 6672.53 | H5: =+$F5*1000 -> 66725.3 | I5: =+$F5*2000 -> 133450.6 | K5: =F5 -> 66.7253 | L5: =E5/12 -> 25.39545
B6: 9-11 | C6: NB | D6: =VLOOKUP(C6,'Case-Mix_Rates'!$Q$2:$S$17,2,FALSE) -> 2.39 | E6: =VLOOKUP(C6,'Case-Mix_Rates'!$Q$2:$S$17,3,FALSE) -> 238.0201 | F6: =+E5-E6 -> 66.7253 | G6: 6672.53 | H6: 66725.3 | I6: =+$F6*2000 -> 133450.6 | K6: =F6/3 -> 22.24176667 | L6: =E6/10 -> 23.80201
B7: 6-8 | C7: NC | D7: =VLOOKUP(C7,'Case-Mix_Rates'!$Q$2:$S$17,2,FALSE) -> 1.74 | E7: =VLOOKUP(C7,'Case-Mix_Rates'!$Q$2:$S$17,3,FALSE) -> 173.2866 | F7: =+E6-E7 -> 64.7335 | G7: 6473.35 | H7: 64733.5 | I7: 129467 | K7: =F7/3 -> 21.57783333 | L7: =E7/7 -> 24.75522857
B8: 3-5 | C8: ND | D8: =VLOOKUP(C8,'Case-Mix_Rates'!$Q$2:$S$17,2,FALSE) -> 1.26 | E8: =VLOOKUP(C8,'Case-Mix_Rates'!$Q$2:$S$17,3,FALSE) -> 125.4834 | F8: =+E7-E8 -> 47.8032 | G8: 4780.32 | H8: 47803.2 | I8: =+$F8*2000 -> 95606.4 | K8: =F8/3 -> 15.9344 | L8: =E8/4 -> 31.37085
B9: 1-2 | C9: NE | D9: =VLOOKUP(C9,'Case-Mix_Rates'!$Q$2:$S$17,2,FALSE) -> 0.91 | E9: =VLOOKUP(C9,'Case-Mix_Rates'!$Q$2:$S$17,3,FALSE) -> 90.6269 | F9: =+E8-E9 -> 34.8565 | G9: 3485.65 | H9: 34856.5 | I9: =+$F9*2000 -> 69713 | K9: =F9/2 -> 17.42825 | L9: =E9/2 -> 45.31345
B10: 0 | C10: NF | D10: =VLOOKUP(C10,'Case-Mix_Rates'!$Q$2:$S$17,2,FALSE) -> 0.68 | E10: =VLOOKUP(C10,'Case-Mix_Rates'!$Q$2:$S$17,3,FALSE) -> 67.7212 | F10: =+E9-E10 -> 22.9057 | G10: 2290.57 | H10: 22905.7 | I10: 45811.4
B12: Comorbidities Included in NTA Comorbidity Score and Assigned Points
B13: Condition/Extensive Service | C13: MDS Item | D13: Points | F13: Points | G13: 1 | H13: 2 | I13: 3 | J13: 4 | K13: 5 | L13: 7 | M13: 8 | N13: Total
A14: =C14&" - "&B14&" ("&D14&" points)" -> H0100C - Bladder and Bowel Appliances: Ostomy (1 points) | B14: Bladder and Bowel Appliances: Ostomy | C14: H0100C | D14: 1 | F14: Count | G14: =COUNTIF($D$14:$D$63,G$13) -> 35 | H14: =COUNTIF($D$14:$D$63,H$13) -> 9 | I14: 2 | J14: 1 | K14: 1 | L14: 1 | M14: 1 | N14: =SUM(G14:M14) -> 50
A15: =C15&" - "&B15&" ("&D15&" points)" -> H0100D - Bladder and Bowel Appliances: Intermittent catheterization (1 points) | B15: Bladder and Bowel Appliances: Intermittent catheterization | C15: H0100D | D15: 1 | F15: Sum | G15: =G14*G13 -> 35 | H15: =H14*H13 -> 18 | I15: 6 | J15: 4 | K15: 5 | L15: 7 | M15: 8 | N15: =SUM(G15:M15) -> 83
A16: I1700 - Active Diagnoses: Multi-Drug Resistant Organism (MDRO) Code (1 points) | B16: Active Diagnoses: Multi-Drug Resistant Organism (MDRO) Code | C16: I1700 | D16: 1 | F16: Minimum | G16: NE | H16: NE | I16: ND | J16: ND | K16: ND | L16: NC | M16: NC
A17: I2500 - Wound Infection Code (2 points) | B17: Wound Infection Code | C17: I2500 | D17: 2
A18: I2900 - Active Diagnoses: Diabetes Mellitus (DM) Code (2 points) | B18: Active Diagnoses: Diabetes Mellitus (DM) Code | C18: I2900 | D18: 2
A19: I5200 - Active Diagnoses: Multiple Sclerosis Code (2 points) | B19: Active Diagnoses: Multiple Sclerosis Code | C19: I5200 | D19: 2
A20: I5600 - Active Diagnoses: Malnutrition Code (1 points) | B20: Active Diagnoses: Malnutrition Code | C20: I5600 | D20: 1
A21: I6200 - Active Diagnoses: Asthma COPD Chronic Lung Disease Code (2 points) | B21: Active Diagnoses: Asthma COPD Chronic Lung Disease Code | C21: I6200 | D21: 2
A22: I8000 - Aseptic Necrosis of Bone (1 points) | B22: Aseptic Necrosis of Bone | C22: I8000 | D22: 1
A23: I8000 - Bone/Joint/Muscle Infections/Necrosis - Except: Aseptic Necrosis of Bone (2 points) | B23: Bone/Joint/Muscle Infections/Necrosis - Except: Aseptic Necrosis of Bone | C23: I8000 | D23: 2
A24: I8000 - Cardio-Respiratory Failure and Shock (1 points) | B24: Cardio-Respiratory Failure and Shock | C24: I8000 | D24: 1
A25: I8000 - Chronic Myeloid Leukemia (2 points) | B25: Chronic Myeloid Leukemia | C25: I8000 | D25: 2
A26: I8000 - Chronic Pancreatitis (1 points) | B26: Chronic Pancreatitis | C26: I8000 | D26: 1
A27: I8000 - Cirrhosis of Liver (1 points) | B27: Cirrhosis of Liver | C27: I8000 | D27: 1
A28: I8000 - Complications of Specified Implanted Device or Graft (1 points) | B28: Complications of Specified Implanted Device or Graft | C28: I8000 | D28: 1
A29: I8000 - Cystic Fibrosis (1 points) | B29: Cystic Fibrosis | C29: I8000 | D29: 1
A30: I8000 - Diabetic Retinopathy - Except : Proliferative Diabetic Retinopathy and Vitreous Hemorrhage (1 points) | B30: Diabetic Retinopathy - Except : Proliferative Diabetic Retinopathy and Vitreous Hemorrhage | C30: I8000 | D30: 1
A31: I8000 - Disorders of Immunity - Except : RxCC97: Immune Disorders (1 points) | B31: Disorders of Immunity - Except : RxCC97: Immune Disorders | C31: I8000 | D31: 1
A32: I8000 - Endocarditis (1 points) | B32: Endocarditis | C32: I8000 | D32: 1
A33: I8000 - End-Stage Liver Disease (1 points) | B33: End-Stage Liver Disease | C33: I8000 | D33: 1
A34: I8000 - Immune Disorders (1 points) | B34: Immune Disorders | C34: I8000 | D34: 1
A35: I8000 - Inflammatory Bowel Disease (1 points) | B35: Inflammatory Bowel Disease | C35: I8000 | D35: 1
A36: I8000 - Intractable Epilepsy (1 points) | B36: Intractable Epilepsy | C36: I8000 | D36: 1
A37: I8000 - Lung Transplant Status (3 points) | B37: Lung Transplant Status | C37: I8000 | D37: 3
A38: I8000 - Major Organ Transplant Status, Except Lung (2 points) | B38: Major Organ Transplant Status, Except Lung | C38: I8000 | D38: 2
A39: I8000 - Morbid Obesity (1 points) | B39: Morbid Obesity | C39: I8000 | D39: 1
A40: I8000 - Myelodysplastic Syndromes and Myelofibrosis (1 points) | B40: Myelodysplastic Syndromes and Myelofibrosis | C40: I8000 | D40: 1
A41: I8000 - Narcolepsy and Cataplexy (1 points) | B41: Narcolepsy and Cataplexy | C41: I8000 | D41: 1
A42: I8000 - Opportunistic Infections (2 points) | B42: Opportunistic Infections | C42: I8000 | D42: 2
A43: I8000 - Proliferative Diabetic Retinopathy and Vitreous Hemorrhage (1 points) | B43: Proliferative Diabetic Retinopathy and Vitreous Hemorrhage | C43: I8000 | D43: 1
A44: I8000 - Psoriatic Arthropathy and Systemic Sclerosis (1 points) | B44: Psoriatic Arthropathy and Systemic Sclerosis | C44: I8000 | D44: 1
A45: I8000 - Pulmonary Fibrosis and Other Chronic Lung Disorders (1 points) | B45: Pulmonary Fibrosis and Other Chronic Lung Disorders | C45: I8000 | D45: 1
A46: I8000 - Respiratory Arrest (1 points) | B46: Respiratory Arrest | C46: I8000 | D46: 1
A47: I8000 - Severe Skin Burn or Condition (1 points) | B47: Severe Skin Burn or Condition | C47: I8000 | D47: 1
A48: I8000 - Specified Hereditary Metabolic/Immune Disorders (1 points) | B48: Specified Hereditary Metabolic/Immune Disorders | C48: I8000 | D48: 1
A49: I8000 - Systemic Lupus Erythematosus, Other Connective Tissue Disorders, and Inflammatory Spondylopathies (1 points) | B49: Systemic Lupus Erythematosus, Other Connective Tissue Disorders, and Inflammatory Spondylopathies | C49: I8000 | D49: 1
A50: K0510A2 K0710A2 - Parenteral IV Feeding: Level High (7 points) | B50: Parenteral IV Feeding: Level High | C50: K0510A2 K0710A2 | D50: 7
A51: K0510A2 K0710A2 K0710B2 - Parenteral IV feeding: Level Low (3 points) | B51: Parenteral IV feeding: Level Low | C51: K0510A2 K0710A2 K0710B2 | D51: 3
A52: K0510B2 - Nutritional Approaches While a Resident: Feeding Tube (1 points) | B52: Nutritional Approaches While a Resident: Feeding Tube | C52: K0510B2 | D52: 1
A53: M0300X1 - Highest Stage of Unhealed Pressure Ulcer - Stage 4 (1 points) | B53: Highest Stage of Unhealed Pressure Ulcer - Stage 4 | C53: M0300X1 | D53: 1
A54: M1040A M1040B M1040C - Other Foot Skin Problems: Foot Infection Code, Other Open Lesion on Foot Code, Except Diabetic Foot Ulcer Code (1 points) | B54: Other Foot Skin Problems: Foot Infection Code, Other Open Lesion on Foot Code, Except Diabetic Foot Ulcer Code | C54: M1040A M1040B M1040C | D54: 1
A55: M1040B - Other Foot Skin Problems: Diabetic Foot Ulcer Code (1 points) | B55: Other Foot Skin Problems: Diabetic Foot Ulcer Code | C55: M1040B | D55: 1
A56: O0100B2 - Special Treatments/Programs: Radiation Post-admit Code (1 points) | B56: Special Treatments/Programs: Radiation Post-admit Code | C56: O0100B2 | D56: 1
A57: O0100D2 - Special Treatments/Programs: Suctioning Post-admit Code (1 points) | B57: Special Treatments/Programs: Suctioning Post-admit Code | C57: O0100D2 | D57: 1
A58: O0100E2 - Special Treatments/Programs: Tracheostomy Post-admit Code (1 points) | B58: Special Treatments/Programs: Tracheostomy Post-admit Code | C58: O0100E2 | D58: 1
A59: O0100F2 - Special Treatments/Programs: Ventilator Post-admit Code (4 points) | B59: Special Treatments/Programs: Ventilator Post-admit Code | C59: O0100F2 | D59: 4
A60: O0100H2 - Special Treatments/Programs: Intravenous Medication Post-admit Code (5 points) | B60: Special Treatments/Programs: Intravenous Medication Post-admit Code | C60: O0100H2 | D60: 5
A61: O0100I2 - Special Treatments/Programs: Transfusion Post-admit Code (2 points) | B61: Special Treatments/Programs: Transfusion Post-admit Code | C61: O0100I2 | D61: 2
A62: O0100M2 - Special Treatments/Programs: Isolation Post-admit Code (1 points) | B62: Special Treatments/Programs: Isolation Post-admit Code | C62: O0100M2 | D62: 1
A63: SNF Claim ICD-10 B20 - HIV/AIDS (8 points) | B63: HIV/AIDS | C63: SNF Claim ICD-10 B20 | D63: 8

Sheet Case-Mix_Descriptions (hidden)
B2: TA | C2: =PT!$A$5&": "&PT!A6&"|"&PT!$B$5&": "&PT!B6 -> Clinical Category: Major Joint Replacement or Spinal Surgery|Function Score: 0-5 | D2: =PT!$A$5&": "&#REF!&"|"&PT!$B$5&": "&INDEX(PT!B6:E9,MATCH(#REF!,PT!E6:E9,1),1) -> 
B3: TB | C3: =PT!$A$5&": "&PT!A7&"|"&PT!$B$5&": "&PT!B7 -> Clinical Category: Major Joint Replacement or Spinal Surgery|Function Score: 6-9 | D3: =INDEX(B2:C17,MATCH(D2,C2:C17,0),1) -> 
B4: TC | C4: =PT!$A$5&": "&PT!A8&"|"&PT!$B$5&": "&PT!B8 -> Clinical Category: Major Joint Replacement or Spinal Surgery|Function Score: 10-23
B5: TD | C5: =PT!$A$5&": "&PT!A9&"|"&PT!$B$5&": "&PT!B9 -> Clinical Category: Major Joint Replacement or Spinal Surgery|Function Score: 24
B6: TE | C6: =PT!$A$5&": "&PT!A10&"|"&PT!$B$5&": "&PT!B10 -> Clinical Category: Other Orthopedic|Function Score: 0-5
B7: TF | C7: =PT!$A$5&": "&PT!A11&"|"&PT!$B$5&": "&PT!B11 -> Clinical Category: Other Orthopedic|Function Score: 6-9
B8: TG | C8: =PT!$A$5&": "&PT!A12&"|"&PT!$B$5&": "&PT!B12 -> Clinical Category: Other Orthopedic|Function Score: 10-23
B9: TH | C9: =PT!$A$5&": "&PT!A13&"|"&PT!$B$5&": "&PT!B13 -> Clinical Category: Other Orthopedic|Function Score: 24
B10: TI | C10: =PT!$A$5&": "&PT!A14&"|"&PT!$B$5&": "&PT!B14 -> Clinical Category: Medical Management|Function Score: 0-5
B11: TJ | C11: =PT!$A$5&": "&PT!A15&"|"&PT!$B$5&": "&PT!B15 -> Clinical Category: Medical Management|Function Score: 6-9
B12: TK | C12: =PT!$A$5&": "&PT!A16&"|"&PT!$B$5&": "&PT!B16 -> Clinical Category: Medical Management|Function Score: 10-23
B13: TL | C13: =PT!$A$5&": "&PT!A17&"|"&PT!$B$5&": "&PT!B17 -> Clinical Category: Medical Management|Function Score: 24
B14: TM | C14: =PT!$A$5&": "&PT!A18&"|"&PT!$B$5&": "&PT!B18 -> Clinical Category: Non-Orthopedic Surgery and Acute Neurologic|Function Score: 0-5
B15: TN | C15: =PT!$A$5&": "&PT!A19&"|"&PT!$B$5&": "&PT!B19 -> Clinical Category: Non-Orthopedic Surgery and Acute Neurologic|Function Score: 6-9
B16: TO | C16: =PT!$A$5&": "&PT!A20&"|"&PT!$B$5&": "&PT!B20 -> Clinical Category: Non-Orthopedic Surgery and Acute Neurologic|Function Score: 10-23
B17: TP | C17: =PT!$A$5&": "&PT!A21&"|"&PT!$B$5&": "&PT!B21 -> Clinical Category: Non-Orthopedic Surgery and Acute Neurologic|Function Score: 24
B19: SA | C19: =SLP!$A$5&": "&SLP!A6&"|"&SLP!$B$5&": "&SLP!B6 -> Presence of Acute Neurologic Condition, SLP-Related Comorbidity, or Cognitive Impairment: None|Mechanically Altered Diet or Swallowing Disorder: Neither | D19: =SLP!$A$5&": "&#REF!&"|"&SLP!$B$5&": "&#REF! -> 
B20: SB | C20: =SLP!$A$5&": "&SLP!A7&"|"&SLP!$B$5&": "&SLP!B7 -> Presence of Acute Neurologic Condition, SLP-Related Comorbidity, or Cognitive Impairment: None|Mechanically Altered Diet or Swallowing Disorder: Either | D20: =INDEX(B19:C30,MATCH(D19,C19:C30,0),1) -> 
B21: SC | C21: =SLP!$A$5&": "&SLP!A8&"|"&SLP!$B$5&": "&SLP!B8 -> Presence of Acute Neurologic Condition, SLP-Related Comorbidity, or Cognitive Impairment: None|Mechanically Altered Diet or Swallowing Disorder: Both
B22: SD | C22: =SLP!$A$5&": "&SLP!A9&"|"&SLP!$B$5&": "&SLP!B9 -> Presence of Acute Neurologic Condition, SLP-Related Comorbidity, or Cognitive Impairment: Any one|Mechanically Altered Diet or Swallowing Disorder: Neither
B23: SE | C23: =SLP!$A$5&": "&SLP!A10&"|"&SLP!$B$5&": "&SLP!B10 -> Presence of Acute Neurologic Condition, SLP-Related Comorbidity, or Cognitive Impairment: Any one|Mechanically Altered Diet or Swallowing Disorder: Either
B24: SF | C24: =SLP!$A$5&": "&SLP!A11&"|"&SLP!$B$5&": "&SLP!B11 -> Presence of Acute Neurologic Condition, SLP-Related Comorbidity, or Cognitive Impairment: Any one|Mechanically Altered Diet or Swallowing Disorder: Both
B25: SG | C25: =SLP!$A$5&": "&SLP!A12&"|"&SLP!$B$5&": "&SLP!B12 -> Presence of Acute Neurologic Condition, SLP-Related Comorbidity, or Cognitive Impairment: Any two|Mechanically Altered Diet or Swallowing Disorder: Neither
B26: SH | C26: =SLP!$A$5&": "&SLP!A13&"|"&SLP!$B$5&": "&SLP!B13 -> Presence of Acute Neurologic Condition, SLP-Related Comorbidity, or Cognitive Impairment: Any two|Mechanically Altered Diet or Swallowing Disorder: Either
B27: SI | C27: =SLP!$A$5&": "&SLP!A14&"|"&SLP!$B$5&": "&SLP!B14 -> Presence of Acute Neurologic Condition, SLP-Related Comorbidity, or Cognitive Impairment: Any two|Mechanically Altered Diet or Swallowing Disorder: Both
B28: SJ | C28: =SLP!$A$5&": "&SLP!A15&"|"&SLP!$B$5&": "&SLP!B15 -> Presence of Acute Neurologic Condition, SLP-Related Comorbidity, or Cognitive Impairment: All three|Mechanically Altered Diet or Swallowing Disorder: Neither
B29: SK | C29: =SLP!$A$5&": "&SLP!A16&"|"&SLP!$B$5&": "&SLP!B16 -> Presence of Acute Neurologic Condition, SLP-Related Comorbidity, or Cognitive Impairment: All three|Mechanically Altered Diet or Swallowing Disorder: Either
B30: SL | C30: =SLP!$A$5&": "&SLP!A17&"|"&SLP!$B$5&": "&SLP!B17 -> Presence of Acute Neurologic Condition, SLP-Related Comorbidity, or Cognitive Impairment: All three|Mechanically Altered Diet or Swallowing Disorder: Both
B32: ES3 | C32: =Nursing_Analysis!B$121&": "&Nursing!E19&" | "&Nursing!$F$18&": "&Nursing!F19&"|"&Nursing!$G$18&": "&Nursing!G19&"|"&Nursing!$H$18&": "&Nursing!H19 -> Category: Extensive Services | Conditions/Services: Tracheostomy Care and Ventilator/Respirator|Conditions/Services Present: Yes|Section GG-Based Function Score: 0-14 | D32: =Nursing_Analysis!B$121&": "&Nursing_Analysis!$G$121&" | "&Nursing!$F$18&": "&Nursing_Analysis!H122&"|"&Nursing!$G$18&": "&Nursing_Analysis!$I$123&"|"&Nursing!$H$18&": "&Nursing_Analysis!$J$124 -> 
B33: ES2 | C33: =Nursing_Analysis!B$121&": "&Nursing!E20&" | "&Nursing!$F$18&": "&Nursing!F20&"|"&Nursing!$G$18&": "&Nursing!G20&"|"&Nursing!$H$18&": "&Nursing!H20 -> Category: Extensive Services | Conditions/Services: Tracheostomy Care or Ventilator/Respirator|Conditions/Services Present: Yes|Section GG-Based Function Score: 0-14 | D33: =INDEX(B32:C56,MATCH(D32,C32:C56,0),1) -> 
B34: ES1 | C34: =Nursing_Analysis!B$121&": "&Nursing!E21&" | "&Nursing!$F$18&": "&Nursing!F21&"|"&Nursing!$G$18&": "&Nursing!G21&"|"&Nursing!$H$18&": "&Nursing!H21 -> Category: Extensive Services | Conditions/Services: Infection Isolation|Conditions/Services Present: Yes|Section GG-Based Function Score: 0-14
B35: HDE2 | C35: =Nursing_Analysis!B$121&": "&Nursing!E22&" | "&Nursing!$F$18&": "&Nursing!F22&"|"&Nursing!$G$18&": "&Nursing!G22&"|"&Nursing!$H$18&": "&Nursing!H22 -> Category: Special Care High | Conditions/Services: Depressed|Conditions/Services Present: Yes|Section GG-Based Function Score: 0-5
B36: HDE1 | C36: =Nursing_Analysis!B$121&": "&Nursing!E23&" | "&Nursing!$F$18&": "&Nursing!F23&"|"&Nursing!$G$18&": "&Nursing!G23&"|"&Nursing!$H$18&": "&Nursing!H23 -> Category: Special Care High | Conditions/Services: Depressed|Conditions/Services Present: No|Section GG-Based Function Score: 0-5
B37: HBC2 | C37: =Nursing_Analysis!B$121&": "&Nursing!E24&" | "&Nursing!$F$18&": "&Nursing!F24&"|"&Nursing!$G$18&": "&Nursing!G24&"|"&Nursing!$H$18&": "&Nursing!H24 -> Category: Special Care High | Conditions/Services: Depressed|Conditions/Services Present: Yes|Section GG-Based Function Score: 6-14
B38: HBC1 | C38: =Nursing_Analysis!B$121&": "&Nursing!E25&" | "&Nursing!$F$18&": "&Nursing!F25&"|"&Nursing!$G$18&": "&Nursing!G25&"|"&Nursing!$H$18&": "&Nursing!H25 -> Category: Special Care High | Conditions/Services: Depressed|Conditions/Services Present: No|Section GG-Based Function Score: 6-14
B39: LDE2 | C39: =Nursing_Analysis!B$121&": "&Nursing!E26&" | "&Nursing!$F$18&": "&Nursing!F26&"|"&Nursing!$G$18&": "&Nursing!G26&"|"&Nursing!$H$18&": "&Nursing!H26 -> Category: Special Care Low | Conditions/Services: Depressed|Conditions/Services Present: Yes|Section GG-Based Function Score: 0-5
B40: LDE1 | C40: =Nursing_Analysis!B$121&": "&Nursing!E27&" | "&Nursing!$F$18&": "&Nursing!F27&"|"&Nursing!$G$18&": "&Nursing!G27&"|"&Nursing!$H$18&": "&Nursing!H27 -> Category: Special Care Low | Conditions/Services: Depressed|Conditions/Services Present: No|Section GG-Based Function Score: 0-5
B41: LBC2 | C41: =Nursing_Analysis!B$121&": "&Nursing!E28&" | "&Nursing!$F$18&": "&Nursing!F28&"|"&Nursing!$G$18&": "&Nursing!G28&"|"&Nursing!$H$18&": "&Nursing!H28 -> Category: Special Care Low | Conditions/Services: Depressed|Conditions/Services Present: Yes|Section GG-Based Function Score: 6-14
B42: LBC1 | C42: =Nursing_Analysis!B$121&": "&Nursing!E29&" | "&Nursing!$F$18&": "&Nursing!F29&"|"&Nursing!$G$18&": "&Nursing!G29&"|"&Nursing!$H$18&": "&Nursing!H29 -> Category: Special Care Low | Conditions/Services: Depressed|Conditions/Services Present: No|Section GG-Based Function Score: 6-14
B43: CDE2 | C43: =Nursing_Analysis!B$121&": "&Nursing!E30&" | "&Nursing!$F$18&": "&Nursing!F30&"|"&Nursing!$G$18&": "&Nursing!G30&"|"&Nursing!$H$18&": "&Nursing!H30 -> Category: Clinically Complex | Conditions/Services: Depressed|Conditions/Services Present: Yes|Section GG-Based Function Score: 0-5
B44: CDE1 | C44: =Nursing_Analysis!B$121&": "&Nursing!E31&" | "&Nursing!$F$18&": "&Nursing!F31&"|"&Nursing!$G$18&": "&Nursing!G31&"|"&Nursing!$H$18&": "&Nursing!H31 -> Category: Clinically Complex | Conditions/Services: Depressed|Conditions/Services Present: No|Section GG-Based Function Score: 0-5
B45: CBC2 | C45: =Nursing_Analysis!B$121&": "&Nursing!E32&" | "&Nursing!$F$18&": "&Nursing!F32&"|"&Nursing!$G$18&": "&Nursing!G32&"|"&Nursing!$H$18&": "&Nursing!H32 -> Category: Clinically Complex | Conditions/Services: Depressed|Conditions/Services Present: Yes|Section GG-Based Function Score: 6-14
B46: CA2 | C46: =Nursing_Analysis!B$121&": "&Nursing!E33&" | "&Nursing!$F$18&": "&Nursing!F33&"|"&Nursing!$G$18&": "&Nursing!G33&"|"&Nursing!$H$18&": "&Nursing!H33 -> Category: Clinically Complex | Conditions/Services: Depressed|Conditions/Services Present: Yes|Section GG-Based Function Score: 15-16
B47: CBC1 | C47: =Nursing_Analysis!B$121&": "&Nursing!E34&" | "&Nursing!$F$18&": "&Nursing!F34&"|"&Nursing!$G$18&": "&Nursing!G34&"|"&Nursing!$H$18&": "&Nursing!H34 -> Category: Clinically Complex | Conditions/Services: Depressed|Conditions/Services Present: No|Section GG-Based Function Score: 6-14
B48: CA1 | C48: =Nursing_Analysis!B$121&": "&Nursing!E35&" | "&Nursing!$F$18&": "&Nursing!F35&"|"&Nursing!$G$18&": "&Nursing!G35&"|"&Nursing!$H$18&": "&Nursing!H35 -> Category: Clinically Complex | Conditions/Services: Depressed|Conditions/Services Present: No|Section GG-Based Function Score: 15-16
B49: BAB2 | C49: =Nursing_Analysis!B$121&": "&Nursing!E36&" | "&Nursing!$F$18&": "&Nursing!F36&"|"&Nursing!$G$18&": "&Nursing!G36&"|"&Nursing!$H$18&": "&Nursing!H36 -> Category: Behavioral Cognitive Symptoms | Conditions/Services: Restorative Nursing Services|Conditions/Services Present: 2 or More|Section GG-Based Function Score: 11-16
B50: BAB1 | C50: =Nursing_Analysis!B$121&": "&Nursing!E37&" | "&Nursing!$F$18&": "&Nursing!F37&"|"&Nursing!$G$18&": "&Nursing!G37&"|"&Nursing!$H$18&": "&Nursing!H37 -> Category: Behavioral Cognitive Symptoms | Conditions/Services: Restorative Nursing Services|Conditions/Services Present: 0-1|Section GG-Based Function Score: 11-16
B51: PDE2 | C51: =Nursing_Analysis!B$121&": "&Nursing!E38&" | "&Nursing!$F$18&": "&Nursing!F38&"|"&Nursing!$G$18&": "&Nursing!G38&"|"&Nursing!$H$18&": "&Nursing!H38 -> Category: Reduced Physical Function | Conditions/Services: Restorative Nursing Services|Conditions/Services Present: 2 or More|Section GG-Based Function Score: 0-5
B52: PDE1 | C52: =Nursing_Analysis!B$121&": "&Nursing!E39&" | "&Nursing!$F$18&": "&Nursing!F39&"|"&Nursing!$G$18&": "&Nursing!G39&"|"&Nursing!$H$18&": "&Nursing!H39 -> Category: Reduced Physical Function | Conditions/Services: Restorative Nursing Services|Conditions/Services Present: 0-1|Section GG-Based Function Score: 0-5
B53: PBC2 | C53: =Nursing_Analysis!B$121&": "&Nursing!E40&" | "&Nursing!$F$18&": "&Nursing!F40&"|"&Nursing!$G$18&": "&Nursing!G40&"|"&Nursing!$H$18&": "&Nursing!H40 -> Category: Reduced Physical Function | Conditions/Services: Restorative Nursing Services|Conditions/Services Present: 2 or More|Section GG-Based Function Score: 6-14
B54: PA2 | C54: =Nursing_Analysis!B$121&": "&Nursing!E41&" | "&Nursing!$F$18&": "&Nursing!F41&"|"&Nursing!$G$18&": "&Nursing!G41&"|"&Nursing!$H$18&": "&Nursing!H41 -> Category: Reduced Physical Function | Conditions/Services: Restorative Nursing Services|Conditions/Services Present: 2 or More|Section GG-Based Function Score: 15-16
B55: PBC1 | C55: =Nursing_Analysis!B$121&": "&Nursing!E42&" | "&Nursing!$F$18&": "&Nursing!F42&"|"&Nursing!$G$18&": "&Nursing!G42&"|"&Nursing!$H$18&": "&Nursing!H42 -> Category: Reduced Physical Function | Conditions/Services: Restorative Nursing Services|Conditions/Services Present: 0-1|Section GG-Based Function Score: 6-14
B56: PA1 | C56: =Nursing_Analysis!B$121&": "&Nursing!E43&" | "&Nursing!$F$18&": "&Nursing!F43&"|"&Nursing!$G$18&": "&Nursing!G43&"|"&Nursing!$H$18&": "&Nursing!H43 -> Category: Reduced Physical Function | Conditions/Services: Restorative Nursing Services|Conditions/Services Present: 0-1|Section GG-Based Function Score: 15-16
B58: NA | C58: =NTA!$A$5&": "&NTA!A6 -> NTA Comorbidity Score: 12+ | D58: =NTA!$A$5&": "&INDEX(NTA!$A$13:$D$18,MATCH(#REF!,NTA!$D$13:$D$18,1),1) -> 
B59: NB | C59: =NTA!$A$5&": "&NTA!A7 -> NTA Comorbidity Score: 9-11 | D59: =INDEX(B58:C63,MATCH(D58,C58:C63,0),1) -> 
B60: NC | C60: =NTA!$A$5&": "&NTA!A8 -> NTA Comorbidity Score: 6-8
B61: ND | C61: =NTA!$A$5&": "&NTA!A9 -> NTA Comorbidity Score: 3-5
B62: NE | C62: =NTA!$A$5&": "&NTA!A10 -> NTA Comorbidity Score: 1-2
B63: NF | C63: =NTA!$A$5&": "&NTA!A11 -> NTA Comorbidity Score: 0

Sheet VPD (hidden)
A1: PT & OT
A2: Day in Stay
C3: Adjustment Factor | D3: Days Remaining | E3: Weighted Days
A4: 1 | B4: 20 | C4: 1 | D4: =MAX(#REF!-B4,0) ->  | E4: =MIN(B4,#REF!)*C4 -> 
A5: =+A4+20 -> 21 | B5: =+B4+7 -> 27 | C5: =+C4-0.02 -> 0.98 | D5: =MAX(#REF!-B5,0) ->  | E5: =IF(D5>0,(B5-B4)*C5,D4*C5) -> 
A6: =+A5+7 -> 28 | B6: =+B5+7 -> 34 | C6: =+C5-0.02 -> 0.96 | D6: =MAX(#REF!-B6,0) ->  | E6: =IF(D6>0,(B6-B5)*C6,D5*C6) -> 
A7: =+A6+7 -> 35 | B7: =+B6+7 -> 41 | C7: 0.94 | D7: =MAX(#REF!-B7,0) ->  | E7: =IF(D7>0,(B7-B6)*C7,D6*C7) -> 
A8: 42 | B8: 48 | C8: 0.92 | D8: =MAX(#REF!-B8,0) ->  | E8: =IF(D8>0,(B8-B7)*C8,D7*C8) -> 
A9: 49 | B9: 55 | C9: 0.9 | D9: =MAX(#REF!-B9,0) -> 
A10: 56 | B10: 62 | C10: 0.88 | D10: =MAX(#REF!-B10,0) -> 
A11: 63 | B11: 69 | C11: 0.86 | D11: =MAX(#REF!-B11,0) -> 
A12: 70 | B12: 76 | C12: 0.84 | D12: =MAX(#REF!-B12,0) -> 
A13: 77 | B13: 83 | C13: 0.82 | D13: =MAX(#REF!-B13,0) -> 
A14: 84 | B14: 90 | C14: 0.8 | D14: =MAX(#REF!-B14,0) -> 
A15: =+A14+7 -> 91 | B15: =+B14+7 -> 97 | C15: 0.78 | D15: =MAX(#REF!-B15,0) -> 
A16: 98 | B16: 100 | C16: 0.76 | D16: =MAX(#REF!-B16,0) -> 
E17: =SUM(E4:E16) ->  | F17: Total Weighted Days
E18: =E17/#REF! ->  | F18: PT/OT VPD Adjustment
A20: NTA
A21: Day in Stay
C22: Adjustment Factor | D22: Days Remaining | E22: Weighted Days
A23: 1 | B23: 3 | C23: 3 | D23: =MAX(#REF!-B23,0) ->  | E23: =B23*C23 -> 9
A24: 4 | B24: 100 | C24: 1 | D24: =MAX(#REF!-B24,0) ->  | E24: =IF(D24>0,(B24-B23)*C24,D23*C24) -> 
E25: =SUM(E23:E24) ->  | F25: Total Weighted Days
E26: =E25/#REF! ->  | F26: NTA VPD Adjustment

Sheet Case-Mix_Rates (hidden)
A1: HIPPS_Code | B1: PT/OT | C1: PT CMI | D1: PT Urban | E1: PT Rural | F1: OT CMI | G1: OT Urban | H1: OT Rural | I1: SLP | J1: SLP CMI | K1: SLP Urban | L1: SLP Rural | M1: Nursing | N1: Nursing CMI | O1: Nursing Rate Urban | P1: Nursing Rate Rural | Q1: NTA | R1: NTA CMI | S1: NTA Urban | T1: NTA Rural
A2: A | B2: TA | C2: =VLOOKUP($B2,PT!$C$6:$D$21,2,FALSE) -> 1.45 | D2: =$C2*Base_Rates!$D$3 -> 109.8085 | E2: =$C2*Base_Rates!$D$4 -> 125.1785 | F2: =VLOOKUP($B2,OT!$C$6:$D$21,2,FALSE) -> 1.41 | G2: =$F2*Base_Rates!$E$3 -> 99.3909 | H2: =$F2*Base_Rates!$E$4 -> 111.7989 | I2: SA | J2: =VLOOKUP($I2,SLP!$C$6:$D$21,2,FALSE) -> 0.64 | K2: =$J2*Base_Rates!$F$3 -> 18.0992 | L2: =$J2*Base_Rates!$F$4 -> 22.8032 | M2: ES3 | N2: =VLOOKUP($M2,Nursing!$A$6:$C$36,3,FALSE) -> 3.84 | O2: =$N2*Base_Rates!$B$3 -> 506.88 | P2: =$N2*Base_Rates!$B$4 -> 484.3008 | Q2: NA | R2: =VLOOKUP($Q2,NTA!$B$6:$C$36,2,FALSE) -> 3.06 | S2: =$R2*Base_Rates!$C$3 -> 304.7454 | T2: =$R2*Base_Rates!$C$4 -> 291.159
A3: B | B3: TB | C3: =VLOOKUP($B3,PT!$C$6:$D$21,2,FALSE) -> 1.61 | D3: =$C3*Base_Rates!$D$3 -> 121.9253 | E3: =$C3*Base_Rates!$D$4 -> 138.9913 | F3: =VLOOKUP($B3,OT!$C$6:$D$21,2,FALSE) -> 1.54 | G3: =$F3*Base_Rates!$E$3 -> 108.5546 | H3: =$F3*Base_Rates!$E$4 -> 122.1066 | I3: SB | J3: =VLOOKUP($I3,SLP!$C$6:$D$21,2,FALSE) -> 1.72 | K3: =$J3*Base_Rates!$F$3 -> 48.6416 | L3: =$J3*Base_Rates!$F$4 -> 61.2836 | M3: ES2 | N3: =VLOOKUP($M3,Nursing!$A$6:$C$36,3,FALSE) -> 2.9 | O3: =$N3*Base_Rates!$B$3 -> 382.8 | P3: =$N3*Base_Rates!$B$4 -> 365.748 | Q3: NB | R3: =VLOOKUP($Q3,NTA!$B$6:$C$36,2,FALSE) -> 2.39 | S3: =$R3*Base_Rates!$C$3 -> 238.0201 | T3: =$R3*Base_Rates!$C$4 -> 227.4085
A4: C | B4: TC | C4: =VLOOKUP($B4,PT!$C$6:$D$21,2,FALSE) -> 1.78 | D4: =$C4*Base_Rates!$D$3 -> 134.7994 | E4: =$C4*Base_Rates!$D$4 -> 153.6674 | F4: =VLOOKUP($B4,OT!$C$6:$D$21,2,FALSE) -> 1.6 | G4: =$F4*Base_Rates!$E$3 -> 112.784 | H4: =$F4*Base_Rates!$E$4 -> 126.864 | I4: SC | J4: =VLOOKUP($I4,SLP!$C$6:$D$21,2,FALSE) -> 2.52 | K4: =$J4*Base_Rates!$F$3 -> 71.2656 | L4: =$J4*Base_Rates!$F$4 -> 89.7876 | M4: ES1 | N4: =VLOOKUP($M4,Nursing!$A$6:$C$36,3,FALSE) -> 2.77 | O4: =$N4*Base_Rates!$B$3 -> 365.64 | P4: =$N4*Base_Rates!$B$4 -> 349.3524 | Q4: NC | R4: =VLOOKUP($Q4,NTA!$B$6:$C$36,2,FALSE) -> 1.74 | S4: =$R4*Base_Rates!$C$3 -> 173.2866 | T4: =$R4*Base_Rates!$C$4 -> 165.561
A5: D | B5: TD | C5: =VLOOKUP($B5,PT!$C$6:$D$21,2,FALSE) -> 1.81 | D5: =$C5*Base_Rates!$D$3 -> 137.0713 | E5: =$C5*Base_Rates!$D$4 -> 156.2573 | F5: =VLOOKUP($B5,OT!$C$6:$D$21,2,FALSE) -> 1.45 | G5: =$F5*Base_Rates!$E$3 -> 102.2105 | H5: =$F5*Base_Rates!$E$4 -> 114.9705 | I5: SD | J5: =VLOOKUP($I5,SLP!$C$6:$D$21,2,FALSE) -> 1.38 | K5: =$J5*Base_Rates!$F$3 -> 39.0264 | L5: =$J5*Base_Rates!$F$4 -> 49.1694 | M5: HDE2 | N5: =VLOOKUP($M5,Nursing!$A$6:$C$36,3,FALSE) -> 2.27 | O5: =$N5*Base_Rates!$B$3 -> 299.64 | P5: =$N5*Base_Rates!$B$4 -> 286.2924 | Q5: ND | R5: =VLOOKUP($Q5,NTA!$B$6:$C$36,2,FALSE) -> 1.26 | S5: =$R5*Base_Rates!$C$3 -> 125.4834 | T5: =$R5*Base_Rates!$C$4 -> 119.889
A6: E | B6: TE | C6: =VLOOKUP($B6,PT!$C$6:$D$21,2,FALSE) -> 1.34 | D6: =$C6*Base_Rates!$D$3 -> 101.4782 | E6: =$C6*Base_Rates!$D$4 -> 115.6822 | F6: =VLOOKUP($B6,OT!$C$6:$D$21,2,FALSE) -> 1.33 | G6: =$F6*Base_Rates!$E$3 -> 93.7517 | H6: =$F6*Base_Rates!$E$4 -> 105.4557 | I6: SE | J6: =VLOOKUP($I6,SLP!$C$6:$D$21,2,FALSE) -> 2.21 | K6: =$J6*Base_Rates!$F$3 -> 62.4988 | L6: =$J6*Base_Rates!$F$4 -> 78.7423 | M6: HDE1 | N6: =VLOOKUP($M6,Nursing!$A$6:$C$36,3,FALSE) -> 1.88 | O6: =$N6*Base_Rates!$B$3 -> 248.16 | P6: =$N6*Base_Rates!$B$4 -> 237.1056 | Q6: NE | R6: =VLOOKUP($Q6,NTA!$B$6:$C$36,2,FALSE) -> 0.91 | S6: =$R6*Base_Rates!$C$3 -> 90.6269 | T6: =$R6*Base_Rates!$C$4 -> 86.5865
A7: F | B7: TF | C7: =VLOOKUP($B7,PT!$C$6:$D$21,2,FALSE) -> 1.52 | D7: =$C7*Base_Rates!$D$3 -> 115.1096 | E7: =$C7*Base_Rates!$D$4 -> 131.2216 | F7: =VLOOKUP($B7,OT!$C$6:$D$21,2,FALSE) -> 1.51 | G7: =$F7*Base_Rates!$E$3 -> 106.4399 | H7: =$F7*Base_Rates!$E$4 -> 119.7279 | I7: SF | J7: =VLOOKUP($I7,SLP!$C$6:$D$21,2,FALSE) -> 2.82 | K7: =$J7*Base_Rates!$F$3 -> 79.7496 | L7: =$J7*Base_Rates!$F$4 -> 100.4766 | M7: HBC2 | N7: =VLOOKUP($M7,Nursing!$A$6:$C$36,3,FALSE) -> 2.12 | O7: =$N7*Base_Rates!$B$3 -> 279.84 | P7: =$N7*Base_Rates!$B$4 -> 267.3744 | Q7: NF | R7: =VLOOKUP($Q7,NTA!$B$6:$C$36,2,FALSE) -> 0.68 | S7: =$R7*Base_Rates!$C$3 -> 67.7212 | T7: =$R7*Base_Rates!$C$4 -> 64.702
A8: G | B8: TG | C8: =VLOOKUP($B8,PT!$C$6:$D$21,2,FALSE) -> 1.58 | D8: =$C8*Base_Rates!$D$3 -> 119.6534 | E8: =$C8*Base_Rates!$D$4 -> 136.4014 | F8: =VLOOKUP($B8,OT!$C$6:$D$21,2,FALSE) -> 1.55 | G8: =$F8*Base_Rates!$E$3 -> 109.2595 | H8: =$F8*Base_Rates!$E$4 -> 122.8995 | I8: SG | J8: =VLOOKUP($I8,SLP!$C$6:$D$21,2,FALSE) -> 1.93 | K8: =$J8*Base_Rates!$F$3 -> 54.5804 | L8: =$J8*Base_Rates!$F$4 -> 68.7659 | M8: HBC1 | N8: =VLOOKUP($M8,Nursing!$A$6:$C$36,3,FALSE) -> 1.76 | O8: =$N8*Base_Rates!$B$3 -> 232.32 | P8: =$N8*Base_Rates!$B$4 -> 221.9712
A9: H | B9: TH | C9: =VLOOKUP($B9,PT!$C$6:$D$21,2,FALSE) -> 1.1 | D9: =$C9*Base_Rates!$D$3 -> 83.303 | E9: =$C9*Base_Rates!$D$4 -> 94.963 | F9: =VLOOKUP($B9,OT!$C$6:$D$21,2,FALSE) -> 1.09 | G9: =$F9*Base_Rates!$E$3 -> 76.8341 | H9: =$F9*Base_Rates!$E$4 -> 86.4261 | I9: SH | J9: =VLOOKUP($I9,SLP!$C$6:$D$21,2,FALSE) -> 2.7 | K9: =$J9*Base_Rates!$F$3 -> 76.356 | L9: =$J9*Base_Rates!$F$4 -> 96.201 | M9: LDE2 | N9: =VLOOKUP($M9,Nursing!$A$6:$C$36,3,FALSE) -> 1.97 | O9: =$N9*Base_Rates!$B$3 -> 260.04 | P9: =$N9*Base_Rates!$B$4 -> 248.4564
A10: I | B10: TI | C10: =VLOOKUP($B10,PT!$C$6:$D$21,2,FALSE) -> 1.07 | D10: =$C10*Base_Rates!$D$3 -> 81.0311 | E10: =$C10*Base_Rates!$D$4 -> 92.3731 | F10: =VLOOKUP($B10,OT!$C$6:$D$21,2,FALSE) -> 1.12 | G10: =$F10*Base_Rates!$E$3 -> 78.9488 | H10: =$F10*Base_Rates!$E$4 -> 88.8048 | I10: SI | J10: =VLOOKUP($I10,SLP!$C$6:$D$21,2,FALSE) -> 3.34 | K10: =$J10*Base_Rates!$F$3 -> 94.4552 | L10: =$J10*Base_Rates!$F$4 -> 119.0042 | M10: LDE1 | N10: =VLOOKUP($M10,Nursing!$A$6:$C$36,3,FALSE) -> 1.64 | O10: =$N10*Base_Rates!$B$3 -> 216.48 | P10: =$N10*Base_Rates!$B$4 -> 206.8368
A11: J | B11: TJ | C11: =VLOOKUP($B11,PT!$C$6:$D$21,2,FALSE) -> 1.34 | D11: =$C11*Base_Rates!$D$3 -> 101.4782 | E11: =$C11*Base_Rates!$D$4 -> 115.6822 | F11: =VLOOKUP($B11,OT!$C$6:$D$21,2,FALSE) -> 1.37 | G11: =$F11*Base_Rates!$E$3 -> 96.5713 | H11: =$F11*Base_Rates!$E$4 -> 108.6273 | I11: SJ | J11: =VLOOKUP($I11,SLP!$C$6:$D$21,2,FALSE) -> 2.83 | K11: =$J11*Base_Rates!$F$3 -> 80.0324 | L11: =$J11*Base_Rates!$F$4 -> 100.8329 | M11: LBC2 | N11: =VLOOKUP($M11,Nursing!$A$6:$C$36,3,FALSE) -> 1.63 | O11: =$N11*Base_Rates!$B$3 -> 215.16 | P11: =$N11*Base_Rates!$B$4 -> 205.5756
A12: K | B12: TK | C12: =VLOOKUP($B12,PT!$C$6:$D$21,2,FALSE) -> 1.44 | D12: =$C12*Base_Rates!$D$3 -> 109.0512 | E12: =$C12*Base_Rates!$D$4 -> 124.3152 | F12: =VLOOKUP($B12,OT!$C$6:$D$21,2,FALSE) -> 1.46 | G12: =$F12*Base_Rates!$E$3 -> 102.9154 | H12: =$F12*Base_Rates!$E$4 -> 115.7634 | I12: SK | J12: =VLOOKUP($I12,SLP!$C$6:$D$21,2,FALSE) -> 3.5 | K12: =$J12*Base_Rates!$F$3 -> 98.98 | L12: =$J12*Base_Rates!$F$4 -> 124.705 | M12: LBC1 | N12: =VLOOKUP($M12,Nursing!$A$6:$C$36,3,FALSE) -> 1.35 | O12: =$N12*Base_Rates!$B$3 -> 178.2 | P12: =$N12*Base_Rates!$B$4 -> 170.262
A13: L | B13: TL | C13: =VLOOKUP($B13,PT!$C$6:$D$21,2,FALSE) -> 1.03 | D13: =$C13*Base_Rates!$D$3 -> 78.0019 | E13: =$C13*Base_Rates!$D$4 -> 88.9199 | F13: =VLOOKUP($B13,OT!$C$6:$D$21,2,FALSE) -> 1.05 | G13: =$F13*Base_Rates!$E$3 -> 74.0145 | H13: =$F13*Base_Rates!$E$4 -> 83.2545 | I13: SL | J13: =VLOOKUP($I13,SLP!$C$6:$D$21,2,FALSE) -> 3.98 | K13: =$J13*Base_Rates!$F$3 -> 112.5544 | L13: =$J13*Base_Rates!$F$4 -> 141.8074 | M13: CDE2 | N13: =VLOOKUP($M13,Nursing!$A$6:$C$36,3,FALSE) -> 1.77 | O13: =$N13*Base_Rates!$B$3 -> 233.64 | P13: =$N13*Base_Rates!$B$4 -> 223.2324
A14: M | B14: TM | C14: =VLOOKUP($B14,PT!$C$6:$D$21,2,FALSE) -> 1.2 | D14: =$C14*Base_Rates!$D$3 -> 90.876 | E14: =$C14*Base_Rates!$D$4 -> 103.596 | F14: =VLOOKUP($B14,OT!$C$6:$D$21,2,FALSE) -> 1.23 | G14: =$F14*Base_Rates!$E$3 -> 86.7027 | H14: =$F14*Base_Rates!$E$4 -> 97.5267 | I14: ="" ->  | M14: CDE1 | N14: =VLOOKUP($M14,Nursing!$A$6:$C$36,3,FALSE) -> 1.53 | O14: =$N14*Base_Rates!$B$3 -> 201.96 | P14: =$N14*Base_Rates!$B$4 -> 192.9636
A15: N | B15: TN | C15: =VLOOKUP($B15,PT!$C$6:$D$21,2,FALSE) -> 1.4 | D15: =$C15*Base_Rates!$D$3 -> 106.022 | E15: =$C15*Base_Rates!$D$4 -> 120.862 | F15: =VLOOKUP($B15,OT!$C$6:$D$21,2,FALSE) -> 1.42 | G15: =$F15*Base_Rates!$E$3 -> 100.0958 | H15: =$F15*Base_Rates!$E$4 -> 112.5918 | M15: CBC2 | N15: =VLOOKUP($M15,Nursing!$A$6:$C$36,3,FALSE) -> 1.47 | O15: =$N15*Base_Rates!$B$3 -> 194.04 | P15: =$N15*Base_Rates!$B$4 -> 185.3964
A16: O | B16: TO | C16: =VLOOKUP($B16,PT!$C$6:$D$21,2,FALSE) -> 1.47 | D16: =$C16*Base_Rates!$D$3 -> 111.3231 | E16: =$C16*Base_Rates!$D$4 -> 126.9051 | F16: =VLOOKUP($B16,OT!$C$6:$D$21,2,FALSE) -> 1.47 | G16: =$F16*Base_Rates!$E$3 -> 103.6203 | H16: =$F16*Base_Rates!$E$4 -> 116.5563 | M16: CA2 | N16: =VLOOKUP($M16,Nursing!$A$6:$C$36,3,FALSE) -> 1.03 | O16: =$N16*Base_Rates!$B$3 -> 135.96 | P16: =$N16*Base_Rates!$B$4 -> 129.9036
A17: P | B17: TP | C17: =VLOOKUP($B17,PT!$C$6:$D$21,2,FALSE) -> 1.02 | D17: =$C17*Base_Rates!$D$3 -> 77.2446 | E17: =$C17*Base_Rates!$D$4 -> 88.0566 | F17: =VLOOKUP($B17,OT!$C$6:$D$21,2,FALSE) -> 1.03 | G17: =$F17*Base_Rates!$E$3 -> 72.6047 | H17: =$F17*Base_Rates!$E$4 -> 81.6687 | M17: CBC1 | N17: =VLOOKUP($M17,Nursing!$A$6:$C$36,3,FALSE) -> 1.27 | O17: =$N17*Base_Rates!$B$3 -> 167.64 | P17: =$N17*Base_Rates!$B$4 -> 160.1724
A18: Q | B18: ="" ->  | M18: CA1 | N18: =VLOOKUP($M18,Nursing!$A$6:$C$36,3,FALSE) -> 0.89 | O18: =$N18*Base_Rates!$B$3 -> 117.48 | P18: =$N18*Base_Rates!$B$4 -> 112.2468
A19: R | M19: BAB2 | N19: =VLOOKUP($M19,Nursing!$A$6:$C$36,3,FALSE) -> 0.98 | O19: =$N19*Base_Rates!$B$3 -> 129.36 | P19: =$N19*Base_Rates!$B$4 -> 123.5976
A20: S | M20: BAB1 | N20: =VLOOKUP($M20,Nursing!$A$6:$C$36,3,FALSE) -> 0.94 | O20: =$N20*Base_Rates!$B$3 -> 124.08 | P20: =$N20*Base_Rates!$B$4 -> 118.5528
A21: T | M21: PDE2 | N21: =VLOOKUP($M21,Nursing!$A$6:$C$36,3,FALSE) -> 1.48 | O21: =$N21*Base_Rates!$B$3 -> 195.36 | P21: =$N21*Base_Rates!$B$4 -> 186.6576
A22: U | M22: PDE1 | N22: =VLOOKUP($M22,Nursing!$A$6:$C$36,3,FALSE) -> 1.39 | O22: =$N22*Base_Rates!$B$3 -> 183.48 | P22: =$N22*Base_Rates!$B$4 -> 175.3068
A23: V | M23: PBC2 | N23: =VLOOKUP($M23,Nursing!$A$6:$C$36,3,FALSE) -> 1.15 | O23: =$N23*Base_Rates!$B$3 -> 151.8 | P23: =$N23*Base_Rates!$B$4 -> 145.038
A24: W | M24: PA2 | N24: =VLOOKUP($M24,Nursing!$A$6:$C$36,3,FALSE) -> 0.67 | O24: =$N24*Base_Rates!$B$3 -> 88.44 | P24: =$N24*Base_Rates!$B$4 -> 84.5004
A25: X | M25: PBC1 | N25: =VLOOKUP($M25,Nursing!$A$6:$C$36,3,FALSE) -> 1.07 | O25: =$N25*Base_Rates!$B$3 -> 141.24 | P25: =$N25*Base_Rates!$B$4 -> 134.9484
A26: Y | M26: PA1 | N26: =VLOOKUP($M26,Nursing!$A$6:$C$36,3,FALSE) -> 0.62 | O26: =$N26*Base_Rates!$B$3 -> 81.84 | P26: =$N26*Base_Rates!$B$4 -> 78.1944
M27: ="" -> 

Sheet PT (hidden)
A1: PDPM PT CMI : Physical Therapy Case Mix Indices
A2: Overview
A4: PT Component | F4: Points Assigned to Section GG Responses (Except Walking) | I4: Points Assigned to Section GG Responses ( Walking Items)
A5: Clinical Category | B5: Function Score | C5: PT Case Mix Group | D5: CMI | E5: Table 5 / 6 | F5: Section GG Responses | G5: Function Score | I5: Section GG Responses | J5: Function Score
A6: Major Joint Replacement or Spinal Surgery | B6: 0-5 | C6: TA | D6: 1.45 | E6: =IFERROR(LEFT(B6,FIND("-",B6)-1),B6)*1 -> 0 | F6: Independent | G6: 4 | I6: Independent | J6: 4
A7: Major Joint Replacement or Spinal Surgery | B7: 6-9 | C7: TB | D7: 1.61 | E7: =IFERROR(LEFT(B7,FIND("-",B7)-1),B7)*1 -> 6 | F7: Set-up Assistance | G7: 4 | I7: Set-up Assistance | J7: 4
A8: Major Joint Replacement or Spinal Surgery | B8: 10-23 | C8: TC | D8: 1.78 | E8: 10 | F8: Supervision or touching assistance | G8: 3 | I8: Supervision or touching assistance | J8: 3
A9: Major Joint Replacement or Spinal Surgery | B9: 24 | C9: TD | D9: 1.81 | E9: 24 | F9: Partial/moderate assistance | G9: 2 | I9: Partial/moderate assistance | J9: 2
A10: Other Orthopedic | B10: 0-5 | C10: TE | D10: 1.34 | F10: Substantial/maximal assistance | G10: 1 | I10: Substantial/maximal assistance | J10: 1
A11: Other Orthopedic | B11: 6-9 | C11: TF | D11: 1.52 | F11: Dependent | G11: 0 | I11: Dependent | J11: 0
A12: Other Orthopedic | B12: 10-23 | C12: TG | D12: 1.58 | F12: Refused | G12: 0 | I12: Refused | J12: 0
A13: Other Orthopedic | B13: 24 | C13: TH | D13: 1.1 | F13: N/A | G13: 0 | I13: N/A | J13: 0
A14: Medical Management | B14: 0-5 | C14: TI | D14: 1.07 | F14: Not Attempted | G14: 0 | I14: Not Attempted, Resident Cannot Walk | J14: 0
A15: Medical Management | B15: 6-9 | C15: TJ | D15: 1.34
A16: Medical Management | B16: 10-23 | C16: TK | D16: 1.44
A17: Medical Management | B17: 24 | C17: TL | D17: 1.03
A18: Non-Orthopedic Surgery and Acute Neurologic | B18: 0-5 | C18: TM | D18: 1.2
A19: Non-Orthopedic Surgery and Acute Neurologic | B19: 6-9 | C19: TN | D19: 1.4
A20: Non-Orthopedic Surgery and Acute Neurologic | B20: 10-23 | C20: TO | D20: 1.47
A21: Non-Orthopedic Surgery and Acute Neurologic | B21: 24 | C21: TP | D21: 1.02
J22: End of Worksheet

Sheet OT (hidden)
A1: PDPM OT CMI : Occupational Therapy Case Mix Indices
A2: Overview
A4: OT Component | F4: Points Assigned to Section GG Responses (Except Walking) | I4: Points Assigned to Section GG Responses ( Walking Items)
A5: Clinical Category | B5: Function Score | C5: OT Case Mix Group | D5: CMI | E5: Table 5 / 6 | F5: Section GG Responses | G5: Function Score | I5: Section GG Responses | J5: Function Score
A6: Major Joint Replacement or Spinal Surgery | B6: 0-5 | C6: TA | D6: 1.41 | F6: Independent | G6: 4 | I6: Independent | J6: 4
A7: Major Joint Replacement or Spinal Surgery | B7: 6-9 | C7: TB | D7: 1.54 | F7: Set-up Assistance | G7: 4 | I7: Set-up Assistance | J7: 4
A8: Major Joint Replacement or Spinal Surgery | B8: 10-23 | C8: TC | D8: 1.6 | F8: Supervision or touching assistance | G8: 3 | I8: Supervision or touching assistance | J8: 3
A9: Major Joint Replacement or Spinal Surgery | B9: 24 | C9: TD | D9: 1.45 | F9: Partial/moderate assistance | G9: 2 | I9: Partial/moderate assistance | J9: 2
A10: Other Orthopedic | B10: 0-5 | C10: TE | D10: 1.33 | F10: Substantial/maximal assistance | G10: 1 | I10: Substantial/maximal assistance | J10: 1
A11: Other Orthopedic | B11: 6-9 | C11: TF | D11: 1.51 | F11: Dependent | G11: 0 | I11: Dependent | J11: 0
A12: Other Orthopedic | B12: 10-23 | C12: TG | D12: 1.55 | F12: Refused | G12: 0 | I12: Refused | J12: 0
A13: Other Orthopedic | B13: 24 | C13: TH | D13: 1.09 | F13: N/A | G13: 0 | I13: N/A | J13: 0
A14: Medical Management | B14: 0-5 | C14: TI | D14: 1.12 | F14: Not Attempted | G14: 0 | I14: Not Attempted, Resident Cannot Walk | J14: 0
A15: Medical Management | B15: 6-9 | C15: TJ | D15: 1.37
A16: Medical Management | B16: 10-23 | C16: TK | D16: 1.46
A17: Medical Management | B17: 24 | C17: TL | D17: 1.05
A18: Non-Orthopedic Surgery and Acute Neurologic | B18: 0-5 | C18: TM | D18: 1.23
A19: Non-Orthopedic Surgery and Acute Neurologic | B19: 6-9 | C19: TN | D19: 1.42
A20: Non-Orthopedic Surgery and Acute Neurologic | B20: 10-23 | C20: TO | D20: 1.47
A21: Non-Orthopedic Surgery and Acute Neurologic | B21: 24 | C21: TP | D21: 1.03
J22: End of Worksheet

Sheet SLP (hidden)
A1: PDPM SLP CMI : Speech-Language Pathology Case Mix Indices
A2: Overview
A4: SLP Component | F4: Cognitive Impairment*
A5: Presence of Acute Neurologic Condition, SLP-Related Comorbidity, or Cognitive Impairment | B5: Mechanically Altered Diet or Swallowing Disorder | C5: SLP Case Mix Group | D5: CMI | E5: Table 5 / 6 | F5: PDPM Cognitive Level | G5: BIMS Score | H5: Staff Assessment Score
A6: None | B6: Neither | C6: SA | D6: 0.64 | F6: 1 - Cognitively Intact | G6: 13-15 | H6: 0
A7: None | B7: Either | C7: SB | D7: 1.72 | F7: 2 - Mildly Impaired | G7: 8-12 | H7: 1-2
A8: None | B8: Both | C8: SC | D8: 2.52 | F8: 3 - Moderately Impaired | G8: 0-7 | H8: 3-4
A9: Any one | B9: Neither | C9: SD | D9: 1.38 | F9: 4 - Severely Impaired | G9: - | H9: 5-6
A10: Any one | B10: Either | C10: SE | D10: 2.21 | F10: *Note: Residents are classified as cognitively impaired when they are assessed to be mildly, moderately, or severely impaired
A11: Any one | B11: Both | C11: SF | D11: 2.82
A12: Any two | B12: Neither | C12: SG | D12: 1.93
A13: Any two | B13: Either | C13: SH | D13: 2.7 | F13: Comorbidities Included in SLP Component
A14: Any two | B14: Both | C14: SI | D14: 3.34 | F14: Condition | G14: ICD-10-CM Code | H14: Description
A15: All three | B15: Neither | C15: SJ | D15: 2.83 | F15: ALS | G15: G12.21 | H15: Amyotrophic lateral sclerosis
A16: All three | B16: Either | C16: SK | D16: 3.5 | F16: Apraxia | G16: I69.990 | H16: Apraxia following unspecified cerebrovascular disease
A17: All three | B17: Both | C17: SL | D17: 3.98 | F17: Dysphagia | G17: I69.991 | H17: Dysphagia following unspecified cerebrovascular disease
F18: Laryngeal Cancer | G18: C32.0 | H18: Malignant neoplasm of glottis
F19: Laryngeal Cancer | G19: C32.1 | H19: Malignant neoplasm of supraglottis
F20: Laryngeal Cancer | G20: C32.2 | H20: Malignant neoplasm of subglottis
F21: Laryngeal Cancer | G21: C32.3 | H21: Malignant neoplasm of laryngeal cartilage
F22: Laryngeal Cancer | G22: C32.8 | H22: Malignant neoplasm of other specified sites of larynx
F23: Laryngeal Cancer | G23: C32.9 | H23: Malignant neoplasm of larynx, unspecified
F24: Oral Cancers | G24: C00.0 | H24: Malignant neoplasm of external upper lip
F25: Oral Cancers | G25: C00.1 | H25: Malignant neoplasm of external lower lip
F26: Oral Cancers | G26: C00.3 | H26: Malignant neoplasm of upper lip, inner aspect
F27: Oral Cancers | G27: C00.4 | H27: Malignant neoplasm of lower lip, inner aspect
F28: Oral Cancers | G28: C00.5 | H28: Malignant neoplasm of lip, unspecified, inner aspect
F29: Oral Cancers | G29: C00.6 | H29: Malignant neoplasm of commissure of lip, unspecified
F30: Oral Cancers | G30: C00.8 | H30: Malignant neoplasm of overlapping sites of lip
F31: Oral Cancers | G31: C00.2 | H31: Malignant neoplasm of external lip, unspecified
F32: Oral Cancers | G32: C00.9 | H32: Malignant neoplasm of lip, unspecified
F33: Oral Cancers | G33: C01 | H33: Malignant neoplasm of base of tongue
F34: Oral Cancers | G34: C02.0 | H34: Malignant neoplasm of dorsal surface of tongue
F35: Oral Cancers | G35: C02.1 | H35: Malignant neoplasm of border of tongue
F36: Oral Cancers | G36: C02.2 | H36: Malignant neoplasm of ventral surface of tongue
F37: Oral Cancers | G37: C02.3 | H37: Malignant neoplasm of anterior two-thirds of tongue, part unspecified
F38: Oral Cancers | G38: C02.8 | H38: Malignant neoplasm of overlapping sites of tongue
F39: Oral Cancers | G39: C02.4 | H39: Malignant neoplasm of lingual tonsil
F40: Oral Cancers | G40: C02.8 | H40: Malignant neoplasm of overlapping sites of tongue
F41: Oral Cancers | G41: C02.9 | H41: Malignant neoplasm of tongue, unspecified
F42: Oral Cancers | G42: C03.0 | H42: Malignant neoplasm of upper gum
F43: Oral Cancers | G43: C03.1 | H43: Malignant neoplasm of lower gum
F44: Oral Cancers | G44: C03.9 | H44: Malignant neoplasm of gum, unspecified
F45: Oral Cancers | G45: C03.9 | H45: Malignant neoplasm of gum, unspecified
F46: Oral Cancers | G46: C04.0 | H46: Malignant neoplasm of anterior floor of mouth
F47: Oral Cancers | G47: C04.1 | H47: Malignant neoplasm of lateral floor of mouth
F48: Oral Cancers | G48: C04.8 | H48: Malignant neoplasm of overlapping sites of floor of mouth
F49: Oral Cancers | G49: C04.9 | H49: Malignant neoplasm of floor of mouth, unspecified
F50: Oral Cancers | G50: C09.9 | H50: Malignant neoplasm of tonsil, unspecified
F51: Oral Cancers | G51: C09.8 | H51: Malignant neoplasm of overlapping sites of tonsil
F52: Oral Cancers | G52: C09.0 | H52: Malignant neoplasm of tonsillar fossa
F53: Oral Cancers | G53: C09.1 | H53: Malignant neoplasm of tonsillar pillar (anterior) (posterior)
F54: Oral Cancers | G54: C10.0 | H54: Malignant neoplasm of vallecula
F55: Oral Cancers | G55: C10.1 | H55: Malignant neoplasm of anterior surface of epiglottis
F56: Oral Cancers | G56: C10.8 | H56: Malignant neoplasm of overlapping sites of oropharynx
F57: Oral Cancers | G57: C10.2 | H57: Malignant neoplasm of lateral wall of oropharynx
F58: Oral Cancers | G58: C10.3 | H58: Malignant neoplasm of posterior wall of oropharynx
F59: Oral Cancers | G59: C10.4 | H59: Malignant neoplasm of branchial cleft
F60: Oral Cancers | G60: C10.8 | H60: Malignant neoplasm of overlapping sites of oropharynx
F61: Oral Cancers | G61: C10.9 | H61: Malignant neoplasm of oropharynx, unspecified
F62: Oral Cancers | G62: C14.0 | H62: Malignant neoplasm of pharynx, unspecified
F63: Oral Cancers | G63: C14.2 | H63: Malignant neoplasm of waldeyer's ring
F64: Oral Cancers | G64: C14.8 | H64: Malignant neoplasm of overlapping sites of lip, oral cavity and pharynx
F65: Oral Cancers | G65: C14.8 | H65: Malignant neoplasm of overlapping sites of lip, oral cavity and pharynx
F66: Oral Cancers | G66: C06.0 | H66: Malignant neoplasm of cheek mucosa
F67: Oral Cancers | G67: C06.1 | H67: Malignant neoplasm of vestibule of mouth
F68: Oral Cancers | G68: C05.0 | H68: Malignant neoplasm of hard palate
F69: Oral Cancers | G69: C05.1 | H69: Malignant neoplasm of soft palate
F70: Oral Cancers | G70: C05.2 | H70: Malignant neoplasm of uvula
F71: Oral Cancers | G71: C05.9 | H71: Malignant neoplasm of palate, unspecified
F72: Oral Cancers | G72: C05.8 | H72: Malignant neoplasm of overlapping sites of palate
F73: Oral Cancers | G73: C06.2 | H73: Malignant neoplasm of retromolar area
F74: Oral Cancers | G74: C06.89 | H74: Malignant neoplasm of overlapping sites of other parts of mouth
F75: Oral Cancers | G75: C06.80 | H75: Malignant neoplasm of overlapping sites of unspecified parts of mouth
F76: Oral Cancers | G76: C06.9 | H76: Malignant neoplasm of mouth, unspecified
F77: Speech and Language Deficits | G77: I69.928 | H77: Other speech and language deficits following unspecified cerebrovascular disease
F78: Speech and Language Deficits | G78: I69.920 | H78: Aphasia following unspecified cerebrovascular disease
F79: Speech and Language Deficits | G79: I69.921 | H79: Dysphasia following unspecified cerebrovascular disease
F80: Speech and Language Deficits | G80: I69.922 | H80: Dysarthria following unspecified cerebrovascular disease
F81: Speech and Language Deficits | G81: I69.923 | H81: Fluency disorder following unspecified cerebrovascular disease
F82: Speech and Language Deficits | G82: I69.928 | H82: Other speech and language deficits following unspecified cerebrovascular disease
H83: End of Worksheet

Sheet NTA (hidden)
A1: PDPM NTA CMI : Non-Therapy Ancillary Case Mix Indices
A2: Overview
A4: NTA Component | E4: Comorbidities Included in NTA Comorbidity Score and Assigned Points
A5: NTA Comorbidity Score | B5: NTA Case Mix Group | C5: CMI | D5: Table 5 / 6 | E5: Condition/Extensive Service | F5: MDS Item | G5: Points
A6: 12+ | B6: NA | C6: 3.06 | D6: =IFERROR(LEFT(A6,FIND("-",A6)-1)*1,12) -> 12 | E6: HIV/AIDS | F6: SNF Claim ICD-10 B20 | G6: 8
A7: 9-11 | B7: NB | C7: 2.39 | D7: =IFERROR(LEFT(A7,FIND("-",A7)-1)*1,A7) -> 9 | E7: Parenteral IV Feeding: Level High | F7: K0510A2 K0710A2 | G7: 7
A8: 6-8 | B8: NC | C8: 1.74 | D8: 6 | E8: Special Treatments/Programs: Intravenous Medication Post-admit Code | F8: O0100H2 | G8: 5
A9: 3-5 | B9: ND | C9: 1.26 | D9: 3 | E9: Special Treatments/Programs: Ventilator Post-admit Code | F9: O0100F2 | G9: 4
A10: 1-2 | B10: NE | C10: 0.91 | D10: 1 | E10: Parenteral IV feeding: Level Low | F10: K0510A2 K0710A2 K0710B2 | G10: 3
A11: 0 | B11: NF | C11: 0.68 | D11: =IFERROR(LEFT(A11,FIND("-",A11)-1)*1,A11) -> 0 | E11: Lung Transplant Status | F11: I8000 | G11: 3
E12: Special Treatments/Programs: Transfusion Post-admit Code | F12: O0100I2 | G12: 2
A13: 0 | B13: NF | D13: 0 | E13: Major Organ Transplant Status, Except Lung | F13: I8000 | G13: 2
A14: 1-2 | B14: NE | D14: 1 | E14: Active Diagnoses: Multiple Sclerosis Code | F14: I5200 | G14: 2
A15: 3-5 | B15: ND | D15: 3 | E15: Opportunistic Infections | F15: I8000 | G15: 2
A16: 6-8 | B16: NC | D16: 6 | E16: Active Diagnoses: Asthma COPD Chronic Lung Disease Code | F16: I6200 | G16: 2
A17: 9-11 | B17: NB | D17: 9 | E17: Bone/Joint/Muscle Infections/Necrosis - Except: Aseptic Necrosis of Bone | F17: I8000 | G17: 2
A18: 12+ | B18: NA | D18: 12 | E18: Chronic Myeloid Leukemia | F18: I8000 | G18: 2
E19: Wound Infection Code | F19: I2500 | G19: 2
E20: Active Diagnoses: Diabetes Mellitus (DM) Code | F20: I2900 | G20: 2
E21: Endocarditis | F21: I8000 | G21: 1
E22: Immune Disorders | F22: I8000 | G22: 1
E23: End-Stage Liver Disease | F23: I8000 | G23: 1
E24: Other Foot Skin Problems: Diabetic Foot Ulcer Code | F24: M1040B | G24: 1
E25: Narcolepsy and Cataplexy | F25: I8000 | G25: 1
E26: Cystic Fibrosis | F26: I8000 | G26: 1
E27: Special Treatments/Programs: Tracheostomy Post-admit Code | F27: O0100E2 | G27: 1
E28: Active Diagnoses: Multi-Drug Resistant Organism (MDRO) Code | F28: I1700 | G28: 1
E29: Special Treatments/Programs: Isolation Post-admit Code | F29: O0100M2 | G29: 1
E30: Specified Hereditary Metabolic/Immune Disorders | F30: I8000 | G30: 1
E31: Morbid Obesity | F31: I8000 | G31: 1
E32: Special Treatments/Programs: Radiation Post-admit Code | F32: O0100B2 | G32: 1
E33: Highest Stage of Unhealed Pressure Ulcer - Stage 4 | F33: M0300X1 | G33: 1
E34: Psoriatic Arthropathy and Systemic Sclerosis | F34: I8000 | G34: 1
E35: Chronic Pancreatitis | F35: I8000 | G35: 1
E36: Proliferative Diabetic Retinopathy and Vitreous Hemorrhage | F36: I8000 | G36: 1
E37: Other Foot Skin Problems: Foot Infection Code, Other Open Lesion on Foot Code, Except Diabetic Foot Ulcer Code | F37: M1040A M1040B M1040C | G37: 1
E38: Complications of Specified Implanted Device or Graft | F38: I8000 | G38: 1
E39: Bladder and Bowel Appliances: Intermittent catheterization | F39: H0100D | G39: 1
E40: Inflammatory Bowel Disease | F40: I8000 | G40: 1
E41: Aseptic Necrosis of Bone | F41: I8000 | G41: 1
E42: Special Treatments/Programs: Suctioning Post-admit Code | F42: O0100D2 | G42: 1
E43: Cardio-Respiratory Failure and Shock | F43: I8000 | G43: 1
E44: Myelodysplastic Syndromes and Myelofibrosis | F44: I8000 | G44: 1
E45: Systemic Lupus Erythematosus, Other Connective Tissue Disorders, and Inflammatory Spondylopathies | F45: I8000 | G45: 1
E46: Diabetic Retinopathy - Except : Proliferative Diabetic Retinopathy and Vitreous Hemorrhage | F46: I8000 | G46: 1
E47: Nutritional Approaches While a Resident: Feeding Tube | F47: K0510B2 | G47: 1
E48: Severe Skin Burn or Condition | F48: I8000 | G48: 1
E49: Intractable Epilepsy | F49: I8000 | G49: 1
E50: Active Diagnoses: Malnutrition Code | F50: I5600 | G50: 1
E51: Disorders of Immunity - Except : RxCC97: Immune Disorders | F51: I8000 | G51: 1
E52: Cirrhosis of Liver | F52: I8000 | G52: 1
E53: Bladder and Bowel Appliances: Ostomy | F53: H0100C | G53: 1
E54: Respiratory Arrest | F54: I8000 | G54: 1
E55: Pulmonary Fibrosis and Other Chronic Lung Disorders | F55: I8000 | G55: 1
G56: End of Worksheet

Sheet Nursing (hidden)
A1: PDPM Nursing CMI : Nursing Case Mix Indices
A2: Overview
A4: Nursing Component | E4: Points Assigned to Section GG Responses (All Items Except Walking and Oral Hygiene Items)
A5: PDPM Nursing RUG | B5: Function Score | C5: CMI | D5: Table 5 / 6 (provided in excel) | E5: Section GG Responses | F5: Function Score
A6: ES3 | B6: 0-14 | C6: 3.84 | E6: Independent | F6: 4
A7: ES2 | B7: 0-14 | C7: 2.9 | E7: Set-up Assistance | F7: 4
A8: ES1 | B8: 0-14 | C8: 2.77 | E8: Supervision or touching assistance | F8: 3
A9: HDE2 | B9: 0-5 | C9: 2.27 | E9: Partial/moderate assistance | F9: 2
A10: HDE1 | B10: 0-5 | C10: 1.88 | E10: Substantial/maximal assistance | F10: 1
A11: HBC2 | B11: 6-14 | C11: 2.12 | E11: Dependent | F11: 0
A12: HBC1 | B12: 6-14 | C12: 1.76 | E12: Refused | F12: 0
A13: LDE2 | B13: 0-5 | C13: 1.97 | E13: N/A | F13: 0
A14: LDE1 | B14: 0-5 | C14: 1.64 | E14: Not Attempted | F14: 0
A15: LBC2 | B15: 6-14 | C15: 1.63
A16: LBC1 | B16: 6-14 | C16: 1.35
A17: CDE2 | B17: 0-5 | C17: 1.77 | E17: Nursing Classification
A18: CDE1 | B18: 0-5 | C18: 1.53 | E18: Nursing Category | F18: Conditions/Services | G18: Conditions/Services Present | H18: Section GG-Based Function Score | I18: PDPM RUG
A19: CBC2 | B19: 6-14 | C19: 1.47 | E19: Extensive Services | F19: Tracheostomy Care and Ventilator/Respirator | G19: Yes | H19: 0-14 | I19: ES1
A20: CA2 | B20: 15-16 | C20: 1.03 | E20: Extensive Services | F20: Tracheostomy Care or Ventilator/Respirator | G20: Yes | H20: 0-14 | I20: ES2
A21: CBC1 | B21: 6-14 | C21: 1.27 | E21: Extensive Services | F21: Infection Isolation | G21: Yes | H21: 0-14 | I21: ES3
A22: CA1 | B22: 15-16 | C22: 0.89 | E22: Special Care High | F22: Depressed | G22: Yes | H22: 0-5 | I22: HDE2
A23: BAB2 | B23: 11-16 | C23: 0.98 | E23: Special Care High | F23: Depressed | G23: No | H23: 0-5 | I23: HDE1
A24: BAB1 | B24: 11-16 | C24: 0.94 | E24: Special Care High | F24: Depressed | G24: Yes | H24: 6-14 | I24: HBC2
A25: PDE2 | B25: 0-5 | C25: 1.48 | E25: Special Care High | F25: Depressed | G25: No | H25: 6-14 | I25: HBC1
A26: PDE1 | B26: 0-5 | C26: 1.39 | E26: Special Care Low | F26: Depressed | G26: Yes | H26: 0-5 | I26: LDE2
A27: PBC2 | B27: 6-14 | C27: 1.15 | E27: Special Care Low | F27: Depressed | G27: No | H27: 0-5 | I27: LDE1
A28: PA2 | B28: 15-16 | C28: 0.67 | E28: Special Care Low | F28: Depressed | G28: Yes | H28: 6-14 | I28: LBC2
A29: PBC1 | B29: 6-14 | C29: 1.07 | E29: Special Care Low | F29: Depressed | G29: No | H29: 6-14 | I29: LBC1
A30: PA1 | B30: 15-16 | C30: 0.62 | E30: Clinically Complex | F30: Depressed | G30: Yes | H30: 0-5 | I30: CDE2
E31: Clinically Complex | F31: Depressed | G31: No | H31: 0-5 | I31: CDE1
E32: Clinically Complex | F32: Depressed | G32: Yes | H32: 6-14 | I32: CBC2
E33: Clinically Complex | F33: Depressed | G33: Yes | H33: 15-16 | I33: CA2
E34: Clinically Complex | F34: Depressed | G34: No | H34: 6-14 | I34: CBC1
E35: Clinically Complex | F35: Depressed | G35: No | H35: 15-16 | I35: CA1
E36: Behavioral Cognitive Symptoms | F36: Restorative Nursing Services | G36: 2 or More | H36: 11-16 | I36: BAB2
E37: Behavioral Cognitive Symptoms | F37: Restorative Nursing Services | G37: 0-1 | H37: 11-16 | I37: BAB1
E38: Reduced Physical Function | F38: Restorative Nursing Services | G38: 2 or More | H38: 0-5 | I38: PDE2
E39: Reduced Physical Function | F39: Restorative Nursing Services | G39: 0-1 | H39: 0-5 | I39: PDE1 | J39: =IFERROR(LEFT(B26,FIND("-",B26)-1),B26)*1 -> 0
E40: Reduced Physical Function | F40: Restorative Nursing Services | G40: 2 or More | H40: 6-14 | I40: PBC2 | J40: =IFERROR(LEFT(B27,FIND("-",B27)-1),B27)*1 -> 6
E41: Reduced Physical Function | F41: Restorative Nursing Services | G41: 2 or More | H41: 15-16 | I41: PA2 | J41: =IFERROR(LEFT(B28,FIND("-",B28)-1),B28)*1 -> 15
E42: Reduced Physical Function | F42: Restorative Nursing Services | G42: 0-1 | H42: 6-14 | I42: PBC1
E43: Reduced Physical Function | F43: Restorative Nursing Services | G43: 0-1 | H43: 15-16 | I43: PA1
I44: End of Worksheet
F46: Tracheostomy Care and Ventilator/Respirator
F47: Tracheostomy Care or Ventilator/Respirator
F48: Infection Isolation
F49: Depressed
F50: Restorative Nursing Services
F51: Other

Sheet FY 2019 SNF PPS Rates (hidden)
B8: SNF and/or Swing Bed Medicare Part A FINAL SNF PPS RUG IV RATES
C10: Select your county from the drop down box below
B12: CBSA Code: | C12: =IF($C$13="Select County","Select County",VLOOKUP($C$13,CBSACodes,2,FALSE)) ->  | H12: <-- This is your CBSA Code
B13: Selected County: | C13: =#REF! ->  | H13: <-- Select your county from the dropbox
B14: CBSA Designation | C14: =IF($C$13="Select County","Select County",VLOOKUP($C$12,CBSADesignations,2,FALSE)) ->  | H14: <-- This is your CBSA Designation Description
B15: Wage Index: | C15: =IF($C$13="Select County","Select County",VLOOKUP($C$13,'Data - Wage Indexes'!A1:E1970,2,FALSE)) ->  | D15: - FINAL FY2019 | F15: =IF($C$13="Select County","Select County",VLOOKUP($C$13,'Data - Wage Indexes'!A1:F1970,8,FALSE))&" "&" Final FY2018" ->  | H15: <-- This is the Wage Index used on the calculations below
B16: Urban/Rural Status: | C16: =IF($C$13="Select County","Select County",IF(LEFT($C$12,3)="999","Rural","Urban")) ->  | H16: < -- This is your Urban/Rural Status
C18: Resident with AIDS? Y/N | F18: N | H18: <-- Yes(Y) / No(N)
F22: EFFECTIVE FOR SERVICES BEGINNING | K22: 10/1/2018*
C24: RUG-IV | D24: Revenue | E24: Labor | F24: X Wage | G24: Indexed | H24: + Non | I24: = Total | J24: Increase | K24: =IF($F$18="Y","MMA","BIPA") -> BIPA
C25: Group | D25: Code | E25: Component | F25: Index | G25: Labor | H25: Labor | I25: Federal | J25: =IF(F18="Y", "Per MMA", "Per BIPA") -> Per BIPA | K25: Adjusted
G26: Portion | H26: Portion | I26: Payment | J26: =IF(F18="Y","of 2003","of 2000") -> of 2000 | K26: Federal
I27: at 100 % | J27: for FY2017* | K27: Payment
M28: Minutes | N28: ADLs
B29: Rehab Plus Extensive Services | C29: RUX | D29: 9066 | E29: =IF($C$12="Select County",0,VLOOKUP(CONCATENATE($C29,"-",LEFT($C$16,1)),Rates,3,FALSE)) ->  | F29: =IF($C$15="Select County",0,$C$15) ->  | G29: =ROUND(E29*F29, 2) ->  | H29: =IF($C$12="Select County",0,VLOOKUP(CONCATENATE($C29,"-",LEFT($C$16,1)),Rates,4,FALSE)) ->  | I29: =ROUND(G29+H29,2) ->  | J29: =IF(F$18="Y",ROUND(I29*1.28,2),0) -> 0 | K29: =ROUND(I29+J29,2) ->  | M29: 720+ | N29: 11-16
C30: RUL | D30: 9065 | F30: =IF($C$15="Select County",0,$C$15) ->  | G30: =ROUND(E30*F30, 2) ->  | I30: =ROUND(G30+H30,2) ->  | J30: =IF(F$18="Y",ROUND(I30*1.28,2),0) -> 0 | K30: =ROUND(I30+J30,2) ->  | M30: 720+ | N30: 2-10
C31: RVX | D31: 9064 | G31: =ROUND(E31*F31, 2) ->  | J31: 0 | M31: 500-719 | N31: 11-16
C32: RVL | D32: 9063 | J32: 0 | M32: 500-719 | N32: 2-10
C33: RHX | D33: 9062 | J33: 0 | M33: 325-499 | N33: 11-16
C34: RHL | D34: 9061 | J34: 0 | M34: 325-499 | N34: 2-10
C35: RMX | D35: 9060 | J35: 0 | M35: 150-324 | N35: 11-16
C36: RML | D36: 9059 | J36: 0 | M36: 150-324 | N36: 2-10
C37: RLX | D37: 9058 | J37: 0 | M37: 45-149 | N37: 2-16
B38: Rehab | C38: RUC | D38: 9057 | J38: 0 | M38: 720+ | N38: 11-16
C39: RUB | D39: 9056 | J39: 0 | M39: 720+ | N39: 6-10
C40: RUA | D40: 9055 | J40: 0 | M40: 720+ | N40: 0-5
C41: RVC | D41: 9054 | J41: 0 | M41: 500-719 | N41: 11-16
C42: RVB | D42: 9053 | J42: 0 | M42: 500-719 | N42: 6-10
C43: RVA | D43: 9052 | J43: 0 | M43: 500-719 | N43: 0-5
C44: RHC | D44: 9051 | J44: 0 | M44: 325-499 | N44: 11-16
C45: RHB | D45: 9050 | J45: 0 | M45: 325-499 | N45: 6-10
C46: RHA | D46: 9049 | J46: 0 | M46: 325-499 | N46: 0-5
C47: RMC | D47: 9048 | J47: 0 | M47: 150-324 | N47: 11-16
C48: RMB | D48: 9047 | J48: 0 | M48: 150-324 | N48: 6-10
C49: RMA | D49: 9046 | J49: 0 | M49: 150-324 | N49: 0-5
C50: RLB | D50: 9045 | J50: 0 | M50: 45-149 | N50: 11-16
C51: RLA | D51: 9044 | J51: 0 | M51: 45-149 | N51: 0-10
B52: Extensive Services | C52: ES3 | D52: 9043 | J52: 0 | M52: N/A | N52: 2-16
C53: ES2 | D53: 9042 | J53: 0 | M53: N/A | N53: 2-16
C54: ES1 | D54: 9041 | J54: 0 | M54: N/A | N54: 2-16
B55: Special Care High | C55: HE2 | D55: 9040 | J55: 0 | M55: N/A | N55: 15-16
C56: HE1 | D56: 9039 | J56: 0 | M56: N/A | N56: 15-16
C57: HD2 | D57: 9038 | J57: 0 | M57: N/A | N57: 11-14
C58: HD1 | D58: 9037 | J58: 0 | M58: N/A | N58: 11-14
C59: HC2 | D59: 9036 | J59: 0 | M59: N/A | N59: 6-10
C60: HC1 | D60: 9035 | J60: 0 | M60: N/A | N60: 6-10
C61: HB2 | D61: 9034 | E61: =IF($C$12="Select County",0,VLOOKUP(CONCATENATE($C61,"-",LEFT($C$16,1)),Rates,3,FALSE)) ->  | H61: =IF($C$12="Select County",0,VLOOKUP(CONCATENATE($C61,"-",LEFT($C$16,1)),Rates,4,FALSE)) ->  | J61: 0 | M61: N/A | N61: 2-5
C62: HB1 | D62: 9033 | J62: 0 | M62: N/A | N62: 2-5
B63: Special Care Low | C63: LE2 | D63: 9032 | J63: 0 | M63: N/A | N63: 15-16
C64: LE1 | D64: 9031 | J64: 0 | M64: N/A | N64: 15-16
C65: LD2 | D65: 9030 | J65: 0 | M65: N/A | N65: 11-14
C66: LD1 | D66: 9029 | J66: 0 | M66: N/A | N66: 11-14
C67: LC2 | D67: 9028 | J67: 0 | M67: N/A | N67: 6-10
C68: LC1 | D68: 9027 | J68: 0 | M68: N/A | N68: 6-10
C69: LB2 | D69: 9026 | J69: 0 | M69: N/A | N69: 2-5
C70: LB1 | D70: 9025 | J70: 0 | M70: N/A | N70: 2-5
B71: Clinically Complex | C71: CE2 | D71: 9024 | J71: 0 | M71: N/A | N71: 15-16
C72: CE1 | D72: 9023 | J72: 0 | M72: N/A | N72: 15-16
C73: CD2 | D73: 9022 | J73: 0 | M73: N/A | N73: 11-14
C74: CD1 | D74: 9021 | J74: 0 | M74: N/A | N74: 11-14
C75: CC2 | D75: 9020 | J75: 0 | M75: N/A | N75: 6-10
C76: CC1 | D76: 9019 | J76: 0 | M76: N/A | N76: 6-10
C77: CB2 | D77: 9018 | J77: 0 | M77: N/A | N77: 2-5
C78: CB1 | D78: 9017 | J78: 0 | M78: N/A | N78: 2-5
C79: CA2 | D79: 9016 | J79: 0 | M79: N/A | N79: 0-1
C80: CA1 | D80: 9015 | J80: 0 | M80: N/A | N80: 0-1
B81: Behavior Symptoms & Cognitive Performance | C81: BB2 | D81: 9014 | J81: 0 | M81: N/A | N81: 2-5
C82: BB1 | D82: 9013 | J82: 0 | M82: N/A | N82: 2-5
C83: BA2 | D83: 9012 | J83: 0 | M83: N/A | N83: 0-1
C84: BA1 | D84: 9011 | J84: 0 | M84: N/A | N84: 0-1
B85: Reduced Physical Function | C85: PE2 | D85: 9010 | J85: 0 | M85: N/A | N85: 15-16
C86: PE1 | D86: 9009 | J86: 0 | M86: N/A | N86: 15-16
C87: PD2 | D87: 9008 | J87: 0 | M87: N/A | N87: 11-14
C88: PD1 | D88: 9007 | J88: 0 | M88: N/A | N88: 11-14
C89: PC2 | D89: 9006 | J89: 0 | M89: N/A | N89: 6-10
C90: PC1 | D90: 9005 | J90: 0 | M90: N/A | N90: 6-10
C91: PB2 | D91: 9004 | J91: 0 | M91: N/A | N91: 2-5
C92: PB1 | D92: 9003 | J92: 0 | M92: N/A | N92: 2-5
C93: PA2 | D93: 9002 | J93: 0 | M93: N/A | N93: 0-1
C94: PA1/Default | D94: 9001 | E94: =IF($C$12="Select County",0,VLOOKUP(CONCATENATE("PA1","-",LEFT($C$16,1)),Rates,3,FALSE)) ->  | F94: =IF($C$15="Select County",0,$C$15) ->  | H94: =IF($C$12="Select County",0,VLOOKUP(CONCATENATE("PA1","-",LEFT($C$16,1)),Rates,4,FALSE)) ->  | I94: =ROUND(G94+H94,2) ->  | J94: =IF(F$18="Y",ROUND(I94*1.28,2),0) -> 0 | K94: =ROUND(I94+J94,2) ->  | M94: N/A | N94: 0-1
B96: =CONCATENATE("* ",Source!B2,", ",Source!B3,", ",Source!B4,", ",Source!B5,", ",Source!B6,".") -> * , CMS-1696-F and CMS-1696-CN, Medicare Program: Prospective Payment System and Consolidated Billing for Skilled Nursing Facilities for FY 2019, Skilled Nursing Facilities Value-Based Purchasing Program, etc., Filed 7/31/2018, Published 8/8/2018.
B99: ©2016, 2017, 2018 CliftonLarsonallen LLP All Rights Reserved

Sheet Data - Rates (hidden)
A1: Labor Index | B1: 0.705 | P1: Enter unadjusted federal rates from Federal Register here: | Q1: U | T1: 181.44 | U1: 136.67 | V1: 18 | W1: 92.6
A2: Non-Labor Index | B2: =1-B1 -> 0.295 | Q2: R | T2: 173.34 | U2: 157.6 | V2: 19.23 | W2: 94.31
A4: RUG Category | B4: Federal Rate | C4: Labor Rate | D4: Non-Labor Rate | Q4: RUG Category | R4: NI | S4: TI | T4: NC | U4: TC | V4: NCMTC | W4: NCMC | X4: Totsl | AB4: FYP2019 | AC4: FYF2018
A5: RUX-R | B5: 851.84 | C5: =ROUND(B5*$B$1,2) -> 600.55 | D5: =ROUND(B5-C5,2) -> 251.29 | F5: RUX | G5: 851.84 | H5: 600.55 | I5: 251.29 | J5: =H5/G5 -> 0.705003287 | Q5: RUX-R | R5: 2.67 | S5: 1.87 | T5: =ROUND(IF(RIGHT($Q5,1)="R",T$2*R5,T$1*R5),2) -> 462.82 | U5: 294.71 | W5: =+$W$2 -> 94.31 | X5: =SUM(T5:W5) -> 851.84 | AA5: RUX-R | AB5: 851.84 | AC5: 832.19
A6: RUL-R | B6: 834.5 | C6: =ROUND(B6*$B$1,2) -> 588.32 | D6: =ROUND(B6-C6,2) -> 246.18 | F6: RUL | G6: 834.5 | H6: 588.32 | I6: 246.18 | J6: 0.7049970042 | Q6: RUL-R | R6: 2.57 | S6: 1.87 | T6: 445.48 | U6: 294.71 | W6: =+$W$2 -> 94.31 | X6: =SUM(T6:W6) -> 834.5 | AA6: RUL-R | AB6: 834.5 | AC6: 815.25
A7: RVX-R | B7: 748.46 | C7: 527.66 | D7: 220.8 | F7: RVX | G7: 748.46 | H7: 527.66 | I7: 220.8 | J7: 0.7049942549 | Q7: RVX-R | R7: 2.61 | S7: 1.28 | T7: 452.42 | U7: 201.73 | W7: 94.31 | X7: 748.46 | AA7: RVX-R | AB7: 748.46 | AC7: 731.19
A8: RVL-R | B8: 675.65 | C8: 476.33 | D8: 199.32 | F8: RVL | G8: 675.65 | H8: 476.33 | I8: 199.32 | J8: 0.7049951898 | Q8: RVL-R | R8: 2.19 | S8: 1.28 | T8: 379.61 | U8: 201.73 | W8: 94.31 | X8: 675.65 | AA8: RVL-R | AB8: 675.65 | AC8: 660.06
A9: RHX-R | B9: 670.29 | C9: 472.55 | D9: 197.74 | F9: RHX | G9: 670.29 | H9: 472.55 | I9: 197.74 | J9: 0.7049933611 | Q9: RHX-R | R9: 2.55 | S9: 0.85 | T9: 442.02 | U9: 133.96 | W9: 94.31 | X9: 670.29 | AA9: RHX-R | AB9: 670.29 | AC9: 654.83
A10: RHL-R | B10: 600.95 | C10: 423.67 | D10: 177.28 | F10: RHL | G10: 600.95 | H10: 423.67 | I10: 177.28 | J10: 0.705000416 | Q10: RHL-R | R10: 2.15 | S10: 0.85 | T10: 372.68 | U10: 133.96 | W10: 94.31 | X10: 600.95 | AA10: RHL-R | AB10: 600.95 | AC10: 587.09
A11: RMX-R | B11: 609.14 | C11: 429.44 | D11: 179.7 | F11: RMX | G11: 609.14 | H11: 429.44 | I11: 179.7 | J11: 0.7049939259 | Q11: RMX-R | R11: 2.47 | S11: 0.55 | T11: 428.15 | U11: 86.68 | W11: 94.31 | X11: 609.14 | AA11: RMX-R | AB11: 609.14 | AC11: 595.09
A12: RML-R | B12: 560.6 | C12: 395.22 | D12: 165.38 | F12: RML | G12: 560.6 | H12: 395.22 | I12: 165.38 | J12: 0.7049946486 | Q12: RML-R | R12: 2.19 | S12: 0.55 | T12: 379.61 | U12: 86.68 | W12: 94.31 | X12: 560.6 | AA12: RML-R | AB12: 560.6 | AC12: 547.67
A13: RLX-R | B13: 530.19 | C13: 373.78 | D13: 156.41 | F13: RLX | G13: 530.19 | H13: 373.78 | I13: 156.41 | J13: 0.7049925498 | Q13: RLX-R | R13: 2.26 | S13: 0.28 | T13: 391.75 | U13: 44.13 | W13: 94.31 | X13: 530.19 | AA13: RLX-R | AB13: 530.19 | AC13: 517.96
A14: RUC-R | B14: 659.43 | C14: 464.9 | D14: 194.53 | F14: RUC | G14: 659.43 | H14: 464.9 | I14: 194.53 | J14: 0.7050028055 | Q14: RUC-R | R14: 1.56 | S14: 1.87 | T14: 270.41 | U14: 294.71 | W14: 94.31 | X14: 659.43 | AA14: RUC-R | AB14: 659.43 | AC14: 644.22
A15: RUB-R | B15: 659.43 | C15: 464.9 | D15: 194.53 | F15: RUB | G15: 659.43 | H15: 464.9 | I15: 194.53 | J15: 0.7050028055 | Q15: RUB-R | R15: 1.56 | S15: 1.87 | T15: 270.41 | U15: 294.71 | W15: 94.31 | X15: 659.43 | AA15: RUB-R | AB15: 659.43 | AC15: 644.22
A16: RUA-R | B16: 560.63 | C16: 395.24 | D16: 165.39 | F16: RUA | G16: 560.63 | H16: 395.24 | I16: 165.39 | J16: 0.7049925976 | Q16: RUA-R | R16: 0.99 | S16: 1.87 | T16: 171.61 | U16: 294.71 | W16: 94.31 | X16: 560.63 | AA16: RUA-R | AB16: 560.63 | AC16: 547.7
A17: RVC-R | B17: 557.78 | C17: 393.23 | D17: 164.55 | F17: RVC | G17: 557.78 | H17: 393.23 | I17: 164.55 | J17: 0.7049912152 | Q17: RVC-R | R17: 1.51 | S17: 1.28 | T17: 261.74 | U17: 201.73 | W17: 94.31 | X17: 557.78 | AA17: RVC-R | AB17: 557.78 | AC17: 544.91
A18: RVB-R | B18: 488.45 | C18: 344.36 | D18: 144.09 | F18: RVB | G18: 488.45 | H18: 344.36 | I18: 144.09 | J18: 0.7050056301 | Q18: RVB-R | R18: 1.11 | S18: 1.28 | T18: 192.41 | U18: 201.73 | W18: 94.31 | X18: 488.45 | AA18: RVB-R | AB18: 488.45 | AC18: 477.18
A19: RVA-R | B19: 486.71 | C19: 343.13 | D19: 143.58 | F19: RVA | G19: 486.71 | H19: 343.13 | I19: 143.58 | J19: 0.70499887 | Q19: RVA-R | R19: 1.1 | S19: 1.28 | T19: 190.67 | U19: 201.73 | W19: 94.31 | X19: 486.71 | AA19: RVA-R | AB19: 486.71 | AC19: 475.48
A20: RHC-R | B20: 479.61 | C20: 338.13 | D20: 141.48 | F20: RHC | G20: 479.61 | H20: 338.13 | I20: 141.48 | J20: 0.7050103209 | Q20: RHC-R | R20: 1.45 | S20: 0.85 | T20: 251.34 | U20: 133.96 | W20: 94.31 | X20: 479.61 | AA20: RHC-R | AB20: 479.61 | AC20: 468.55
A21: RHB-R | B21: 434.54 | C21: 306.35 | D21: 128.19 | F21: RHB | G21: 434.54 | H21: 306.35 | I21: 128.19 | J21: 0.7049983891 | Q21: RHB-R | R21: 1.19 | S21: 0.85 | T21: 206.27 | U21: 133.96 | W21: 94.31 | X21: 434.54 | AA21: RHB-R | AB21: 434.54 | AC21: 424.52
A22: RHA-R | B22: 386.01 | C22: 272.14 | D22: 113.87 | F22: RHA | G22: 386.01 | H22: 272.14 | I22: 113.87 | J22: 0.7050076423 | Q22: RHA-R | R22: 0.91 | S22: 0.85 | T22: 157.74 | U22: 133.96 | W22: 94.31 | X22: 386.01 | AA22: RHA-R | AB22: 386.01 | AC22: 377.11
A23: RMC-R | B23: 416.73 | C23: 293.79 | D23: 122.94 | F23: RMC | G23: 416.73 | H23: 293.79 | I23: 122.94 | J23: 0.7049888417 | Q23: RMC-R | R23: 1.36 | S23: 0.55 | T23: 235.74 | U23: 86.68 | W23: 94.31 | X23: 416.73 | AA23: RMC-R | AB23: 416.73 | AC23: 407.12
A24: RMB-R | B24: 392.46 | C24: 276.68 | D24: 115.78 | F24: RMB | G24: 392.46 | H24: 276.68 | I24: 115.78 | J24: 0.7049890435 | Q24: RMB-R | R24: 1.22 | S24: 0.55 | T24: 211.47 | U24: 86.68 | W24: 94.31 | X24: 392.46 | AA24: RMB-R | AB24: 392.46 | AC24: 383.41
A25: RMA-R | B25: 326.6 | C25: 230.25 | D25: 96.35 | F25: RMA | G25: 326.6 | H25: 230.25 | I25: 96.35 | J25: 0.7049908145 | Q25: RMA-R | R25: 0.84 | S25: 0.55 | T25: 145.61 | U25: 86.68 | W25: 94.31 | X25: 326.6 | AA25: RMA-R | AB25: 326.6 | AC25: 319.07
A26: RLB-R | B26: 398.45 | C26: 280.91 | D26: 117.54 | F26: RLB | G26: 398.45 | H26: 280.91 | I26: 117.54 | J26: 0.7050069017 | Q26: RLB-R | R26: 1.5 | S26: 0.28 | T26: 260.01 | U26: 44.13 | W26: 94.31 | X26: 398.45 | AA26: RLB-R | AB26: 398.45 | AC26: 389.26
A27: RLA-R | B27: 261.51 | C27: 184.36 | D27: 77.15 | F27: RLA | G27: 261.51 | H27: 184.36 | I27: 77.15 | J27: 0.704982601 | Q27: RLA-R | R27: 0.71 | S27: 0.28 | T27: 123.07 | U27: 44.13 | W27: 94.31 | X27: 261.51 | AA27: RLA-R | AB27: 261.51 | AC27: 255.48
A28: ES3-R | B28: 734.1 | C28: 517.54 | D28: 216.56 | F28: ES3 | G28: 734.1 | H28: 517.54 | I28: 216.56 | J28: 0.7049993189 | Q28: ES3-R | R28: 3.58 | T28: 620.56 | U28: 0 | V28: =+$V$2 -> 19.23 | W28: 94.31 | X28: 734.1 | AA28: ES3-R | AB28: 734.1 | AC28: 717.17
A29: ES2-R | B29: 576.36 | C29: 406.33 | D29: 170.03 | F29: ES2 | G29: 576.36 | H29: 406.33 | I29: 170.03 | J29: 0.7049934069 | Q29: ES2-R | R29: 2.67 | T29: 462.82 | U29: 0 | V29: =+$V$2 -> 19.23 | W29: 94.31 | X29: 576.36 | AA29: ES2-R | AB29: 576.36 | AC29: 563.07
A30: ES1-R | B30: 515.69 | C30: 363.56 | D30: 152.13 | F30: ES1 | G30: 515.69 | H30: 363.56 | I30: 152.13 | J30: 0.7049971882 | Q30: ES1-R | R30: 2.32 | T30: 402.15 | U30: 0 | V30: 19.23 | W30: 94.31 | X30: 515.69 | AA30: ES1-R | AB30: 515.69 | AC30: 503.8
A31: HE2-R | B31: 498.35 | C31: 351.34 | D31: 147.01 | F31: HE2 | G31: 498.35 | H31: 351.34 | I31: 147.01 | J31: 0.7050065215 | Q31: HE2-R | R31: 2.22 | T31: 384.81 | U31: 0 | V31: 19.23 | W31: 94.31 | X31: 498.35 | AA31: HE2-R | AB31: 498.35 | AC31: 486.86
A32: HE1-R | B32: 415.15 | C32: 292.68 | D32: 122.47 | F32: HE1 | G32: 415.15 | H32: 292.68 | I32: 122.47 | J32: 0.7049981934 | Q32: HE1-R | R32: 1.74 | T32: 301.61 | U32: 0 | V32: 19.23 | W32: 94.31 | X32: 415.15 | AA32: HE1-R | AB32: 415.15 | AC32: 405.58
A33: HD2-R | B33: 467.15 | C33: 329.34 | D33: 137.81 | F33: HD2 | G33: 467.15 | H33: 329.34 | I33: 137.81 | J33: 0.7049983945 | Q33: HD2-R | R33: 2.04 | T33: 353.61 | U33: 0 | V33: 19.23 | W33: 94.31 | X33: 467.15 | AA33: HD2-R | AB33: 467.15 | AC33: 456.38
A34: HD1-R | B34: 390.88 | C34: 275.57 | D34: 115.31 | F34: HD1 | G34: 390.88 | H34: 275.57 | I34: 115.31 | J34: 0.7049989767 | Q34: HD1-R | R34: 1.6 | T34: 277.34 | U34: 0 | V34: 19.23 | W34: 94.31 | X34: 390.88 | AA34: HD1-R | AB34: 390.88 | AC34: 381.87
A35: HC2-R | B35: 441.15 | C35: 311.01 | D35: 130.14 | F35: HC2 | G35: 441.15 | H35: 311.01 | I35: 130.14 | J35: 0.7049982999 | Q35: HC2-R | R35: 1.89 | T35: 327.61 | U35: 0 | V35: 19.23 | W35: 94.31 | X35: 441.15 | AA35: HC2-R | AB35: 441.15 | AC35: 430.98
A36: HC1-R | B36: 370.08 | C36: 260.91 | D36: 109.17 | F36: HC1 | G36: 370.08 | H36: 260.91 | I36: 109.17 | J36: 0.7050097276 | Q36: HC1-R | R36: 1.48 | T36: 256.54 | U36: 0 | V36: 19.23 | W36: 94.31 | X36: 370.08 | AA36: HC1-R | AB36: 370.08 | AC36: 361.55
A37: HB2-R | B37: 435.95 | C37: 307.34 | D37: 128.61 | F37: HB2 | G37: 435.95 | H37: 307.34 | I37: 128.61 | J37: 0.7049891043 | Q37: HB2-R | R37: 1.86 | T37: 322.41 | U37: 0 | V37: 19.23 | W37: 94.31 | X37: 435.95 | AA37: HB2-R | AB37: 435.95 | AC37: 425.9
A38: HB1-R | B38: 366.62 | C38: 258.47 | D38: 108.15 | F38: HB1 | G38: 366.62 | H38: 258.47 | I38: 108.15 | J38: 0.7050079101 | Q38: HB1-R | R38: 1.46 | T38: 253.08 | U38: 0 | V38: 19.23 | W38: 94.31 | X38: 366.62 | AA38: HB1-R | AB38: 366.62 | AC38: 358.17
A39: LE2-R | B39: 453.29 | C39: 319.57 | D39: 133.72 | F39: LE2 | G39: 453.29 | H39: 319.57 | I39: 133.72 | J39: 0.7050012134 | Q39: LE2-R | R39: 1.96 | T39: 339.75 | U39: 0 | V39: 19.23 | W39: 94.31 | X39: 453.29 | AA39: LE2-R | AB39: 453.29 | AC39: 442.84
A40: LE1-R | B40: 380.48 | C40: 268.24 | D40: 112.24 | F40: LE1 | G40: 380.48 | H40: 268.24 | I40: 112.24 | J40: 0.7050042052 | Q40: LE1-R | R40: 1.54 | T40: 266.94 | U40: 0 | V40: 19.23 | W40: 94.31 | X40: 380.48 | AA40: LE1-R | AB40: 380.48 | AC40: 371.71
A41: LD2-R | B41: 435.95 | C41: 307.34 | D41: 128.61 | F41: LD2 | G41: 435.95 | H41: 307.34 | I41: 128.61 | J41: 0.7049891043 | Q41: LD2-R | R41: 1.86 | T41: 322.41 | U41: 0 | V41: 19.23 | W41: 94.31 | X41: 435.95 | AA41: LD2-R | AB41: 435.95 | AC41: 425.9
A42: LD1-R | B42: 366.62 | C42: 258.47 | D42: 108.15 | F42: LD1 | G42: 366.62 | H42: 258.47 | I42: 108.15 | J42: 0.7050079101 | Q42: LD1-R | R42: 1.46 | T42: 253.08 | U42: 0 | V42: 19.23 | W42: 94.31 | X42: 366.62 | AA42: LD1-R | AB42: 366.62 | AC42: 358.17
A43: LC2-R | B43: 383.95 | C43: 270.68 | D43: 113.27 | F43: LC2 | G43: 383.95 | H43: 270.68 | I43: 113.27 | J43: 0.7049876286 | Q43: LC2-R | R43: 1.56 | T43: 270.41 | U43: 0 | V43: 19.23 | W43: 94.31 | X43: 383.95 | AA43: LC2-R | AB43: 383.95 | AC43: 375.1
A44: LC1-R | B44: 325.01 | C44: 229.13 | D44: 95.88 | F44: LC1 | G44: 325.01 | H44: 229.13 | I44: 95.88 | J44: 0.7049936925 | Q44: LC1-R | R44: 1.22 | T44: 211.47 | U44: 0 | V44: 19.23 | W44: 94.31 | X44: 325.01 | AA44: LC1-R | AB44: 325.01 | AC44: 317.52
A45: LB2-R | B45: 364.88 | C45: 257.24 | D45: 107.64 | F45: LB2 | G45: 364.88 | H45: 257.24 | I45: 107.64 | J45: 0.7049989037 | Q45: LB2-R | R45: 1.45 | T45: 251.34 | U45: 0 | V45: 19.23 | W45: 94.31 | X45: 364.88 | AA45: LB2-R | AB45: 364.88 | AC45: 356.47
A46: LB1-R | B46: 311.15 | C46: 219.36 | D46: 91.79 | F46: LB1 | G46: 311.15 | H46: 219.36 | I46: 91.79 | J46: 0.7049975896 | Q46: LB1-R | R46: 1.14 | T46: 197.61 | U46: 0 | V46: 19.23 | W46: 94.31 | X46: 311.15 | AA46: LB1-R | AB46: 311.15 | AC46: 303.98
A47: CE2-R | B47: 404.75 | C47: 285.35 | D47: 119.4 | F47: CE2 | G47: 404.75 | H47: 285.35 | I47: 119.4 | J47: 0.7050030883 | Q47: CE2-R | R47: 1.68 | T47: 291.21 | U47: 0 | V47: 19.23 | W47: 94.31 | X47: 404.75 | AA47: CE2-R | AB47: 404.75 | AC47: 395.42
A48: CE1-R | B48: 373.55 | C48: 263.35 | D48: 110.2 | F48: CE1 | G48: 373.55 | H48: 263.35 | I48: 110.2 | J48: 0.7049926382 | Q48: CE1-R | R48: 1.5 | T48: 260.01 | U48: 0 | V48: 19.23 | W48: 94.31 | X48: 373.55 | AA48: CE1-R | AB48: 373.55 | AC48: 364.94
A49: CD2-R | B49: 383.95 | C49: 270.68 | D49: 113.27 | F49: CD2 | G49: 383.95 | H49: 270.68 | I49: 113.27 | J49: 0.7049876286 | Q49: CD2-R | R49: 1.56 | T49: 270.41 | U49: 0 | V49: 19.23 | W49: 94.31 | X49: 383.95 | AA49: CD2-R | AB49: 383.95 | AC49: 375.1
A50: CD1-R | B50: 352.75 | C50: 248.69 | D50: 104.06 | F50: CD1 | G50: 352.75 | H50: 248.69 | I50: 104.06 | J50: 0.7050035436 | Q50: CD1-R | R50: 1.38 | T50: 239.21 | U50: 0 | V50: 19.23 | W50: 94.31 | X50: 352.75 | AA50: CD1-R | AB50: 352.75 | AC50: 344.62
A51: CC2-R | B51: 337.15 | C51: 237.69 | D51: 99.46 | F51: CC2 | G51: 337.15 | H51: 237.69 | I51: 99.46 | J51: 0.7049977755 | Q51: CC2-R | R51: 1.29 | T51: 223.61 | U51: 0 | V51: 19.23 | W51: 94.31 | X51: 337.15 | AA51: CC2-R | AB51: 337.15 | AC51: 329.38
A52: CC1-R | B52: 312.88 | C52: 220.58 | D52: 92.3 | F52: CC1 | G52: 312.88 | H52: 220.58 | I52: 92.3 | J52: 0.7049987216 | Q52: CC1-R | R52: 1.15 | T52: 199.34 | U52: 0 | V52: 19.23 | W52: 94.31 | X52: 312.88 | AA52: CC1-R | AB52: 312.88 | AC52: 305.67
A53: CB2-R | B53: 312.88 | C53: 220.58 | D53: 92.3 | F53: CB2 | G53: 312.88 | H53: 220.58 | I53: 92.3 | J53: 0.7049987216 | Q53: CB2-R | R53: 1.15 | T53: 199.34 | U53: 0 | V53: 19.23 | W53: 94.31 | X53: 312.88 | AA53: CB2-R | AB53: 312.88 | AC53: 305.67
A54: CB1-R | B54: 290.35 | C54: 204.7 | D54: 85.65 | F54: CB1 | G54: 290.35 | H54: 204.7 | I54: 85.65 | J54: 0.7050111934 | Q54: CB1-R | R54: 1.02 | T54: 176.81 | U54: 0 | V54: 19.23 | W54: 94.31 | X54: 290.35 | AA54: CB1-R | AB54: 290.35 | AC54: 283.66
A55: CA2-R | B55: 266.08 | C55: 187.59 | D55: 78.49 | F55: CA2 | G55: 266.08 | H55: 187.59 | I55: 78.49 | J55: 0.7050135298 | Q55: CA2-R | R55: 0.88 | T55: 152.54 | U55: 0 | V55: 19.23 | W55: 94.31 | X55: 266.08 | AA55: CA2-R | AB55: 266.08 | AC55: 259.95
A56: CA1-R | B56: 248.75 | C56: 175.37 | D56: 73.38 | F56: CA1 | G56: 248.75 | H56: 175.37 | I56: 73.38 | J56: 0.7050050251 | Q56: CA1-R | R56: 0.78 | T56: 135.21 | U56: 0 | V56: 19.23 | W56: 94.31 | X56: 248.75 | AA56: CA1-R | AB56: 248.75 | AC56: 243.02
A57: BB2-R | B57: 281.68 | C57: 198.58 | D57: 83.1 | F57: BB2 | G57: 281.68 | H57: 198.58 | I57: 83.1 | J57: 0.7049843794 | Q57: BB2-R | R57: 0.97 | T57: 168.14 | U57: 0 | V57: 19.23 | W57: 94.31 | X57: 281.68 | AA57: BB2-R | AB57: 281.68 | AC57: 275.19
A58: BB1-R | B58: 269.55 | C58: 190.03 | D58: 79.52 | F58: BB1 | G58: 269.55 | H58: 190.03 | I58: 79.52 | J58: 0.7049897978 | Q58: BB1-R | R58: 0.9 | T58: 156.01 | U58: 0 | V58: 19.23 | W58: 94.31 | X58: 269.55 | AA58: BB1-R | AB58: 269.55 | AC58: 263.34
A59: BA2-R | B59: 234.88 | C59: 165.59 | D59: 69.29 | F59: BA2 | G59: 234.88 | H59: 165.59 | I59: 69.29 | J59: 0.704998297 | Q59: BA2-R | R59: 0.7 | T59: 121.34 | U59: 0 | V59: 19.23 | W59: 94.31 | X59: 234.88 | AA59: BA2-R | AB59: 234.88 | AC59: 229.47
A60: BA1-R | B60: 224.48 | C60: 158.26 | D60: 66.22 | F60: BA1 | G60: 224.48 | H60: 158.26 | I60: 66.22 | J60: 0.7050071276 | Q60: BA1-R | R60: 0.64 | T60: 110.94 | U60: 0 | V60: 19.23 | W60: 94.31 | X60: 224.48 | AA60: BA1-R | AB60: 224.48 | AC60: 219.31
A61: PE2-R | B61: 373.55 | C61: 263.35 | D61: 110.2 | F61: PE2 | G61: 373.55 | H61: 263.35 | I61: 110.2 | J61: 0.7049926382 | Q61: PE2-R | R61: 1.5 | T61: 260.01 | U61: 0 | V61: 19.23 | W61: 94.31 | X61: 373.55 | AA61: PE2-R | AB61: 373.55 | AC61: 364.94
A62: PE1-R | B62: 356.22 | C62: 251.14 | D62: 105.08 | F62: PE1 | G62: 356.22 | H62: 251.14 | I62: 105.08 | J62: 0.7050137555 | Q62: PE1-R | R62: 1.4 | T62: 242.68 | U62: 0 | V62: 19.23 | W62: 94.31 | X62: 356.22 | AA62: PE1-R | AB62: 356.22 | AC62: 348.01
A63: PD2-R | B63: 352.75 | C63: 248.69 | D63: 104.06 | F63: PD2 | G63: 352.75 | H63: 248.69 | I63: 104.06 | J63: 0.7050035436 | Q63: PD2-R | R63: 1.38 | T63: 239.21 | U63: 0 | V63: 19.23 | W63: 94.31 | X63: 352.75 | AA63: PD2-R | AB63: 352.75 | AC63: 344.62
A64: PD1-R | B64: 335.42 | C64: 236.47 | D64: 98.95 | F64: PD1 | G64: 335.42 | H64: 236.47 | I64: 98.95 | J64: 0.7049967205 | Q64: PD1-R | R64: 1.28 | T64: 221.88 | U64: 0 | V64: 19.23 | W64: 94.31 | X64: 335.42 | AA64: PD1-R | AB64: 335.42 | AC64: 327.69
A65: PC2-R | B65: 304.21 | C65: 214.47 | D65: 89.74 | F65: PC2 | G65: 304.21 | H65: 214.47 | I65: 89.74 | J65: 0.70500641 | Q65: PC2-R | R65: 1.1 | T65: 190.67 | U65: 0 | V65: 19.23 | W65: 94.31 | X65: 304.21 | AA65: PC2-R | AB65: 304.21 | AC65: 297.2
A66: PC1-R | B66: 290.35 | C66: 204.7 | D66: 85.65 | F66: PC1 | G66: 290.35 | H66: 204.7 | I66: 85.65 | J66: 0.7050111934 | Q66: PC1-R | R66: 1.02 | T66: 176.81 | U66: 0 | V66: 19.23 | W66: 94.31 | X66: 290.35 | AA66: PC1-R | AB66: 290.35 | AC66: 283.66
A67: PB2-R | B67: 259.15 | C67: 182.7 | D67: 76.45 | F67: PB2 | G67: 259.15 | H67: 182.7 | I67: 76.45 | J67: 0.7049971059 | Q67: PB2-R | R67: 0.84 | T67: 145.61 | U67: 0 | V67: 19.23 | W67: 94.31 | X67: 259.15 | AA67: PB2-R | AB67: 259.15 | AC67: 253.18
A68: PB1-R | B68: 248.75 | C68: 175.37 | D68: 73.38 | F68: PB1 | G68: 248.75 | H68: 175.37 | I68: 73.38 | J68: 0.7050050251 | Q68: PB1-R | R68: 0.78 | T68: 135.21 | U68: 0 | V68: 19.23 | W68: 94.31 | X68: 248.75 | AA68: PB1-R | AB68: 248.75 | AC68: 243.02
A69: PA2-R | B69: 215.81 | C69: 152.15 | D69: 63.66 | F69: PA2 | G69: 215.81 | H69: 152.15 | I69: 63.66 | J69: =H69/G69 -> 0.7050183031 | Q69: PA2-R | R69: 0.59 | T69: =ROUND(IF(RIGHT($Q69,1)="R",T$2*R69,T$1*R69),2) -> 102.27 | U69: 0 | V69: 19.23 | W69: 94.31 | X69: 215.81 | AA69: PA2-R | AB69: 215.81 | AC69: 210.84
A70: PA1-R | B70: 207.14 | C70: =ROUND(B70*$B$1,2) -> 146.03 | D70: =ROUND(B70-C70,2) -> 61.11 | F70: PA1 | G70: 207.14 | H70: 146.03 | I70: 61.11 | J70: =H70/G70 -> 0.7049821377 | Q70: PA1-R | R70: 0.54 | T70: 93.6 | U70: 0 | V70: 19.23 | W70: =+$W$2 -> 94.31 | X70: =SUM(T70:W70) -> 207.14 | AA70: PA1-R | AB70: 207.14 | AC70: 202.37
A71: RUX-U | B71: 832.61 | C71: 586.99 | D71: 245.62 | F71: RUX | G71: 832.61 | H71: 586.99 | I71: 245.62 | J71: =H71/G71 -> 0.7049999399 | Q71: RUX-U | R71: 2.67 | S71: 1.87 | T71: 484.44 | U71: 255.57 | W71: =$W$1 -> 92.6 | X71: 832.61 | AA71: RUX-U | AB71: 832.61 | AC71: 813.43
A72: RUL-U | B72: 814.47 | C72: 574.2 | D72: 240.27 | F72: RUL | G72: 814.47 | H72: 574.2 | I72: 240.27 | J72: =H72/G72 -> 0.7049983425 | Q72: RUL-U | R72: 2.57 | S72: 1.87 | T72: 466.3 | U72: 255.57 | W72: =$W$1 -> 92.6 | X72: 814.47 | AA72: RUL-U | AB72: 814.47 | AC72: 795.71
A73: RVX-U | B73: 741.1 | C73: 522.48 | D73: 218.62 | F73: RVX | G73: 741.1 | H73: 522.48 | I73: 218.62 | J73: 0.7050060721 | Q73: RVX-U | R73: 2.61 | S73: 1.28 | T73: 473.56 | U73: 174.94 | W73: 92.6 | X73: 741.1 | AA73: RVX-U | AB73: 741.1 | AC73: 724.03
A74: RVL-U | B74: 664.89 | C74: 468.75 | D74: 196.14 | F74: RVL | G74: 664.89 | H74: 468.75 | I74: 196.14 | J74: 0.7050038352 | Q74: RVL-U | R74: 2.19 | S74: 1.28 | T74: 397.35 | U74: 174.94 | W74: 92.6 | X74: 664.89 | AA74: RVL-U | AB74: 664.89 | AC74: 649.58
A75: RHX-U | B75: 671.44 | C75: 473.37 | D75: 198.07 | F75: RHX | G75: 671.44 | H75: 473.37 | I75: 198.07 | J75: 0.7050071488 | Q75: RHX-U | R75: 2.55 | S75: 0.85 | T75: 462.67 | U75: 116.17 | W75: 92.6 | X75: 671.44 | AA75: RHX-U | AB75: 671.44 | AC75: 655.97
A76: RHL-U | B76: 598.87 | C76: 422.2 | D76: 176.67 | F76: RHL | G76: 598.87 | H76: 422.2 | I76: 176.67 | J76: 0.7049944061 | Q76: RHL-U | R76: 2.15 | S76: 0.85 | T76: 390.1 | U76: 116.17 | W76: 92.6 | X76: 598.87 | AA76: RHL-U | AB76: 598.87 | AC76: 585.07
A77: RMX-U | B77: 615.93 | C77: 434.23 | D77: 181.7 | F77: RMX | G77: 615.93 | H77: 434.23 | I77: 181.7 | J77: 0.7049989447 | Q77: RMX-U | R77: 2.47 | S77: 0.55 | T77: 448.16 | U77: 75.17 | W77: 92.6 | X77: 615.93 | AA77: RMX-U | AB77: 615.93 | AC77: 601.74
A78: RML-U | B78: 565.12 | C78: 398.41 | D78: 166.71 | F78: RML | G78: 565.12 | H78: 398.41 | I78: 166.71 | J78: 0.7050007078 | Q78: RML-U | R78: 2.19 | S78: 0.55 | T78: 397.35 | U78: 75.17 | W78: 92.6 | X78: 565.12 | AA78: RML-U | AB78: 565.12 | AC78: 552.11
A79: RLX-U | B79: 540.92 | C79: 381.35 | D79: 159.57 | F79: RLX | G79: 540.92 | H79: 381.35 | I79: 159.57 | J79: 0.7050025882 | Q79: RLX-U | R79: 2.26 | S79: 0.28 | T79: 410.05 | U79: 38.27 | W79: 92.6 | X79: 540.92 | AA79: RLX-U | AB79: 540.92 | AC79: 528.47
A80: RUC-U | B80: 631.22 | C80: 445.01 | D80: 186.21 | F80: RUC | G80: 631.22 | H80: 445.01 | I80: 186.21 | J80: 0.7049998416 | Q80: RUC-U | R80: 1.56 | S80: 1.87 | T80: 283.05 | U80: 255.57 | W80: 92.6 | X80: 631.22 | AA80: RUC-U | AB80: 631.22 | AC80: 616.68
A81: RUB-U | B81: 631.22 | C81: 445.01 | D81: 186.21 | F81: RUB | G81: 631.22 | H81: 445.01 | I81: 186.21 | J81: 0.7049998416 | Q81: RUB-U | R81: 1.56 | S81: 1.87 | T81: 283.05 | U81: 255.57 | W81: 92.6 | X81: 631.22 | AA81: RUB-U | AB81: 631.22 | AC81: 616.68
A82: RUA-U | B82: 527.8 | C82: 372.1 | D82: 155.7 | F82: RUA | G82: 527.8 | H82: 372.1 | I82: 155.7 | J82: 0.7050018947 | Q82: RUA-U | R82: 0.99 | S82: 1.87 | T82: 179.63 | U82: 255.57 | W82: 92.6 | X82: 527.8 | AA82: RUA-U | AB82: 527.8 | AC82: 515.64
A83: RVC-U | B83: 541.51 | C83: 381.76 | D83: 159.75 | F83: RVC | G83: 541.51 | H83: 381.76 | I83: 159.75 | J83: 0.7049915976 | Q83: RVC-U | R83: 1.51 | S83: 1.28 | T83: 273.97 | U83: 174.94 | W83: 92.6 | X83: 541.51 | AA83: RVC-U | AB83: 541.51 | AC83: 529.04
A84: RVB-U | B84: 468.94 | C84: 330.6 | D84: 138.34 | F84: RVB | G84: 468.94 | H84: 330.6 | I84: 138.34 | J84: 0.7049942423 | Q84: RVB-U | R84: 1.11 | S84: 1.28 | T84: 201.4 | U84: 174.94 | W84: 92.6 | X84: 468.94 | AA84: RVB-U | AB84: 468.94 | AC84: 458.14
A85: RVA-U | B85: 467.12 | C85: 329.32 | D85: 137.8 | F85: RVA | G85: 467.12 | H85: 329.32 | I85: 137.8 | J85: 0.7050008563 | Q85: RVA-U | R85: 1.1 | S85: 1.28 | T85: =ROUND(IF(RIGHT($Q85,1)="R",T$2*R85,T$1*R85),2) -> 199.58 | U85: 174.94 | W85: 92.6 | X85: 467.12 | AA85: RVA-U | AB85: 467.12 | AC85: 456.37
A86: RHC-U | B86: 471.86 | C86: 332.66 | D86: 139.2 | F86: RHC | G86: 471.86 | H86: 332.66 | I86: 139.2 | J86: 0.7049972449 | Q86: RHC-U | R86: 1.45 | S86: 0.85 | T86: 263.09 | U86: 116.17 | W86: 92.6 | X86: 471.86 | AA86: RHC-U | AB86: 471.86 | AC86: 460.99
A87: RHB-U | B87: 424.68 | C87: 299.4 | D87: 125.28 | F87: RHB | G87: 424.68 | H87: 299.4 | I87: 125.28 | J87: 0.7050014128 | Q87: RHB-U | R87: 1.19 | S87: 0.85 | T87: 215.91 | U87: 116.17 | W87: 92.6 | X87: 424.68 | AA87: RHB-U | AB87: 424.68 | AC87: 414.9
A88: RHA-U | B88: 373.88 | C88: 263.59 | D88: 110.29 | F88: RHA | G88: 373.88 | H88: 263.59 | I88: 110.29 | J88: 0.7050123034 | Q88: RHA-U | R88: 0.91 | S88: 0.85 | T88: 165.11 | U88: 116.17 | W88: 92.6 | X88: 373.88 | AA88: RHA-U | AB88: 373.88 | AC88: 365.27
A89: RMC-U | B89: 414.53 | C89: 292.24 | D89: 122.29 | F89: RMC | G89: 414.53 | H89: 292.24 | I89: 122.29 | J89: 0.7049911948 | Q89: RMC-U | R89: 1.36 | S89: 0.55 | T89: 246.76 | U89: 75.17 | W89: 92.6 | X89: 414.53 | AA89: RMC-U | AB89: 414.53 | AC89: 404.98
A90: RMB-U | B90: 389.13 | C90: 274.34 | D90: 114.79 | F90: RMB | G90: 389.13 | H90: 274.34 | I90: 114.79 | J90: 0.7050086089 | Q90: RMB-U | R90: 1.22 | S90: 0.55 | T90: 221.36 | U90: 75.17 | W90: 92.6 | X90: 389.13 | AA90: RMB-U | AB90: 389.13 | AC90: 380.17
A91: RMA-U | B91: 320.18 | C91: 225.73 | D91: 94.45 | F91: RMA | G91: 320.18 | H91: 225.73 | I91: 94.45 | J91: 0.7050096821 | Q91: RMA-U | R91: 0.84 | S91: 0.55 | T91: 152.41 | U91: 75.17 | W91: 92.6 | X91: 320.18 | AA91: RMA-U | AB91: 320.18 | AC91: 312.81
A92: RLB-U | B92: 403.03 | C92: 284.14 | D92: 118.89 | F92: RLB | G92: 403.03 | H92: 284.14 | I92: 118.89 | J92: 0.7050095526 | Q92: RLB-U | R92: 1.5 | S92: 0.28 | T92: 272.16 | U92: 38.27 | W92: 92.6 | X92: 403.03 | AA92: RLB-U | AB92: 403.03 | AC92: 393.75
A93: RLA-U | B93: 259.69 | C93: 183.08 | D93: 76.61 | F93: RLA | G93: 259.69 | H93: 183.08 | I93: 76.61 | J93: 0.7049944164 | Q93: RLA-U | R93: 0.71 | S93: 0.28 | T93: 128.82 | U93: 38.27 | W93: 92.6 | X93: 259.69 | AA93: RLA-U | AB93: 259.69 | AC93: 253.71
A94: ES3-U | B94: 760.16 | C94: 535.91 | D94: 224.25 | F94: ES3 | G94: 745.01 | H94: 525.23 | I94: 219.78 | J94: 0.7049972484 | Q94: ES3-U | R94: 3.58 | T94: 649.56 | U94: 0 | V94: =$V$1 -> 18 | W94: 92.6 | X94: 760.16 | AA94: ES3-U | AB94: 760.16 | AC94: 742.65
A95: ES2-U | B95: 595.04 | C95: 419.5 | D95: 175.54 | F95: ES2 | G95: 583.75 | H95: 411.54 | I95: 172.21 | J95: 0.704993576 | Q95: ES2-U | R95: 2.67 | T95: 484.44 | U95: 0 | V95: =$V$1 -> 18 | W95: 92.6 | X95: 595.04 | AA95: ES2-U | AB95: 595.04 | AC95: 581.34
A96: ES1-U | B96: 531.54 | C96: 374.74 | D96: 156.8 | F96: ES1 | G96: 521.73 | H96: 367.82 | I96: 153.91 | J96: 0.7050006708 | Q96: ES1-U | R96: 2.32 | T96: 420.94 | U96: 0 | V96: 18 | W96: 92.6 | X96: 531.54 | AA96: ES1-U | AB96: 531.54 | AC96: 519.3
A97: HE2-U | B97: 513.4 | C97: 361.95 | D97: 151.45 | F97: HE2 | G97: 504.01 | H97: 355.33 | I97: 148.68 | J97: 0.7050058531 | Q97: HE2-U | R97: 2.22 | T97: 402.8 | U97: 0 | V97: 18 | W97: 92.6 | X97: 513.4 | AA97: HE2-U | AB97: 513.4 | AC97: 501.58
A98: HE1-U | B98: 426.31 | C98: 300.55 | D98: 125.76 | F98: HE1 | G98: 418.95 | H98: 295.36 | I98: 123.59 | J98: 0.7050005967 | Q98: HE1-U | R98: 1.74 | T98: 315.71 | U98: 0 | V98: 18 | W98: 92.6 | X98: 426.31 | AA98: HE1-U | AB98: 426.31 | AC98: 416.49
A99: HD2-U | B99: 480.74 | C99: 338.92 | D99: 141.82 | F99: HD2 | G99: 472.11 | H99: 332.84 | I99: 139.27 | J99: 0.7050051895 | Q99: HD2-U | R99: 2.04 | T99: 370.14 | U99: 0 | V99: 18 | W99: 92.6 | X99: 480.74 | AA99: HD2-U | AB99: 480.74 | AC99: 469.67
A100: HD1-U | B100: 400.9 | C100: 282.63 | D100: 118.27 | F100: HD1 | G100: 394.14 | H100: 277.87 | I100: 116.27 | J100: 0.7050032983 | Q100: HD1-U | R100: 1.6 | T100: 290.3 | U100: 0 | V100: 18 | W100: 92.6 | X100: 400.9 | AA100: HD1-U | AB100: 400.9 | AC100: 391.68
A101: HC2-U | B101: 453.52 | C101: 319.73 | D101: 133.79 | F101: HC2 | G101: 445.53 | H101: 314.1 | I101: 131.43 | J101: 0.7050030301 | Q101: HC2-U | R101: 1.89 | T101: 342.92 | U101: 0 | V101: 18 | W101: 92.6 | X101: 453.52 | AA101: HC2-U | AB101: 453.52 | AC101: 443.08
A102: HC1-U | B102: 379.13 | C102: 267.29 | D102: 111.84 | F102: HC1 | G102: 372.87 | H102: 262.87 | I102: 110 | J102: 0.7049910156 | Q102: HC1-U | R102: 1.48 | T102: 268.53 | U102: 0 | V102: 18 | W102: 92.6 | X102: 379.13 | AA102: HC1-U | AB102: 379.13 | AC102: 370.4
A103: HB2-U | B103: 448.08 | C103: 315.9 | D103: 132.18 | F103: HB2 | G103: 440.21 | H103: 310.35 | I103: 129.86 | J103: 0.7050044297 | Q103: HB2-U | R103: 1.86 | T103: 337.48 | U103: 0 | V103: 18 | W103: 92.6 | X103: 448.08 | AA103: HB2-U | AB103: 448.08 | AC103: 437.76
A104: HB1-U | B104: 375.5 | C104: 264.73 | D104: 110.77 | F104: HB1 | G104: 369.33 | H104: 260.38 | I104: 108.95 | J104: 0.7050063629 | Q104: HB1-U | R104: 1.46 | T104: 264.9 | U104: 0 | V104: 18 | W104: 92.6 | X104: 375.5 | AA104: HB1-U | AB104: 375.5 | AC104: 366.86
A105: LE2-U | B105: 466.22 | C105: 328.69 | D105: 137.53 | F105: LE2 | G105: 457.93 | H105: 322.84 | I105: 135.09 | J105: 0.7049985806 | Q105: LE2-U | R105: 1.96 | T105: 355.62 | U105: 0 | V105: 18 | W105: 92.6 | X105: 466.22 | AA105: LE2-U | AB105: 466.22 | AC105: 455.49
A106: LE1-U | B106: 390.02 | C106: 274.96 | D106: 115.06 | F106: LE1 | G106: 383.5 | H106: 270.37 | I106: 113.13 | J106: 0.7050065189 | Q106: LE1-U | R106: 1.54 | T106: 279.42 | U106: 0 | V106: 18 | W106: 92.6 | X106: 390.02 | AA106: LE1-U | AB106: 390.02 | AC106: 381.04
A107: LD2-U | B107: 448.08 | C107: 315.9 | D107: 132.18 | F107: LD2 | G107: 440.21 | H107: 310.35 | I107: 129.86 | J107: 0.7050044297 | Q107: LD2-U | R107: 1.86 | T107: 337.48 | U107: 0 | V107: 18 | W107: 92.6 | X107: 448.08 | AA107: LD2-U | AB107: 448.08 | AC107: 437.76
A108: LD1-U | B108: 375.5 | C108: 264.73 | D108: 110.77 | F108: LD1 | G108: 369.33 | H108: 260.38 | I108: 108.95 | J108: 0.7050063629 | Q108: LD1-U | R108: 1.46 | T108: 264.9 | U108: 0 | V108: 18 | W108: 92.6 | X108: 375.5 | AA108: LD1-U | AB108: 375.5 | AC108: 366.86
A109: LC2-U | B109: 393.65 | C109: 277.52 | D109: 116.13 | F109: LC2 | G109: 387.05 | H109: 272.87 | I109: 114.18 | J109: 0.7049993541 | Q109: LC2-U | R109: 1.56 | T109: 283.05 | U109: 0 | V109: 18 | W109: 92.6 | X109: 393.65 | AA109: LC2-U | AB109: 393.65 | AC109: 384.59
A110: LC1-U | B110: 331.96 | C110: 234.03 | D110: 97.93 | F110: LC1 | G110: 326.8 | H110: 230.39 | I110: 96.41 | J110: 0.7049877601 | Q110: LC1-U | R110: 1.22 | T110: 221.36 | U110: 0 | V110: 18 | W110: 92.6 | X110: 331.96 | AA110: LC1-U | AB110: 331.96 | AC110: 324.32
A111: LB2-U | B111: 373.69 | C111: 263.45 | D111: 110.24 | F111: LB2 | G111: 367.55 | H111: 259.12 | I111: 108.43 | J111: 0.704992518 | Q111: LB2-U | R111: 1.45 | T111: 263.09 | U111: 0 | V111: 18 | W111: 92.6 | X111: 373.69 | AA111: LB2-U | AB111: 373.69 | AC111: 365.09
A112: LB1-U | B112: 317.44 | C112: 223.8 | D112: 93.64 | F112: LB1 | G112: 312.62 | H112: 220.4 | I112: 92.22 | J112: 0.7050092764 | Q112: LB1-U | R112: 1.14 | T112: 206.84 | U112: 0 | V112: 18 | W112: 92.6 | X112: 317.44 | AA112: LB1-U | AB112: 317.44 | AC112: 310.14
A113: CE2-U | B113: 415.42 | C113: 292.87 | D113: 122.55 | F113: CE2 | G113: 408.31 | H113: 287.86 | I113: 120.45 | J113: 0.7050035512 | Q113: CE2-U | R113: 1.68 | T113: 304.82 | U113: 0 | V113: 18 | W113: 92.6 | X113: 415.42 | AA113: CE2-U | AB113: 415.42 | AC113: 405.86
A114: CE1-U | B114: 382.76 | C114: 269.85 | D114: 112.91 | F114: CE1 | G114: 376.42 | H114: 265.38 | I114: 111.04 | J114: 0.7050103608 | Q114: CE1-U | R114: 1.5 | T114: 272.16 | U114: 0 | V114: 18 | W114: 92.6 | X114: 382.76 | AA114: CE1-U | AB114: 382.76 | AC114: 373.95
A115: CD2-U | B115: 393.65 | C115: 277.52 | D115: 116.13 | F115: CD2 | G115: 387.05 | H115: 272.87 | I115: 114.18 | J115: 0.7049993541 | Q115: CD2-U | R115: 1.56 | T115: 283.05 | U115: 0 | V115: 18 | W115: 92.6 | X115: 393.65 | AA115: CD2-U | AB115: 393.65 | AC115: 384.59
A116: CD1-U | B116: 360.99 | C116: 254.5 | D116: 106.49 | F116: CD1 | G116: 355.15 | H116: 250.38 | I116: 104.77 | J116: 0.7049978882 | Q116: CD1-U | R116: 1.38 | T116: 250.39 | U116: 0 | V116: 18 | W116: 92.6 | X116: 360.99 | AA116: CD1-U | AB116: 360.99 | AC116: 352.68
A117: CC2-U | B117: 344.66 | C117: 242.99 | D117: 101.67 | F117: CC2 | G117: 339.2 | H117: 239.14 | I117: 100.06 | J117: 0.7050117925 | Q117: CC2-U | R117: 1.29 | T117: 234.06 | U117: 0 | V117: 18 | W117: 92.6 | X117: 344.66 | AA117: CC2-U | AB117: 344.66 | AC117: 336.73
A118: CC1-U | B118: 319.26 | C118: 225.08 | D118: 94.18 | F118: CC1 | G118: 314.39 | H118: 221.64 | I118: 92.75 | J118: 0.7049842552 | Q118: CC1-U | R118: 1.15 | T118: 208.66 | U118: 0 | V118: 18 | W118: 92.6 | X118: 319.26 | AA118: CC1-U | AB118: 319.26 | AC118: 311.91
A119: CB2-U | B119: 319.26 | C119: 225.08 | D119: 94.18 | F119: CB2 | G119: 314.39 | H119: 221.64 | I119: 92.75 | J119: 0.7049842552 | Q119: CB2-U | R119: 1.15 | T119: 208.66 | U119: 0 | V119: 18 | W119: 92.6 | X119: 319.26 | AA119: CB2-U | AB119: 319.26 | AC119: 311.91
A120: CB1-U | B120: 295.67 | C120: 208.45 | D120: 87.22 | F120: CB1 | G120: 291.35 | H120: 205.4 | I120: 85.95 | J120: 0.7049939935 | Q120: CB1-U | R120: 1.02 | T120: 185.07 | U120: 0 | V120: 18 | W120: 92.6 | X120: 295.67 | AA120: CB1-U | AB120: 295.67 | AC120: 288.87
A121: CA2-U | B121: 270.27 | C121: 190.54 | D121: 79.73 | F121: CA2 | G121: 266.54 | H121: 187.91 | I121: 78.63 | J121: 0.7049973738 | Q121: CA2-U | R121: 0.88 | T121: 159.67 | U121: 0 | V121: 18 | W121: 92.6 | X121: 270.27 | AA121: CA2-U | AB121: 270.27 | AC121: 264.05
A122: CA1-U | B122: 252.12 | C122: 177.74 | D122: 74.38 | F122: CA1 | G122: 248.82 | H122: 175.42 | I122: 73.4 | J122: 0.705007636 | Q122: CA1-U | R122: 0.78 | T122: 141.52 | U122: 0 | V122: 18 | W122: 92.6 | X122: 252.12 | AA122: CA1-U | AB122: 252.12 | AC122: 246.32
A123: BB2-U | B123: 286.6 | C123: 202.05 | D123: 84.55 | F123: BB2 | G123: 282.49 | H123: 199.16 | I123: 83.33 | J123: 0.7050161068 | Q123: BB2-U | R123: 0.97 | T123: 176 | U123: 0 | V123: 18 | W123: 92.6 | X123: 286.6 | AA123: BB2-U | AB123: 286.6 | AC123: 280
A124: BB1-U | B124: 273.9 | C124: 193.1 | D124: 80.8 | F124: BB1 | G124: 270.09 | H124: 190.41 | I124: 79.68 | J124: 0.7049872265 | Q124: BB1-U | R124: 0.9 | T124: 163.3 | U124: 0 | V124: 18 | W124: 92.6 | X124: 273.9 | AA124: BB1-U | AB124: 273.9 | AC124: 267.59
A125: BA2-U | B125: 237.61 | C125: 167.52 | D125: 70.09 | F125: BA2 | G125: 234.65 | H125: 165.43 | I125: 69.22 | J125: 0.7050074579 | Q125: BA2-U | R125: 0.7 | T125: 127.01 | U125: 0 | V125: 18 | W125: 92.6 | X125: 237.61 | AA125: BA2-U | AB125: 237.61 | AC125: 232.14
A126: BA1-U | B126: 226.72 | C126: 159.84 | D126: 66.88 | F126: BA1 | G126: 224.01 | H126: 157.93 | I126: 66.08 | J126: 0.7050131691 | Q126: BA1-U | R126: 0.64 | T126: 116.12 | U126: 0 | V126: 18 | W126: 92.6 | X126: 226.72 | AA126: BA1-U | AB126: 226.72 | AC126: 221.51
A127: PE2-U | B127: 382.76 | C127: 269.85 | D127: 112.91 | F127: PE2 | G127: 376.42 | H127: 265.38 | I127: 111.04 | J127: 0.7050103608 | Q127: PE2-U | R127: 1.5 | T127: 272.16 | U127: 0 | V127: 18 | W127: 92.6 | X127: 382.76 | AA127: PE2-U | AB127: 382.76 | AC127: 373.95
A128: PE1-U | B128: 364.62 | C128: 257.06 | D128: 107.56 | F128: PE1 | G128: 358.69 | H128: 252.88 | I128: 105.81 | J128: 0.7050098971 | Q128: PE1-U | R128: 1.4 | T128: 254.02 | U128: 0 | V128: 18 | W128: 92.6 | X128: 364.62 | AA128: PE1-U | AB128: 364.62 | AC128: 356.22
A129: PD2-U | B129: 360.99 | C129: 254.5 | D129: 106.49 | F129: PD2 | G129: 355.15 | H129: 250.38 | I129: 104.77 | J129: 0.7049978882 | Q129: PD2-U | R129: 1.38 | T129: 250.39 | U129: 0 | V129: 18 | W129: 92.6 | X129: 360.99 | AA129: PD2-U | AB129: 360.99 | AC129: 352.68
A130: PD1-U | B130: 342.84 | C130: 241.7 | D130: 101.14 | F130: PD1 | G130: 337.43 | H130: 237.89 | I130: 99.54 | J130: 0.7050054826 | Q130: PD1-U | R130: 1.28 | T130: 232.24 | U130: 0 | V130: 18 | W130: 92.6 | X130: 342.84 | AA130: PD1-U | AB130: 342.84 | AC130: 334.95
A131: PC2-U | B131: 310.18 | C131: 218.68 | D131: 91.5 | F131: PC2 | G131: 305.53 | H131: 215.4 | I131: 90.13 | J131: 0.7050044186 | Q131: PC2-U | R131: 1.1 | T131: 199.58 | U131: 0 | V131: 18 | W131: 92.6 | X131: 310.18 | AA131: PC2-U | AB131: 310.18 | AC131: 303.05
A132: PC1-U | B132: 295.67 | C132: 208.45 | D132: 87.22 | F132: PC1 | G132: 291.35 | H132: 205.4 | I132: 85.95 | J132: 0.7049939935 | Q132: PC1-U | R132: 1.02 | T132: 185.07 | U132: 0 | V132: 18 | W132: 92.6 | X132: 295.67 | AA132: PC1-U | AB132: 295.67 | AC132: 288.87
A133: PB2-U | B133: 263.01 | C133: 185.42 | D133: 77.59 | F133: PB2 | G133: 254.46 | H133: 179.39 | I133: 75.07 | J133: 0.7049831015 | Q133: PB2-U | R133: 0.84 | T133: 152.41 | U133: 0 | V133: 18 | W133: 92.6 | X133: 263.01 | AA133: PB2-U | AB133: 263.01 | AC133: 256.96
A134: PB1-U | B134: 252.12 | C134: =ROUND(B134*$B$1,2) -> 177.74 | D134: =ROUND(B134-C134,2) -> 74.38 | F134: PB1 | G134: 248.82 | H134: 175.42 | I134: 73.4 | J134: 0.705007636 | Q134: PB1-U | R134: 0.78 | T134: 141.52 | U134: 0 | V134: 18 | W134: 92.6 | X134: =SUM(T134:W134) -> 252.12 | AA134: PB1-U | AB134: 252.12 | AC134: 246.32
A135: PA2-U | B135: 217.65 | C135: =ROUND(B135*$B$1,2) -> 153.44 | D135: =ROUND(B135-C135,2) -> 64.21 | F135: PA2 | G135: 215.15 | H135: 151.68 | I135: 63.47 | J135: 0.7049965141 | Q135: PA2-U | R135: 0.59 | T135: 107.05 | U135: 0 | V135: 18 | W135: 92.6 | X135: =SUM(T135:W135) -> 217.65 | AA135: PA2-U | AB135: 217.65 | AC135: 212.64
A136: PA1-U | B136: 208.58 | C136: =ROUND(B136*$B$1,2) -> 147.05 | D136: =ROUND(B136-C136,2) -> 61.53 | F136: PA1 | G136: 206.29 | H136: 145.43 | I136: 60.86 | J136: =H136/G136 -> 0.7049784284 | Q136: PA1-U | R136: 0.54 | T136: 97.98 | U136: 0 | V136: 18 | W136: =$W$1 -> 92.6 | X136: =SUM(T136:W136) -> 208.58 | AA136: PA1-U | AB136: 208.58 | AC136: 203.78
G137: =SUM(G5:G136) -> 56004.72 | H137: =SUM(H5:H136) -> 39483.31 | I137: =SUM(I5:I136) -> 16521.41 | J137: =+H137/G137 -> 0.7049996857

Sheet Data - CBSA Codes (hidden)
A1: County, State | B1: CBSA Code
A2: Click on the arrow to make your selection . . .
A3: Abbeville County, SC | B3: 99942
A4: Acadia Parish, LA | B4: 29180
A5: Accomack County, VA | B5: 99949
A6: Ada County, ID | B6: 14260
A7: Adair County, IA | B7: 99916
A8: Adair County, KY | B8: 99918
A9: Adair County, MO | B9: 99926
A10: Adair County, OK | B10: 99937
A11: Adams County, CO | B11: 19740
A12: Adams County, IA | B12: 99916
A13: Adams County, ID | B13: 99913
A14: Adams County, IL | B14: 99914
A15: Adams County, IN | B15: 99915
A16: Adams County, MS | B16: 99925
A17: Adams County, ND | B17: 99935
A18: Adams County, NE | B18: 99928
A19: Adams County, OH | B19: 99936
A20: Adams County, PA | B20: 23900
A21: Adams County, WA | B21: 99950
A22: Adams County, WI | B22: 99952
A23: Addison County, VT | B23: 99947
A24: Adjuntas Municipio, PR | B24: 99940
A25: Aguada Municipio, PR | B25: 10380
A26: Aguadilla Municipio, PR | B26: 10380
A27: Aguas Buenas Municipio, PR | B27: 41980
A28: Aibonito Municipio, PR | B28: 41980
A29: Aiken County, SC | B29: 12260
A30: Aitkin County, MN | B30: 99924
A31: Alachua County, FL | B31: 23540
A32: Alamance County, NC | B32: 15500
A33: Alameda County, CA | B33: 36084
A34: Alamosa County, CO | B34: 99906
A35: Albany County, NY | B35: 10580
A36: Albany County, WY | B36: 99953
A37: Albemarle County, VA | B37: 16820
A38: Alcona County, MI | B38: 99923
A39: Alcorn County, MS | B39: 99925
A40: Aleutians East Borough, AK | B40: 99902
A41: Aleutians West Borough, AK | B41: 99902
A42: Alexander County, IL | B42: 16020
A43: Alexander County, NC | B43: 25860
A44: Alexandria City County, VA | B44: 47894
A45: Alfalfa County, OK | B45: 99937
A46: Alger County, MI | B46: 99923
A47: Allamakee County, IA | B47: 99916
A48: Allegan County, MI | B48: 99923
A49: Allegany County, MD | B49: 19060
A50: Allegany County, NY | B50: 99933
A51: Alleghany County, NC | B51: 99934
A52: Alleghany County, VA | B52: 99949
A53: Allegheny County, PA | B53: 38300
A54: Allen County, IN | B54: 23060
A55: Allen County, KS | B55: 99917
A56: Allen County, KY | B56: 14540
A57: Allen County, LA | B57: 99919
A58: Allen County, OH | B58: 30620
A59: Allendale County, SC | B59: 99942
A60: Alpena County, MI | B60: 99923
A61: Alpine County, CA | B61: 99905
A62: Amador County, CA | B62: 99905
A63: Amelia County, VA | B63: 40060
A64: Amherst County, VA | B64: 31340
A65: Amite County, MS | B65: 99925
A66: Anasco Municipio, PR | B66: 10380
A67: Anchorage Municipality, AK | B67: 11260
A68: Anderson County, KS | B68: 99917
A69: Anderson County, KY | B69: 99918
A70: Anderson County, SC | B70: 24860
A71: Anderson County, TN | B71: 28940
A72: Anderson County, TX | B72: 99945
A73: Andrew County, MO | B73: 41140
A74: Andrews County, TX | B74: 99945
A75: Androscoggin County, ME | B75: 30340
A76: Angelina County, TX | B76: 99945
A77: Anne Arundel County, MD | B77: 12580
A78: Anoka County, MN | B78: 33460
A79: Anson County, NC | B79: 99934
A80: Antelope County, NE | B80: 99928
A81: Antrim County, MI | B81: 99923
A82: Apache County, AZ | B82: 99903
A83: Appanoose County, IA | B83: 99916
A84: Appling County, GA | B84: 99911
A85: Appomattox County, VA | B85: 31340
A86: Aransas County, TX | B86: 18580
A87: Arapahoe County, CO | B87: 19740
A88: Archer County, TX | B88: 48660
A89: Archuleta County, CO | B89: 99906
A90: Arecibo Municipio, PR | B90: 11640
A91: Arenac County, MI | B91: 99923
A92: Arkansas County, AR | B92: 99904
A93: Arlington County, VA | B93: 47894
A94: Armstrong County, PA | B94: 38300
A95: Armstrong County, TX | B95: 11100
A96: Aroostook County, ME | B96: 99920
A97: Arroyo Municipio, PR | B97: 25020
A98: Arthur County, NE | B98: 99928
A99: Ascension Parish, LA | B99: 12940
A100: Ashe County, NC | B100: 99934
A101: Ashland County, OH | B101: 99936
A102: Ashland County, WI | B102: 99952
A103: Ashley County, AR | B103: 99904
A104: Ashtabula County, OH | B104: 99936
A105: Asotin County, WA | B105: 30300
A106: Assumption Parish, LA | B106: 99919
A107: Atascosa County, TX | B107: 41700
A108: Atchison County, KS | B108: 99917
A109: Atchison County, MO | B109: 99926
A110: Athens County, OH | B110: 99936
A111: Atkinson County, GA | B111: 99911
A112: Atlantic County, NJ | B112: 12100
A113: Atoka County, OK | B113: 99937
A114: Attala County, MS | B114: 99925
A115: Audrain County, MO | B115: 99926
A116: Audubon County, IA | B116: 99916
A117: Auglaize County, OH | B117: 99936
A118: Augusta County, VA | B118: 44420
A119: Aurora County, SD | B119: 99943
A120: Austin County, TX | B120: 26420
A121: Autauga County, AL | B121: 33860
A122: Avery County, NC | B122: 99934
A123: Avoyelles Parish, LA | B123: 99919
A124: Baca County, CO | B124: 99906
A125: Bacon County, GA | B125: 99911
A126: Bailey County, TX | B126: 99945
A127: Baker County, FL | B127: 27260
A128: Baker County, GA | B128: 10500
A129: Baker County, OR | B129: 99938
A130: Baldwin County, AL | B130: 19300
A131: Baldwin County, GA | B131: 99911
A132: Ballard County, KY | B132: 99918
A133: Baltimore City, MD | B133: 12580
A134: Baltimore County, MD | B134: 12580
A135: Bamberg County, SC | B135: 99942
A136: Bandera County, TX | B136: 41700
A137: Banks County, GA | B137: 99911
A138: Banner County, NE | B138: 99928
A139: Bannock County, ID | B139: 38540
A140: Baraga County, MI | B140: 99923
A141: Barber County, KS | B141: 99917
A142: Barbour County, AL | B142: 99901
A143: Barbour County, WV | B143: 99951
A144: Barceloneta Municipio, PR | B144: 41980
A145: Barnes County, ND | B145: 99935
A146: Barnstable County, MA | B146: 12700
A147: Barnwell County, SC | B147: 99942
A148: Barranquitas Municipio, PR | B148: 41980
A149: Barren County, KY | B149: 99918
A150: Barron County, WI | B150: 99952
A151: Barrow County, GA | B151: 12060
A152: Barry County, MI | B152: 24340
A153: Barry County, MO | B153: 99926
A154: Bartholomew County, IN | B154: 18020
A155: Barton County, KS | B155: 99917
A156: Barton County, MO | B156: 99926
A157: Bartow County, GA | B157: 12060
A158: Bastrop County, TX | B158: 12420
A159: Bates County, MO | B159: 28140
A160: Bath County, KY | B160: 99918
A161: Bath County, VA | B161: 99949
A162: Baxter County, AR | B162: 99904
A163: Bay County, FL | B163: 37460
A164: Bay County, MI | B164: 13020
A165: Bayamon Municipio, PR | B165: 41980
A166: Bayfield County, WI | B166: 99952
A167: Baylor County, TX | B167: 99945
A168: Beadle County, SD | B168: 99943
A169: Bear Lake County, ID | B169: 99913
A170: Beaufort County, NC | B170: 99934
A171: Beaufort County, SC | B171: 25940
A172: Beauregard Parish, LA | B172: 99919
A173: Beaver County, OK | B173: 99937
A174: Beaver County, PA | B174: 38300
A175: Beaver County, UT | B175: 99946
A176: Beaverhead County, MT | B176: 99927
A177: Becker County, MN | B177: 99924
A178: Beckham County, OK | B178: 99937
A179: Bedford City County, VA | B179: 31340
A180: Bedford County, PA | B180: 99939
A181: Bedford County, TN | B181: 99944
A182: Bedford County, VA | B182: 31340
A183: Bee County, TX | B183: 99945
A184: Belknap County, NH | B184: 99930
A185: Bell County, KY | B185: 99918
A186: Bell County, TX | B186: 28660
A187: Belmont County, OH | B187: 48540
A188: Beltrami County, MN | B188: 99924
A189: Ben Hill County, GA | B189: 99911
A190: Benewah County, ID | B190: 99913
A191: Bennett County, SD | B191: 99943
A192: Bennington County, VT | B192: 99947
A193: Benson County, ND | B193: 99935
A194: Bent County, CO | B194: 99906
A195: Benton County, AR | B195: 22220
A196: Benton County, IA | B196: 16300
A197: Benton County, IN | B197: 29200
A198: Benton County, MN | B198: 41060
A199: Benton County, MO | B199: 99926
A200: Benton County, MS | B200: 32820
... 3027 more rows

Sheet Data - Wage Indexes (hidden)
A1: County, State | B1: Wage Index | C1: CBSA Code | D1: CBSA Name | E1: Urban/Rural | F1: FIPS Code | H1: State | I1: County | L1: =IF(COUNTA(L3:L17)=1,L3&", "&K3,"Select a county") -> Aleutians East, AK
A2: Autauga, AL | B2: 0.7994 | C2: 33860 | D2: Montgomery, AL | E2: Urban | F2: 01001 | H2: =+RIGHT(A2,2) -> AL | I2: =+TRIM(LEFT(A2,FIND(",",A2,1)-1)) -> Autauga | K2: State | L2: County
A3: Baldwin, AL | B3: 0.8087 | C3: 19300 | D3: Daphne-Fairhope-Foley, AL | E3: Urban | F3: 01003 | H3: =+RIGHT(A3,2) -> AL | I3: =+TRIM(LEFT(A3,FIND(",",A3,1)-1)) -> Baldwin | K3: AK | L3: Aleutians East | Q3: =+COUNTA(_xlfn.ANCHORARRAY(P4)) -> 51
A4: Barbour, AL | B4: 0.6367 | C4: 01 | D4: ALABAMA | E4: Rural | F4: 01005 | H4: AL | I4: Barbour | P4: =+_xlfn.UNIQUE(H2:H3193) -> AL
A5: Bibb, AL | B5: 0.8596 | C5: 13820 | D5: Birmingham, AL | E5: Urban | F5: 01007 | H5: AL | I5: Bibb | P5: AK
A6: Blount, AL | B6: 0.8596 | C6: 13820 | D6: Birmingham, AL | E6: Urban | F6: 01009 | H6: AL | I6: Blount | P6: AZ
A7: Bullock, AL | B7: 0.6367 | C7: 01 | D7: ALABAMA | E7: Rural | F7: 01011 | H7: AL | I7: Bullock | P7: AR
A8: Butler, AL | B8: 0.6367 | C8: 01 | D8: ALABAMA | E8: Rural | F8: 01013 | H8: AL | I8: Butler | P8: CA
A9: Calhoun, AL | B9: 0.6958 | C9: 11500 | D9: Anniston-Oxford, AL | E9: Urban | F9: 01015 | H9: AL | I9: Calhoun | P9: CO
A10: Chambers, AL | B10: 0.6367 | C10: 01 | D10: ALABAMA | E10: Rural | F10: 01017 | H10: AL | I10: Chambers | P10: CT
A11: Cherokee, AL | B11: 0.6367 | C11: 01 | D11: ALABAMA | E11: Rural | F11: 01019 | H11: AL | I11: Cherokee | P11: DE
A12: Chilton, AL | B12: 0.8596 | C12: 13820 | D12: Birmingham, AL | E12: Urban | F12: 01021 | H12: AL | I12: Chilton | P12: DC
A13: Choctaw, AL | B13: 0.6367 | C13: 01 | D13: ALABAMA | E13: Rural | F13: 01023 | H13: AL | I13: Choctaw | P13: FL
A14: Clarke, AL | B14: 0.6367 | C14: 01 | D14: ALABAMA | E14: Rural | F14: 01025 | H14: AL | I14: Clarke | P14: GA
A15: Clay, AL | B15: 0.6367 | C15: 01 | D15: ALABAMA | E15: Rural | F15: 01027 | H15: AL | I15: Clay | P15: HI
A16: Cleburne, AL | B16: 0.6367 | C16: 01 | D16: ALABAMA | E16: Rural | F16: 01029 | H16: AL | I16: Cleburne | P16: ID
A17: Coffee, AL | B17: 0.6367 | C17: 01 | D17: ALABAMA | E17: Rural | F17: 01031 | H17: AL | I17: Coffee | P17: IL
A18: Colbert, AL | B18: 0.6816 | C18: 22520 | D18: Florence-Muscle Shoals, AL | E18: Urban | F18: 01033 | H18: AL | I18: Colbert | P18: IN
A19: Conecuh, AL | B19: 0.6367 | C19: 01 | D19: ALABAMA | E19: Rural | F19: 01035 | H19: AL | I19: Conecuh | P19: IA
A20: Coosa, AL | B20: 0.6367 | C20: 01 | D20: ALABAMA | E20: Rural | F20: 01037 | H20: AL | I20: Coosa | P20: KS
A21: Covington, AL | B21: 0.6367 | C21: 01 | D21: ALABAMA | E21: Rural | F21: 01039 | H21: AL | I21: Covington | P21: KY
A22: Crenshaw, AL | B22: 0.6367 | C22: 01 | D22: ALABAMA | E22: Rural | F22: 01041 | H22: AL | I22: Crenshaw | P22: LA
A23: Cullman, AL | B23: 0.6367 | C23: 01 | D23: ALABAMA | E23: Rural | F23: 01043 | H23: AL | I23: Cullman | P23: ME
A24: Dale, AL | B24: 0.6367 | C24: 01 | D24: ALABAMA | E24: Rural | F24: 01045 | H24: AL | I24: Dale | P24: MD
A25: Dallas, AL | B25: 0.6367 | C25: 01 | D25: ALABAMA | E25: Rural | F25: 01047 | H25: AL | I25: Dallas | P25: MA
A26: De Kalb, AL | B26: 0.6367 | C26: 01 | D26: ALABAMA | E26: Rural | F26: 01049 | H26: AL | I26: De Kalb | P26: MI
A27: Elmore, AL | B27: 0.7994 | C27: 33860 | D27: Montgomery, AL | E27: Urban | F27: 01051 | H27: AL | I27: Elmore | P27: MN
A28: Escambia, AL | B28: 0.6367 | C28: 01 | D28: ALABAMA | E28: Rural | F28: 01053 | H28: AL | I28: Escambia | P28: MS
A29: Etowah, AL | B29: 0.7243 | C29: 23460 | D29: Gadsden, AL | E29: Urban | F29: 01055 | H29: AL | I29: Etowah | P29: MO
A30: Fayette, AL | B30: 0.6367 | C30: 01 | D30: ALABAMA | E30: Rural | F30: 01057 | H30: AL | I30: Fayette | P30: MT
A31: Franklin, AL | B31: 0.6367 | C31: 01 | D31: ALABAMA | E31: Rural | F31: 01059 | H31: AL | I31: Franklin | P31: NE
A32: Geneva, AL | B32: 0.7099 | C32: 20020 | D32: Dothan, AL | E32: Urban | F32: 01061 | H32: AL | I32: Geneva | P32: NV
A33: Greene, AL | B33: 0.7863 | C33: 46220 | D33: Tuscaloosa, AL | E33: Urban | F33: 01063 | H33: AL | I33: Greene | P33: NH
A34: Hale, AL | B34: 0.7863 | C34: 46220 | D34: Tuscaloosa, AL | E34: Urban | F34: 01065 | H34: AL | I34: Hale | P34: NJ
A35: Henry, AL | B35: 0.7099 | C35: 20020 | D35: Dothan, AL | E35: Urban | F35: 01067 | H35: AL | I35: Henry | P35: NM
A36: Houston, AL | B36: 0.7099 | C36: 20020 | D36: Dothan, AL | E36: Urban | F36: 01069 | H36: AL | I36: Houston | P36: NY
A37: Jackson, AL | B37: 0.6367 | C37: 01 | D37: ALABAMA | E37: Rural | F37: 01071 | H37: AL | I37: Jackson | P37: NC
A38: Jefferson, AL | B38: 0.8596 | C38: 13820 | D38: Birmingham, AL | E38: Urban | F38: 01073 | H38: AL | I38: Jefferson | P38: ND
A39: Lamar, AL | B39: 0.6367 | C39: 01 | D39: ALABAMA | E39: Rural | F39: 01075 | H39: AL | I39: Lamar | P39: OH
A40: Lauderdale, AL | B40: 0.6816 | C40: 22520 | D40: Florence-Muscle Shoals, AL | E40: Urban | F40: 01077 | H40: AL | I40: Lauderdale | P40: OK
A41: Lawrence, AL | B41: 0.7153 | C41: 19460 | D41: Decatur, AL | E41: Urban | F41: 01079 | H41: AL | I41: Lawrence | P41: OR
A42: Lee, AL | B42: 0.6797 | C42: 12220 | D42: Auburn-Opelika, AL | E42: Urban | F42: 01081 | H42: AL | I42: Lee | P42: PA
A43: Limestone, AL | B43: 0.8106 | C43: 26620 | D43: Huntsville, AL | E43: Urban | F43: 01083 | H43: AL | I43: Limestone | P43: RI
A44: Lowndes, AL | B44: 0.7994 | C44: 33860 | D44: Montgomery, AL | E44: Urban | F44: 01085 | H44: AL | I44: Lowndes | P44: SC
A45: Macon, AL | B45: 0.6797 | C45: 12220 | D45: Auburn-Opelika, AL | E45: Urban | F45: 01087 | H45: AL | I45: Macon | P45: SD
A46: Madison, AL | B46: 0.8106 | C46: 26620 | D46: Huntsville, AL | E46: Urban | F46: 01089 | H46: AL | I46: Madison | P46: TN
A47: Marengo, AL | B47: 0.6367 | C47: 01 | D47: ALABAMA | E47: Rural | F47: 01091 | H47: AL | I47: Marengo | P47: TX
A48: Marion, AL | B48: 0.6367 | C48: 01 | D48: ALABAMA | E48: Rural | F48: 01093 | H48: AL | I48: Marion | P48: UT
A49: Marshall, AL | B49: 0.6367 | C49: 01 | D49: ALABAMA | E49: Rural | F49: 01095 | H49: AL | I49: Marshall | P49: VT
A50: Mobile, AL | B50: 0.8153 | C50: 33660 | D50: Mobile, AL | E50: Urban | F50: 01097 | H50: AL | I50: Mobile | P50: VA
A51: Monroe, AL | B51: 0.6367 | C51: 01 | D51: ALABAMA | E51: Rural | F51: 01099 | H51: AL | I51: Monroe | P51: WA
A52: Montgomery, AL | B52: 0.7994 | C52: 33860 | D52: Montgomery, AL | E52: Urban | F52: 01101 | H52: AL | I52: Montgomery | P52: WV
A53: Morgan, AL | B53: 0.7153 | C53: 19460 | D53: Decatur, AL | E53: Urban | F53: 01103 | H53: AL | I53: Morgan | P53: WI
A54: Perry, AL | B54: 0.6367 | C54: 01 | D54: ALABAMA | E54: Rural | F54: 01105 | H54: AL | I54: Perry | P54: WY
A55: Pickens, AL | B55: 0.7863 | C55: 46220 | D55: Tuscaloosa, AL | E55: Urban | F55: 01107 | H55: AL | I55: Pickens
A56: Pike, AL | B56: 0.6367 | C56: 01 | D56: ALABAMA | E56: Rural | F56: 01109 | H56: AL | I56: Pike
A57: Randolph, AL | B57: 0.6367 | C57: 01 | D57: ALABAMA | E57: Rural | F57: 01111 | H57: AL | I57: Randolph
A58: Russell, AL | B58: 0.7471 | C58: 17980 | D58: Columbus, GA-AL | E58: Urban | F58: 01113 | H58: AL | I58: Russell
A59: St. Clair, AL | B59: 0.8596 | C59: 13820 | D59: Birmingham, AL | E59: Urban | F59: 01115 | H59: AL | I59: St. Clair
A60: Shelby, AL | B60: 0.8596 | C60: 13820 | D60: Birmingham, AL | E60: Urban | F60: 01117 | H60: AL | I60: Shelby
A61: Sumter, AL | B61: 0.6367 | C61: 01 | D61: ALABAMA | E61: Rural | F61: 01119 | H61: AL | I61: Sumter
A62: Talladega, AL | B62: 0.6367 | C62: 01 | D62: ALABAMA | E62: Rural | F62: 01121 | H62: AL | I62: Talladega
A63: Tallapoosa, AL | B63: 0.6367 | C63: 01 | D63: ALABAMA | E63: Rural | F63: 01123 | H63: AL | I63: Tallapoosa
A64: Tuscaloosa, AL | B64: 0.7863 | C64: 46220 | D64: Tuscaloosa, AL | E64: Urban | F64: 01125 | H64: AL | I64: Tuscaloosa
A65: Walker, AL | B65: 0.8596 | C65: 13820 | D65: Birmingham, AL | E65: Urban | F65: 01127 | H65: AL | I65: Walker
A66: Washington, AL | B66: 0.6367 | C66: 01 | D66: ALABAMA | E66: Rural | F66: 01129 | H66: AL | I66: Washington
A67: Wilcox, AL | B67: 0.6367 | C67: 01 | D67: ALABAMA | E67: Rural | F67: 01131 | H67: =+RIGHT(A67,2) -> AL | I67: =+TRIM(LEFT(A67,FIND(",",A67,1)-1)) -> Wilcox
A68: Winston, AL | B68: 0.6367 | C68: 01 | D68: ALABAMA | E68: Rural | F68: 01133 | H68: AL | I68: Winston
A69: Statewide, AL | B69: 0.6367 | C69: 01 | D69: ALABAMA | E69: Rural | F69: 01990 | H69: AL | I69: Statewide
A70: Aleutians East, AK | B70: 1.1274 | C70: 02 | D70: ALASKA | E70: Rural | F70: 02013 | H70: AK | I70: Aleutians East
A71: Aleutians West, AK | B71: 1.1274 | C71: 02 | D71: ALASKA | E71: Rural | F71: 02016 | H71: AK | I71: Aleutians West
A72: Anchorage, AK | B72: 1.1328 | C72: 11260 | D72: Anchorage, AK | E72: Urban | F72: 02020 | H72: AK | I72: Anchorage
A73: Bethel, AK | B73: 1.1274 | C73: 02 | D73: ALASKA | E73: Rural | F73: 02050 | H73: AK | I73: Bethel
A74: Bristol Bay, AK | B74: 1.1274 | C74: 02 | D74: ALASKA | E74: Rural | F74: 02060 | H74: AK | I74: Bristol Bay
A75: Chugach, AK | B75: 1.1274 | C75: 02 | D75: ALASKA | E75: Rural | F75: 02063 | H75: AK | I75: Chugach
A76: Copper River, AK | B76: 1.1274 | C76: 02 | D76: ALASKA | E76: Rural | F76: 02066 | H76: AK | I76: Copper River
A77: Denali, AK | B77: 1.1274 | C77: 02 | D77: ALASKA | E77: Rural | F77: 02068 | H77: AK | I77: Denali
A78: Dillingham, AK | B78: 1.1274 | C78: 02 | D78: ALASKA | E78: Rural | F78: 02070 | H78: AK | I78: Dillingham
A79: Fairbanks North Star, AK | B79: 0.98 | C79: 21820 | D79: Fairbanks-College, AK | E79: Urban | F79: 02090 | H79: AK | I79: Fairbanks North Star
A80: Haines, AK | B80: 1.1274 | C80: 02 | D80: ALASKA | E80: Rural | F80: 02100 | H80: AK | I80: Haines
A81: Hoonah-angoon, AK | B81: 1.1274 | C81: 02 | D81: ALASKA | E81: Rural | F81: 02105 | H81: AK | I81: Hoonah-angoon
A82: Juneau, AK | B82: 1.1274 | C82: 02 | D82: ALASKA | E82: Rural | F82: 02110 | H82: AK | I82: Juneau
A83: Kenai Peninsula, AK | B83: 1.1274 | C83: 02 | D83: ALASKA | E83: Rural | F83: 02122 | H83: AK | I83: Kenai Peninsula
A84: Ketchikan Gateway, AK | B84: 1.1274 | C84: 02 | D84: ALASKA | E84: Rural | F84: 02130 | H84: AK | I84: Ketchikan Gateway
A85: Kodiak Island, AK | B85: 1.1274 | C85: 02 | D85: ALASKA | E85: Rural | F85: 02150 | H85: AK | I85: Kodiak Island
A86: Kusilvak, AK | B86: 1.1274 | C86: 02 | D86: ALASKA | E86: Rural | F86: 02158 | H86: AK | I86: Kusilvak
A87: Lake And Peninsula, AK | B87: 1.1274 | C87: 02 | D87: ALASKA | E87: Rural | F87: 02164 | H87: AK | I87: Lake And Peninsula
A88: Matanuska-susitna, AK | B88: 1.1328 | C88: 11260 | D88: Anchorage, AK | E88: Urban | F88: 02170 | H88: AK | I88: Matanuska-susitna
A89: Nome, AK | B89: 1.1274 | C89: 02 | D89: ALASKA | E89: Rural | F89: 02180 | H89: AK | I89: Nome
A90: North Slope Borouh, AK | B90: 1.1274 | C90: 02 | D90: ALASKA | E90: Rural | F90: 02185 | H90: AK | I90: North Slope Borouh
A91: Northwest Artic, AK | B91: 1.1274 | C91: 02 | D91: ALASKA | E91: Rural | F91: 02188 | H91: AK | I91: Northwest Artic
A92: Petersburg, AK | B92: 1.1274 | C92: 02 | D92: ALASKA | E92: Rural | F92: 02195 | H92: AK | I92: Petersburg
A93: Prince Of Wales-hyder, AK | B93: 1.1274 | C93: 02 | D93: ALASKA | E93: Rural | F93: 02198 | H93: AK | I93: Prince Of Wales-hyder
A94: Sitka, AK | B94: 1.1274 | C94: 02 | D94: ALASKA | E94: Rural | F94: 02220 | H94: AK | I94: Sitka
A95: Skagway-yakutat, AK | B95: 1.1274 | C95: 02 | D95: ALASKA | E95: Rural | F95: 02230 | H95: AK | I95: Skagway-yakutat
A96: Southeast Fairbanks, AK | B96: 1.1274 | C96: 02 | D96: ALASKA | E96: Rural | F96: 02240 | H96: AK | I96: Southeast Fairbanks
A97: Wrangell City, AK | B97: 1.1274 | C97: 02 | D97: ALASKA | E97: Rural | F97: 02275 | H97: AK | I97: Wrangell City
A98: Yakutat, AK | B98: 1.1274 | C98: 02 | D98: ALASKA | E98: Rural | F98: 02282 | H98: AK | I98: Yakutat
A99: Yukon-koyukuk, AK | B99: 1.1274 | C99: 02 | D99: ALASKA | E99: Rural | F99: 02290 | H99: AK | I99: Yukon-koyukuk
A100: Statewide, AK | B100: 1.1274 | C100: 02 | D100: ALASKA | E100: Rural | F100: 02990 | H100: AK | I100: Statewide
A101: Apache, AZ | B101: 0.8539 | C101: 03 | D101: ARIZONA | E101: Rural | F101: 04001 | H101: AZ | I101: Apache
A102: Cochise, AZ | B102: 0.8166 | C102: 43420 | D102: Sierra Vista-Douglas, AZ | E102: Urban | F102: 04003 | H102: AZ | I102: Cochise
A103: Coconino, AZ | B103: 1.0328 | C103: 22380 | D103: Flagstaff, AZ | E103: Urban | F103: 04005 | H103: AZ | I103: Coconino
A104: Gila, AZ | B104: 0.8539 | C104: 03 | D104: ARIZONA | E104: Rural | F104: 04007 | H104: AZ | I104: Gila
A105: Graham, AZ | B105: 0.8539 | C105: 03 | D105: ARIZONA | E105: Rural | F105: 04009 | H105: AZ | I105: Graham
A106: Greenlee, AZ | B106: 0.8539 | C106: 03 | D106: ARIZONA | E106: Rural | F106: 04011 | H106: AZ | I106: Greenlee
A107: Lapaz, AZ | B107: 0.8539 | C107: 03 | D107: ARIZONA | E107: Rural | F107: 04012 | H107: AZ | I107: Lapaz
A108: Maricopa, AZ | B108: 1.0117 | C108: 38060 | D108: Phoenix-Mesa-Chandler, AZ | E108: Urban | F108: 04013 | H108: AZ | I108: Maricopa
A109: Mohave, AZ | B109: 0.9044 | C109: 29420 | D109: Lake Havasu City-Kingman, AZ | E109: Urban | F109: 04015 | H109: AZ | I109: Mohave
A110: Navajo, AZ | B110: 0.8539 | C110: 03 | D110: ARIZONA | E110: Rural | F110: 04017 | H110: AZ | I110: Navajo
A111: Pima, AZ | B111: 0.8886 | C111: 46060 | D111: Tucson, AZ | E111: Urban | F111: 04019 | H111: AZ | I111: Pima
A112: Pinal, AZ | B112: 1.0117 | C112: 38060 | D112: Phoenix-Mesa-Chandler, AZ | E112: Urban | F112: 04021 | H112: AZ | I112: Pinal
A113: Santa Cruz, AZ | B113: 0.8539 | C113: 03 | D113: ARIZONA | E113: Rural | F113: 04023 | H113: AZ | I113: Santa Cruz
A114: Yavapai, AZ | B114: 0.9986 | C114: 39150 | D114: Prescott Valley-Prescott, AZ | E114: Urban | F114: 04025 | H114: AZ | I114: Yavapai
A115: Yuma, AZ | B115: 0.9517 | C115: 49740 | D115: Yuma, AZ | E115: Urban | F115: 04027 | H115: AZ | I115: Yuma
A116: Statewide, AZ | B116: 0.8539 | C116: 03 | D116: ARIZONA | E116: Rural | F116: 04990 | H116: AZ | I116: Statewide
A117: Arkansas, AR | B117: 0.7296 | C117: 04 | D117: ARKANSAS | E117: Rural | F117: 05001 | H117: AR | I117: Arkansas
A118: Ashley, AR | B118: 0.7296 | C118: 04 | D118: ARKANSAS | E118: Rural | F118: 05003 | H118: AR | I118: Ashley
A119: Baxter, AR | B119: 0.7296 | C119: 04 | D119: ARKANSAS | E119: Rural | F119: 05005 | H119: AR | I119: Baxter
A120: Benton, AR | B120: 0.8802 | C120: 22220 | D120: Fayetteville-Springdale-Rogers, AR | E120: Urban | F120: 05007 | H120: AR | I120: Benton
A121: Boone, AR | B121: 0.7296 | C121: 04 | D121: ARKANSAS | E121: Rural | F121: 05009 | H121: AR | I121: Boone
A122: Bradley, AR | B122: 0.7296 | C122: 04 | D122: ARKANSAS | E122: Rural | F122: 05011 | H122: AR | I122: Bradley
A123: Calhoun, AR | B123: 0.7296 | C123: 04 | D123: ARKANSAS | E123: Rural | F123: 05013 | H123: AR | I123: Calhoun
A124: Carroll, AR | B124: 0.7296 | C124: 04 | D124: ARKANSAS | E124: Rural | F124: 05015 | H124: AR | I124: Carroll
A125: Chicot, AR | B125: 0.7296 | C125: 04 | D125: ARKANSAS | E125: Rural | F125: 05017 | H125: AR | I125: Chicot
A126: Clark, AR | B126: 0.7296 | C126: 04 | D126: ARKANSAS | E126: Rural | F126: 05019 | H126: AR | I126: Clark
A127: Clay, AR | B127: 0.7296 | C127: 04 | D127: ARKANSAS | E127: Rural | F127: 05021 | H127: AR | I127: Clay
A128: Cleburne, AR | B128: 0.7296 | C128: 04 | D128: ARKANSAS | E128: Rural | F128: 05023 | H128: AR | I128: Cleburne
A129: Cleveland, AR | B129: 0.7296 | C129: 04 | D129: ARKANSAS | E129: Rural | F129: 05025 | H129: AR | I129: Cleveland
A130: Columbia, AR | B130: 0.7296 | C130: 04 | D130: ARKANSAS | E130: Rural | F130: 05027 | H130: AR | I130: Columbia
A131: Conway, AR | B131: 0.7296 | C131: 04 | D131: ARKANSAS | E131: Rural | F131: 05029 | H131: =+RIGHT(A131,2) -> AR | I131: =+TRIM(LEFT(A131,FIND(",",A131,1)-1)) -> Conway
A132: Craighead, AR | B132: 0.8199 | C132: 27860 | D132: Jonesboro, AR | E132: Urban | F132: 05031 | H132: AR | I132: Craighead
A133: Crawford, AR | B133: 0.9214 | C133: 22900 | D133: Fort Smith, AR-OK | E133: Urban | F133: 05033 | H133: AR | I133: Crawford
A134: Crittenden, AR | B134: 0.8676 | C134: 32820 | D134: Memphis, TN-MS-AR | E134: Urban | F134: 05035 | H134: AR | I134: Crittenden
A135: Cross, AR | B135: 0.7296 | C135: 04 | D135: ARKANSAS | E135: Rural | F135: 05037 | H135: AR | I135: Cross
A136: Dallas, AR | B136: 0.7296 | C136: 04 | D136: ARKANSAS | E136: Rural | F136: 05039 | H136: AR | I136: Dallas
A137: Desha, AR | B137: 0.7296 | C137: 04 | D137: ARKANSAS | E137: Rural | F137: 05041 | H137: AR | I137: Desha
A138: Drew, AR | B138: 0.7296 | C138: 04 | D138: ARKANSAS | E138: Rural | F138: 05043 | H138: AR | I138: Drew
A139: Faulkner, AR | B139: 0.8807 | C139: 30780 | D139: Little Rock-North Little Rock-Conway, AR | E139: Urban | F139: 05045 | H139: AR | I139: Faulkner
A140: Franklin, AR | B140: 0.7296 | C140: 04 | D140: ARKANSAS | E140: Rural | F140: 05047 | H140: AR | I140: Franklin
A141: Fulton, AR | B141: 0.7296 | C141: 04 | D141: ARKANSAS | E141: Rural | F141: 05049 | H141: AR | I141: Fulton
A142: Garland, AR | B142: 0.8608 | C142: 26300 | D142: Hot Springs, AR | E142: Urban | F142: 05051 | H142: AR | I142: Garland
A143: Grant, AR | B143: 0.8807 | C143: 30780 | D143: Little Rock-North Little Rock-Conway, AR | E143: Urban | F143: 05053 | H143: AR | I143: Grant
A144: Greene, AR | B144: 0.7296 | C144: 04 | D144: ARKANSAS | E144: Rural | F144: 05055 | H144: AR | I144: Greene
A145: Hempstead, AR | B145: 0.7296 | C145: 04 | D145: ARKANSAS | E145: Rural | F145: 05057 | H145: AR | I145: Hempstead
A146: Hot Spring, AR | B146: 0.7296 | C146: 04 | D146: ARKANSAS | E146: Rural | F146: 05059 | H146: AR | I146: Hot Spring
A147: Howard, AR | B147: 0.7296 | C147: 04 | D147: ARKANSAS | E147: Rural | F147: 05061 | H147: AR | I147: Howard
A148: Independence, AR | B148: 0.7296 | C148: 04 | D148: ARKANSAS | E148: Rural | F148: 05063 | H148: AR | I148: Independence
A149: Izard, AR | B149: 0.7296 | C149: 04 | D149: ARKANSAS | E149: Rural | F149: 05065 | H149: AR | I149: Izard
A150: Jackson, AR | B150: 0.7296 | C150: 04 | D150: ARKANSAS | E150: Rural | F150: 05067 | H150: AR | I150: Jackson
A151: Jefferson, AR | B151: 0.7296 | C151: 04 | D151: ARKANSAS | E151: Rural | F151: 05069 | H151: AR | I151: Jefferson
A152: Johnson, AR | B152: 0.7296 | C152: 04 | D152: ARKANSAS | E152: Rural | F152: 05071 | H152: AR | I152: Johnson
A153: Lafayette, AR | B153: 0.7296 | C153: 04 | D153: ARKANSAS | E153: Rural | F153: 05073 | H153: AR | I153: Lafayette
A154: Lawrence, AR | B154: 0.7296 | C154: 04 | D154: ARKANSAS | E154: Rural | F154: 05075 | H154: AR | I154: Lawrence
A155: Lee, AR | B155: 0.7296 | C155: 04 | D155: ARKANSAS | E155: Rural | F155: 05077 | H155: AR | I155: Lee
A156: Lincoln, AR | B156: 0.7296 | C156: 04 | D156: ARKANSAS | E156: Rural | F156: 05079 | H156: AR | I156: Lincoln
A157: Little River, AR | B157: 0.9197 | C157: 45500 | D157: Texarkana, TX-AR | E157: Urban | F157: 05081 | H157: AR | I157: Little River
A158: Logan, AR | B158: 0.7296 | C158: 04 | D158: ARKANSAS | E158: Rural | F158: 05083 | H158: AR | I158: Logan
A159: Lonoke, AR | B159: 0.8807 | C159: 30780 | D159: Little Rock-North Little Rock-Conway, AR | E159: Urban | F159: 05085 | H159: AR | I159: Lonoke
A160: Madison, AR | B160: 0.8802 | C160: 22220 | D160: Fayetteville-Springdale-Rogers, AR | E160: Urban | F160: 05087 | H160: AR | I160: Madison
A161: Marion, AR | B161: 0.7296 | C161: 04 | D161: ARKANSAS | E161: Rural | F161: 05089 | H161: AR | I161: Marion
A162: Miller, AR | B162: 0.9197 | C162: 45500 | D162: Texarkana, TX-AR | E162: Urban | F162: 05091 | H162: AR | I162: Miller
A163: Mississippi, AR | B163: 0.7296 | C163: 04 | D163: ARKANSAS | E163: Rural | F163: 05093 | H163: AR | I163: Mississippi
A164: Monroe, AR | B164: 0.7296 | C164: 04 | D164: ARKANSAS | E164: Rural | F164: 05095 | H164: AR | I164: Monroe
A165: Montgomery, AR | B165: 0.7296 | C165: 04 | D165: ARKANSAS | E165: Rural | F165: 05097 | H165: AR | I165: Montgomery
A166: Nevada, AR | B166: 0.7296 | C166: 04 | D166: ARKANSAS | E166: Rural | F166: 05099 | H166: AR | I166: Nevada
A167: Newton, AR | B167: 0.7296 | C167: 04 | D167: ARKANSAS | E167: Rural | F167: 05101 | H167: AR | I167: Newton
A168: Ouachita, AR | B168: 0.7296 | C168: 04 | D168: ARKANSAS | E168: Rural | F168: 05103 | H168: AR | I168: Ouachita
A169: Perry, AR | B169: 0.8807 | C169: 30780 | D169: Little Rock-North Little Rock-Conway, AR | E169: Urban | F169: 05105 | H169: AR | I169: Perry
A170: Phillips, AR | B170: 0.7296 | C170: 04 | D170: ARKANSAS | E170: Rural | F170: 05107 | H170: AR | I170: Phillips
A171: Pike, AR | B171: 0.7296 | C171: 04 | D171: ARKANSAS | E171: Rural | F171: 05109 | H171: AR | I171: Pike
A172: Poinsett, AR | B172: 0.8199 | C172: 27860 | D172: Jonesboro, AR | E172: Urban | F172: 05111 | H172: AR | I172: Poinsett
A173: Polk, AR | B173: 0.7296 | C173: 04 | D173: ARKANSAS | E173: Rural | F173: 05113 | H173: AR | I173: Polk
A174: Pope, AR | B174: 0.7296 | C174: 04 | D174: ARKANSAS | E174: Rural | F174: 05115 | H174: AR | I174: Pope
A175: Prairie, AR | B175: 0.7296 | C175: 04 | D175: ARKANSAS | E175: Rural | F175: 05117 | H175: AR | I175: Prairie
A176: Pulaski, AR | B176: 0.8807 | C176: 30780 | D176: Little Rock-North Little Rock-Conway, AR | E176: Urban | F176: 05119 | H176: AR | I176: Pulaski
A177: Randolph, AR | B177: 0.7296 | C177: 04 | D177: ARKANSAS | E177: Rural | F177: 05121 | H177: AR | I177: Randolph
A178: St. Francis, AR | B178: 0.7296 | C178: 04 | D178: ARKANSAS | E178: Rural | F178: 05123 | H178: AR | I178: St. Francis
A179: Saline, AR | B179: 0.8807 | C179: 30780 | D179: Little Rock-North Little Rock-Conway, AR | E179: Urban | F179: 05125 | H179: AR | I179: Saline
A180: Scott, AR | B180: 0.7296 | C180: 04 | D180: ARKANSAS | E180: Rural | F180: 05127 | H180: AR | I180: Scott
A181: Searcy, AR | B181: 0.7296 | C181: 04 | D181: ARKANSAS | E181: Rural | F181: 05129 | H181: AR | I181: Searcy
A182: Sebastian, AR | B182: 0.9214 | C182: 22900 | D182: Fort Smith, AR-OK | E182: Urban | F182: 05131 | H182: AR | I182: Sebastian
A183: Sevier, AR | B183: 0.7296 | C183: 04 | D183: ARKANSAS | E183: Rural | F183: 05133 | H183: AR | I183: Sevier
A184: Sharp, AR | B184: 0.7296 | C184: 04 | D184: ARKANSAS | E184: Rural | F184: 05135 | H184: AR | I184: Sharp
A185: Stone, AR | B185: 0.7296 | C185: 04 | D185: ARKANSAS | E185: Rural | F185: 05137 | H185: AR | I185: Stone
A186: Union, AR | B186: 0.7296 | C186: 04 | D186: ARKANSAS | E186: Rural | F186: 05139 | H186: AR | I186: Union
A187: Van Buren, AR | B187: 0.7296 | C187: 04 | D187: ARKANSAS | E187: Rural | F187: 05141 | H187: AR | I187: Van Buren
A188: Washington, AR | B188: 0.8802 | C188: 22220 | D188: Fayetteville-Springdale-Rogers, AR | E188: Urban | F188: 05143 | H188: AR | I188: Washington
A189: White, AR | B189: 0.7296 | C189: 04 | D189: ARKANSAS | E189: Rural | F189: 05145 | H189: AR | I189: White
A190: Woodruff, AR | B190: 0.7296 | C190: 04 | D190: ARKANSAS | E190: Rural | F190: 05147 | H190: AR | I190: Woodruff
A191: Yell, AR | B191: 0.7296 | C191: 04 | D191: ARKANSAS | E191: Rural | F191: 05149 | H191: AR | I191: Yell
A192: Statewide, AR | B192: 0.7296 | C192: 04 | D192: ARKANSAS | E192: Rural | F192: 05990 | H192: AR | I192: Statewide
A193: Alameda, CA | B193: 1.7434 | C193: 36084 | D193: Oakland-Fremont-Berkeley, CA | E193: Urban | F193: 06001 | H193: CA | I193: Alameda
A194: Alpine, CA | B194: 1.2775 | C194: 05 | D194: CALIFORNIA | E194: Rural | F194: 06003 | H194: CA | I194: Alpine
A195: Amador, CA | B195: 1.2775 | C195: 05 | D195: CALIFORNIA | E195: Rural | F195: 06005 | H195: =+RIGHT(A195,2) -> CA | I195: =+TRIM(LEFT(A195,FIND(",",A195,1)-1)) -> Amador
A196: Butte, CA | B196: 1.0202 | C196: 17020 | D196: Chico, CA | E196: Urban | F196: 06007 | H196: CA | I196: Butte
A197: Calaveras, CA | B197: 1.2775 | C197: 05 | D197: CALIFORNIA | E197: Rural | F197: 06009 | H197: CA | I197: Calaveras
A198: Colusa, CA | B198: 1.2775 | C198: 05 | D198: CALIFORNIA | E198: Rural | F198: 06011 | H198: CA | I198: Colusa
A199: Contra Costa, CA | B199: 1.7434 | C199: 36084 | D199: Oakland-Fremont-Berkeley, CA | E199: Urban | F199: 06013 | H199: CA | I199: Contra Costa
A200: Del Norte, CA | B200: 1.2775 | C200: 05 | D200: CALIFORNIA | E200: Rural | F200: 06015 | H200: CA | I200: Del Norte
... 2993 more rows

Sheet Data - CBSA Designations (hidden)
A1: CBSA Code | B1: CBSA Designation
A2: 10180 | B2: Abilene, TX
A3: 10380 | B3: Aguadilla-Isabela, PR
A4: 10420 | B4: Akron, OH
A5: 10500 | B5: Albany, GA
A6: 10540 | B6: Albany, OR
A7: 10580 | B7: Albany-Schenectady-Troy, NY
A8: 10740 | B8: Albuquerque, NM
A9: 10780 | B9: Alexandria, LA
A10: 10900 | B10: Allentown-Bethlehem-Easton, PA-NJ
A11: 11020 | B11: Altoona, PA
A12: 11100 | B12: Amarillo, TX
A13: 11180 | B13: Ames, IA
A14: 11244 | B14: Anaheim-Santa Ana-Irvine, CA
A15: 11260 | B15: Anchorage, AK
A16: 11460 | B16: Ann Arbor, MI
A17: 11500 | B17: Anniston-Oxford-Jacksonville, AL
A18: 11540 | B18: Appleton, WI
A19: 11640 | B19: Arecibo, PR
A20: 11700 | B20: Asheville, NC
A21: 12020 | B21: Athens-Clarke County, GA
A22: 12060 | B22: Atlanta-Sandy Springs-Roswell, GA
A23: 12100 | B23: Atlantic City-Hammonton, NJ
A24: 12220 | B24: Auburn-Opelika, AL
A25: 12260 | B25: Augusta-Richmond County, GA-SC
A26: 12420 | B26: Austin-Round Rock, TX
A27: 12540 | B27: Bakersfield, CA
A28: 12580 | B28: Baltimore-Columbia-Towson, MD
A29: 12620 | B29: Bangor, ME
A30: 12700 | B30: Barnstable Town, MA
A31: 12940 | B31: Baton Rouge, LA
A32: 12980 | B32: Battle Creek, MI
A33: 13020 | B33: Bay City, MI
A34: 13140 | B34: Beaumont-Port Arthur, TX
A35: 13220 | B35: Beckley, WV
A36: 13380 | B36: Bellingham, WA
A37: 13460 | B37: Bend-Redmond, OR
A38: 13740 | B38: Billings, MT
A39: 13780 | B39: Binghamton, NY
A40: 13820 | B40: Birmingham-Hoover, AL
A41: 13900 | B41: Bismarck, ND
A42: 13980 | B42: Blacksburg-Christiansburg-Radford, VA
A43: 14010 | B43: Bloomington, IL
A44: 14020 | B44: Bloomington, IN
A45: 14100 | B45: Bloomsburg-Berwick, PA
A46: 14260 | B46: Boise City, ID
A47: 14454 | B47: Boston, MA
A48: 14500 | B48: Boulder, CO
A49: 14540 | B49: Bowling Green, KY
A50: 14740 | B50: Bremerton-Silverdale, WA
A51: 14860 | B51: Bridgeport-Stamford-Norwalk, CT
A52: 15180 | B52: Brownsville-Harlingen, TX
A53: 15260 | B53: Brunswick, GA
A54: 15380 | B54: Buffalo-Cheektowaga-Niagara Falls, NY
A55: 15500 | B55: Burlington, NC
A56: 15540 | B56: Burlington-South Burlington, VT
A57: 15680 | B57: California-Lexington Park, MD
A58: 15764 | B58: Cambridge-Newton-Framingham, MA
A59: 15804 | B59: Camden, NJ
A60: 15940 | B60: Canton-Massillon, OH
A61: 15980 | B61: Cape Coral-Fort Myers, FL
A62: 16020 | B62: Cape Girardeau, MO-IL
A63: 16060 | B63: Carbondale-Marion, IL
A64: 16180 | B64: Carson City, NV
A65: 16220 | B65: Casper, WY
A66: 16300 | B66: Cedar Rapids, IA
A67: 16540 | B67: Chambersburg-Waynesboro, PA
A68: 16580 | B68: Champaign-Urbana, IL
A69: 16620 | B69: Charleston, WV
A70: 16700 | B70: Charleston-North Charleston, SC
A71: 16740 | B71: Charlotte-Concord-Gastonia, NC-SC
A72: 16820 | B72: Charlottesville, VA
A73: 16860 | B73: Chattanooga, TN-GA
A74: 16940 | B74: Cheyenne, WY
A75: 16974 | B75: Chicago-Naperville-Arlington Heights, IL
A76: 17020 | B76: Chico, CA
A77: 17140 | B77: Cincinnati, OH-KY-IN
A78: 17300 | B78: Clarksville, TN-KY
A79: 17420 | B79: Cleveland, TN
A80: 17460 | B80: Cleveland-Elyria, OH
A81: 17660 | B81: Coeur d'Alene, ID
A82: 17780 | B82: College Station-Bryan, TX
A83: 17820 | B83: Colorado Springs, CO
A84: 17860 | B84: Columbia, MO
A85: 17900 | B85: Columbia, SC
A86: 17980 | B86: Columbus, GA-AL
A87: 18020 | B87: Columbus, IN
A88: 18140 | B88: Columbus, OH
A89: 18580 | B89: Corpus Christi, TX
A90: 18700 | B90: Corvallis, OR
A91: 18880 | B91: Crestview-Fort Walton Beach-Destin, FL
A92: 19060 | B92: Cumberland, MD-WV
A93: 19124 | B93: Dallas-Plano-Irving, TX
A94: 19140 | B94: Dalton, GA
A95: 19180 | B95: Danville, IL
A96: 19300 | B96: Daphne-Fairhope-Foley, AL
A97: 19340 | B97: Davenport-Moline-Rock Island, IA-IL
A98: 19380 | B98: Dayton, OH
A99: 19460 | B99: Decatur, AL
A100: 19500 | B100: Decatur, IL
A101: 19660 | B101: Deltona-Daytona Beach-Ormond Beach, FL
A102: 19740 | B102: Denver-Aurora-Lakewood, CO
A103: 19780 | B103: Des Moines-West Des Moines, IA
A104: 19804 | B104: Detroit-Dearborn-Livonia, MI
A105: 20020 | B105: Dothan, AL
A106: 20100 | B106: Dover, DE
A107: 20220 | B107: Dubuque, IA
A108: 20260 | B108: Duluth, MN-WI
A109: 20500 | B109: Durham-Chapel Hill, NC
A110: 20524 | B110: Dutchess County-Putnam County, NY
A111: 20700 | B111: East Stroudsburg, PA
A112: 20740 | B112: Eau Claire, WI
A113: 20940 | B113: El Centro, CA
A114: 20994 | B114: Elgin, IL
A115: 21060 | B115: Elizabethtown-Fort Knox, KY
A116: 21140 | B116: Elkhart-Goshen, IN
A117: 21300 | B117: Elmira, NY
A118: 21340 | B118: El Paso, TX
A119: 21420 | B119: Enid, OK
A120: 21500 | B120: Erie, PA
A121: 21660 | B121: Eugene, OR
A122: 21780 | B122: Evansville, IN-KY
A123: 21820 | B123: Fairbanks, AK
A124: 22020 | B124: Fargo, ND-MN
A125: 22140 | B125: Farmington, NM
A126: 22180 | B126: Fayetteville, NC
A127: 22220 | B127: Fayetteville-Springdale-Rogers, AR-MO
A128: 22380 | B128: Flagstaff, AZ
A129: 22420 | B129: Flint, MI
A130: 22500 | B130: Florence, SC
A131: 22520 | B131: Florence-Muscle Shoals, AL
A132: 22540 | B132: Fond du Lac, WI
A133: 22660 | B133: Fort Collins, CO
A134: 22744 | B134: Fort Lauderdale-Pompano Beach-Deerfield Beach, FL
A135: 22900 | B135: Fort Smith, AR-OK
A136: 23060 | B136: Fort Wayne, IN
A137: 23104 | B137: Fort Worth-Arlington, TX
A138: 23420 | B138: Fresno, CA
A139: 23460 | B139: Gadsden, AL
A140: 23540 | B140: Gainesville, FL
A141: 23580 | B141: Gainesville, GA
A142: 23844 | B142: Gary, IN
A143: 23900 | B143: Gettysburg, PA
A144: 24020 | B144: Glens Falls, NY
A145: 24140 | B145: Goldsboro, NC
A146: 24220 | B146: Grand Forks, ND-MN
A147: 24260 | B147: Grand Island, NE
A148: 24300 | B148: Grand Junction, CO
A149: 24340 | B149: Grand Rapids-Wyoming, MI
A150: 24420 | B150: Grants Pass, OR
A151: 24500 | B151: Great Falls, MT
A152: 24540 | B152: Greeley, CO
A153: 24580 | B153: Green Bay, WI
A154: 24660 | B154: Greensboro-High Point, NC
A155: 24780 | B155: Greenville, NC
A156: 24860 | B156: Greenville-Anderson-Mauldin, SC
A157: 25020 | B157: Guayama, PR
A158: 25060 | B158: Gulfport-Biloxi-Pascagoula, MS
A159: 25180 | B159: Hagerstown-Martinsburg, MD-WV
A160: 25220 | B160: Hammond, LA
A161: 25260 | B161: Hanford-Corcoran, CA
A162: 25420 | B162: Harrisburg-Carlisle, PA
A163: 25500 | B163: Harrisonburg, VA
A164: 25540 | B164: Hartford-West Hartford-East Hartford, CT
A165: 25620 | B165: Hattiesburg, MS
A166: 25860 | B166: Hickory-Lenoir-Morganton, NC
A167: 25940 | B167: Hilton Head Island-Bluffton-Beaufort, SC
A168: 25980 | B168: Hinesville, GA
A169: 26140 | B169: Homosassa Springs, FL
A170: 26300 | B170: Hot Springs, AR
A171: 26380 | B171: Houma-Thibodaux, LA
A172: 26420 | B172: Houston-The Woodlands-Sugar Land, TX
A173: 26580 | B173: Huntington-Ashland, WV-KY-OH
A174: 26620 | B174: Huntsville, AL
A175: 26820 | B175: Idaho Falls, ID
A176: 26900 | B176: Indianapolis-Carmel-Anderson, IN
A177: 26980 | B177: Iowa City, IA
A178: 27060 | B178: Ithaca, NY
A179: 27100 | B179: Jackson, MI
A180: 27140 | B180: Jackson, MS
A181: 27180 | B181: Jackson, TN
A182: 27260 | B182: Jacksonville, FL
A183: 27340 | B183: Jacksonville, NC
A184: 27500 | B184: Janesville-Beloit, WI
A185: 27620 | B185: Jefferson City, MO
A186: 27740 | B186: Johnson City, TN
A187: 27780 | B187: Johnstown, PA
A188: 27860 | B188: Jonesboro, AR
A189: 27900 | B189: Joplin, MO
A190: 27980 | B190: Kahului-Wailuku-Lahaina, HI
A191: 28020 | B191: Kalamazoo-Portage, MI
A192: 28100 | B192: Kankakee, IL
A193: 28140 | B193: Kansas City, MO-KS
A194: 28420 | B194: Kennewick-Richland, WA
A195: 28660 | B195: Killeen-Temple, TX
A196: 28700 | B196: Kingsport-Bristol-Bristol, TN-VA
A197: 28740 | B197: Kingston, NY
A198: 28940 | B198: Knoxville, TN
A199: 29020 | B199: Kokomo, IN
A200: 29100 | B200: La Crosse-Onalaska, WI-MN
... 264 more rows

Sheet Source (hidden)
A1: SNF PPS RUG RATE CALCULATOR WORKBOOK
B3: CMS-1696-F and CMS-1696-CN
B4: Medicare Program: Prospective Payment System and Consolidated Billing for Skilled Nursing Facilities for FY 2019, Skilled Nursing Facilities Value-Based Purchasing Program, etc.
B5: Filed 7/31/2018
B6: Published 8/8/2018
B7: https://federalregister.gov/d/2018-16570
A12: Web copy of spreadsheet is password protected - password CLA!12345
